Workbook

Sheet FICHA
B1: SEGUIMIENTO AL CUMPLIMIENTO DE REGLAS FISCALES DE LOS GOBIERNOS REGIONALES Y GOBIERNOS LOCALES 2T 2024 1/
B3: DEPARTAMENTO
B4: PROVINCIA
B5: ENTIDAD
B7: R1: Regla Fiscal de Saldo de Deuda Total | D7: =IFERROR( VLOOKUP($C$19,REGLAS!$A$1:$S$1920,14,FALSE)," ") ->  | E7: R2: Regla Fiscal de Ahorro en Cuenta Corriente | G7: =IFERROR(IF( VLOOKUP($C$19,REGLAS!$A$1:$S$1920,10,FALSE)="Exceptuado","Exceptuado",IFERROR( VLOOKUP($C$19,REGLAS!$A$1:$S$1920,19,FALSE)," "))," ") -> 
B8: Saldo de Deuda Total 2/ | C8: =IFERROR( VLOOKUP($C$19,REGLAS!$A$1:$S$1920,6,FALSE), " ") ->  | D8: Miles | E8: Ingreso Corriente Total - ICT | F8: =IFERROR( VLOOKUP($C$19,REGLAS!$A$1:$S$1920,16,FALSE), " " ) ->  | G8: Miles
B9: Prom. ICT | C9: =IFERROR( VLOOKUP($C$19,REGLAS!$A$1:$S$1920,8,FALSE), " ") ->  | D9: Miles | E9: Gasto Corriente Total - GCT | F9: =IFERROR( VLOOKUP($C$19,REGLAS!$A$1:$S$1920,17,FALSE), " " ) ->  | G9: Miles
B10: Límite Ley N° 29230 3/ | C10: =IFERROR( VLOOKUP($C$19,REGLAS!$A$1:$S$1920,9,FALSE), " ") ->  | D10: Miles | E10: Ahorro en Cuenta Corriente - ACC | F10: =IFERROR( VLOOKUP($C$19,REGLAS!$A$1:$S$1920,18,FALSE), " ") ->  | G10: Miles
B11: Espacio Total | D11: Miles
B12: SDT/Prom. ICT | C12: =IFERROR( VLOOKUP($C$19,REGLAS!$A$1:$S$1920,12,FALSE), " ") ->  | D12: Porcentaje
B13: }
L20: Zona de riesgo
L21: limite1 | M21: limite2 | N21: valor | P21: ICT | Q21: =IFERROR( VLOOKUP($C$19,REGLAS!$A$1:$S$1902,15,FALSE), " " ) -> 
L22: 0.8 | M22: 0.8 | N22: 0.8 | P22: GCT | Q22: =IFERROR( VLOOKUP($C$19,REGLAS!$A$1:$S$1902,16,FALSE), " " ) -> 
L23: 1 | M23: 1 | N23: 1 | P23: ACC | Q23: =IFERROR( VLOOKUP($C$19,REGLAS!$A$1:$S$1902,17,FALSE), " ") -> 
M24: =C12/100 -> 
P25: ICT | Q25: GCT | R25: ACC
P26: 0 | Q26: 0 | R26: 0 | S26: 0
P27: 0 | Q27: 0 | R27: 0
P28: =IFERROR( VLOOKUP($C$19,REGLAS!$A$1:$S$1920,16,FALSE), " " ) ->  | Q28: =IFERROR( VLOOKUP($C$19,REGLAS!$A$1:$S$1920,17,FALSE), " " ) ->  | R28: =IFERROR( VLOOKUP($C$19,REGLAS!$A$1:$S$1920,18,FALSE), " ") -> 
B30: 1/ El Decreto Legislativo 1275, que aprueba el Marco de la Responsabilidad y Transparencia Fiscal de los Gobiernos Regionales y Gobiernos Locales, deroga la Ley N° 30099, dejando sin efecto las reglas fiscales establecidas en el literal a) y b) del artículo 7°, así como las medidas correctivas establecidas en el numeral 8.4 del artículo 8° de la LFRTF y las metas de convergencia; en adelante se aplicará lo establecido en el artículo 6° de dicho Decreto Legislativo.
B31: 2/ El Saldo de Deuda Total está compuesto por el Saldo de Pasivos, la Deuda Exigible con entidades del Estado y la Deuda Real con las Administradoras Privadas de Fondos de Pensiones (AFP). La información disponible del Saldo de Pasivos es a marzo de 2024, la Deuda Exigible con entidades del Estado es a junio de 2024 y la Deuda Real con las AFP es a abril de 2024.
B32: 3/ Corresponde a la suma de los flujos transferidos por concepto de Recursos Determinados provenientes de Canon, Sobrecanon, Regalías, Renta de Aduanas y Participaciones de los años 2021 y 2022, más el tope presupuestal por el mismo concepto incluido en el Presupuesto Institucional de Apertura 2023, informados a través del Memorando N° 137-2024-EF/50.03 y Memorando N° 306-2023-EF/50.03 por la Dirección General de Presupuesto Público del Ministerio de Economía y Finanzas.
B33: Fuente: SICON-MEF, SIAF-MEF, SUNAT, SBS y AFP.

Sheet REGLAS (hidden)
A1: BUSQUEDA | B1: NRO | C1: Ubigeo | D1: Departamento | E1: Entidad | F1: SDT | G1: B01 | H1: PROM_ICT | I1: LIMITE_LEY | J1: Espacio Total | K1: B02 | L1: STD_PROM_ICT | M1: B03 | N1: Cumple_R1 | O1: B04 | P1: ICT | Q1: GCT | R1: ACC | S1: Cumple_R2
A2: 010000 : GOBIERNO REGIONAL DE AMAZONAS | B2: 1 | C2: 010000 | D2: AMAZONAS | E2: GOBIERNO REGIONAL AMAZONAS | F2: =+VLOOKUP(C2,'Anexo_GR '!$C$8:$N$33,3,0) -> 365946.1019 | H2: =+VLOOKUP(C2,'Anexo_GR '!$C$8:$N$33,4,0) -> 1070915.578 | I2: =+VLOOKUP(C2,'Anexo_GR '!$C$8:$N$33,5,0) -> 402032.8905 | J2: =+VLOOKUP(C2,'Anexo_GR '!$C$8:$N$33,6,0) -> 0 | L2: =+VLOOKUP(C2,'Anexo_GR '!$C$8:$N$33,7,0) -> 34.17133053 | N2: =+VLOOKUP(C2,'Anexo_GR '!$C$8:$N$33,8,0) -> Si Cumple | P2: =+VLOOKUP(C2,'Anexo_GR '!$C$8:$N$33,10,0) -> 626647.9485 | Q2: =+VLOOKUP(C2,'Anexo_GR '!$C$8:$N$33,11,0) -> 510760.8928 | R2: =+VLOOKUP(C2,'Anexo_GR '!$C$8:$N$33,12,0) -> 115887.0556 | S2: =+VLOOKUP(C2,'Anexo_GR '!$C$8:$O$33,13,0) -> Si Cumple
A3: 020000 : GOBIERNO REGIONAL DE ANCASH | B3: 2 | C3: 020000 | D3: ÁNCASH | E3: GOBIERNO REGIONAL ANCASH | F3: =+VLOOKUP(C3,'Anexo_GR '!$C$8:$N$33,3,0) -> 566771.8642 | H3: =+VLOOKUP(C3,'Anexo_GR '!$C$8:$N$33,4,0) -> 2326021.379 | I3: =+VLOOKUP(C3,'Anexo_GR '!$C$8:$N$33,5,0) -> 1419896.594 | J3: =+VLOOKUP(C3,'Anexo_GR '!$C$8:$N$33,6,0) -> 0 | L3: =+VLOOKUP(C3,'Anexo_GR '!$C$8:$N$33,7,0) -> 24.36658018 | N3: =+VLOOKUP(C3,'Anexo_GR '!$C$8:$N$33,8,0) -> Si Cumple | P3: =+VLOOKUP(C3,'Anexo_GR '!$C$8:$N$33,10,0) -> 1230757.857 | Q3: =+VLOOKUP(C3,'Anexo_GR '!$C$8:$N$33,11,0) -> 1014936.869 | R3: =+VLOOKUP(C3,'Anexo_GR '!$C$8:$N$33,12,0) -> 215820.9873 | S3: =+VLOOKUP(C3,'Anexo_GR '!$C$8:$O$33,13,0) -> Si Cumple
A4: 030000 : GOBIERNO REGIONAL DE APURIMAC | B4: 3 | C4: 030000 | D4: APURÍMAC | E4: GOBIERNO REGIONAL APURIMAC | F4: =+VLOOKUP(C4,'Anexo_GR '!$C$8:$N$33,3,0) -> 649231.3697 | H4: =+VLOOKUP(C4,'Anexo_GR '!$C$8:$N$33,4,0) -> 1189380.559 | I4: =+VLOOKUP(C4,'Anexo_GR '!$C$8:$N$33,5,0) -> 473132.6838 | J4: =+VLOOKUP(C4,'Anexo_GR '!$C$8:$N$33,6,0) -> 0 | L4: =+VLOOKUP(C4,'Anexo_GR '!$C$8:$N$33,7,0) -> 54.58567191 | N4: =+VLOOKUP(C4,'Anexo_GR '!$C$8:$N$33,8,0) -> Si Cumple | P4: =+VLOOKUP(C4,'Anexo_GR '!$C$8:$N$33,10,0) -> 647782.4149 | Q4: =+VLOOKUP(C4,'Anexo_GR '!$C$8:$N$33,11,0) -> 546780.294 | R4: =+VLOOKUP(C4,'Anexo_GR '!$C$8:$N$33,12,0) -> 101002.1209 | S4: =+VLOOKUP(C4,'Anexo_GR '!$C$8:$O$33,13,0) -> Si Cumple
A5: 040000 : GOBIERNO REGIONAL DE AREQUIPA | B5: 4 | C5: 040000 | D5: AREQUIPA | E5: GOBIERNO REGIONAL AREQUIPA | F5: =+VLOOKUP(C5,'Anexo_GR '!$C$8:$N$33,3,0) -> 857463.0649 | H5: =+VLOOKUP(C5,'Anexo_GR '!$C$8:$N$33,4,0) -> 2226499.223 | I5: =+VLOOKUP(C5,'Anexo_GR '!$C$8:$N$33,5,0) -> 1140237.441 | J5: =+VLOOKUP(C5,'Anexo_GR '!$C$8:$N$33,6,0) -> 0 | L5: =+VLOOKUP(C5,'Anexo_GR '!$C$8:$N$33,7,0) -> 38.51171633 | N5: =+VLOOKUP(C5,'Anexo_GR '!$C$8:$N$33,8,0) -> Si Cumple | P5: =+VLOOKUP(C5,'Anexo_GR '!$C$8:$N$33,10,0) -> 1254436.63 | Q5: =+VLOOKUP(C5,'Anexo_GR '!$C$8:$N$33,11,0) -> 982101.361 | R5: =+VLOOKUP(C5,'Anexo_GR '!$C$8:$N$33,12,0) -> 272335.2687 | S5: =+VLOOKUP(C5,'Anexo_GR '!$C$8:$O$33,13,0) -> Si Cumple
A6: 050000 : GOBIERNO REGIONAL DE AYACUCHO | B6: 5 | C6: 050000 | D6: AYACUCHO | E6: GOBIERNO REGIONAL AYACUCHO | F6: =+VLOOKUP(C6,'Anexo_GR '!$C$8:$N$33,3,0) -> 666689.5062 | H6: =+VLOOKUP(C6,'Anexo_GR '!$C$8:$N$33,4,0) -> 1658586.418 | I6: =+VLOOKUP(C6,'Anexo_GR '!$C$8:$N$33,5,0) -> 631730.79 | J6: =+VLOOKUP(C6,'Anexo_GR '!$C$8:$N$33,6,0) -> 0 | L6: =+VLOOKUP(C6,'Anexo_GR '!$C$8:$N$33,7,0) -> 40.19624778 | N6: =+VLOOKUP(C6,'Anexo_GR '!$C$8:$N$33,8,0) -> Si Cumple | P6: =+VLOOKUP(C6,'Anexo_GR '!$C$8:$N$33,10,0) -> 955331.013 | Q6: =+VLOOKUP(C6,'Anexo_GR '!$C$8:$N$33,11,0) -> 784071.098 | R6: =+VLOOKUP(C6,'Anexo_GR '!$C$8:$N$33,12,0) -> 171259.915 | S6: =+VLOOKUP(C6,'Anexo_GR '!$C$8:$O$33,13,0) -> Si Cumple
A7: 060000 : GOBIERNO REGIONAL DE CAJAMARCA | B7: 6 | C7: 060000 | D7: CAJAMARCA | E7: GOBIERNO REGIONAL CAJAMARCA | F7: =+VLOOKUP(C7,'Anexo_GR '!$C$8:$N$33,3,0) -> 1614101.483 | H7: =+VLOOKUP(C7,'Anexo_GR '!$C$8:$N$33,4,0) -> 2910929.345 | I7: =+VLOOKUP(C7,'Anexo_GR '!$C$8:$N$33,5,0) -> 1082851.498 | J7: =+VLOOKUP(C7,'Anexo_GR '!$C$8:$N$33,6,0) -> 0 | L7: =+VLOOKUP(C7,'Anexo_GR '!$C$8:$N$33,7,0) -> 55.44969635 | N7: =+VLOOKUP(C7,'Anexo_GR '!$C$8:$N$33,8,0) -> Si Cumple | P7: =+VLOOKUP(C7,'Anexo_GR '!$C$8:$N$33,10,0) -> 1857202.627 | Q7: =+VLOOKUP(C7,'Anexo_GR '!$C$8:$N$33,11,0) -> 1370918.432 | R7: =+VLOOKUP(C7,'Anexo_GR '!$C$8:$N$33,12,0) -> 486284.1947 | S7: =+VLOOKUP(C7,'Anexo_GR '!$C$8:$O$33,13,0) -> Si Cumple
A8: 070000 : GOBIERNO REGIONAL DEL CALLAO | B8: 7 | C8: 070000 | D8: CALLAO | E8: GOBIERNO REGIONAL CALLAO | F8: =+VLOOKUP(C8,'Anexo_GR '!$C$8:$N$33,3,0) -> 521473.2131 | H8: =+VLOOKUP(C8,'Anexo_GR '!$C$8:$N$33,4,0) -> 1343880.695 | I8: =+VLOOKUP(C8,'Anexo_GR '!$C$8:$N$33,5,0) -> 1047023.001 | J8: =+VLOOKUP(C8,'Anexo_GR '!$C$8:$N$33,6,0) -> 0 | L8: =+VLOOKUP(C8,'Anexo_GR '!$C$8:$N$33,7,0) -> 38.8035348 | N8: =+VLOOKUP(C8,'Anexo_GR '!$C$8:$N$33,8,0) -> Si Cumple | P8: =+VLOOKUP(C8,'Anexo_GR '!$C$8:$N$33,10,0) -> 759132.2074 | Q8: =+VLOOKUP(C8,'Anexo_GR '!$C$8:$N$33,11,0) -> 621106.6058 | R8: =+VLOOKUP(C8,'Anexo_GR '!$C$8:$N$33,12,0) -> 138025.6016 | S8: =+VLOOKUP(C8,'Anexo_GR '!$C$8:$O$33,13,0) -> Si Cumple
A9: 080000 : GOBIERNO REGIONAL DE CUSCO | B9: 8 | C9: 080000 | D9: CUSCO | E9: GOBIERNO REGIONAL CUSCO | F9: =+VLOOKUP(C9,'Anexo_GR '!$C$8:$N$33,3,0) -> 635768.8769 | H9: =+VLOOKUP(C9,'Anexo_GR '!$C$8:$N$33,4,0) -> 2791025.312 | I9: =+VLOOKUP(C9,'Anexo_GR '!$C$8:$N$33,5,0) -> 2231097.891 | J9: =+VLOOKUP(C9,'Anexo_GR '!$C$8:$N$33,6,0) -> 0 | L9: =+VLOOKUP(C9,'Anexo_GR '!$C$8:$N$33,7,0) -> 22.77904375 | N9: =+VLOOKUP(C9,'Anexo_GR '!$C$8:$N$33,8,0) -> Si Cumple | P9: =+VLOOKUP(C9,'Anexo_GR '!$C$8:$N$33,10,0) -> 1519126.423 | Q9: =+VLOOKUP(C9,'Anexo_GR '!$C$8:$N$33,11,0) -> 1076822.462 | R9: =+VLOOKUP(C9,'Anexo_GR '!$C$8:$N$33,12,0) -> 442303.9616 | S9: =+VLOOKUP(C9,'Anexo_GR '!$C$8:$O$33,13,0) -> Si Cumple
A10: 090000 : GOBIERNO REGIONAL DE HUANCAVELICA | B10: 9 | C10: 090000 | D10: HUANCAVELICA | E10: GOBIERNO REGIONAL HUANCAVELICA | F10: =+VLOOKUP(C10,'Anexo_GR '!$C$8:$N$33,3,0) -> 255755.6398 | H10: =+VLOOKUP(C10,'Anexo_GR '!$C$8:$N$33,4,0) -> 1422027.39 | I10: =+VLOOKUP(C10,'Anexo_GR '!$C$8:$N$33,5,0) -> 378365.4705 | J10: =+VLOOKUP(C10,'Anexo_GR '!$C$8:$N$33,6,0) -> 0 | L10: =+VLOOKUP(C10,'Anexo_GR '!$C$8:$N$33,7,0) -> 17.98528226 | N10: =+VLOOKUP(C10,'Anexo_GR '!$C$8:$N$33,8,0) -> Si Cumple | P10: =+VLOOKUP(C10,'Anexo_GR '!$C$8:$N$33,10,0) -> 940111.5245 | Q10: =+VLOOKUP(C10,'Anexo_GR '!$C$8:$N$33,11,0) -> 755437.0684 | R10: =+VLOOKUP(C10,'Anexo_GR '!$C$8:$N$33,12,0) -> 184674.4561 | S10: =+VLOOKUP(C10,'Anexo_GR '!$C$8:$O$33,13,0) -> Si Cumple
A11: 100000 : GOBIERNO REGIONAL DE HUANUCO | B11: 10 | C11: 100000 | D11: HUÁNUCO | E11: GOBIERNO REGIONAL HUANUCO | F11: =+VLOOKUP(C11,'Anexo_GR '!$C$8:$N$33,3,0) -> 118579.3424 | H11: =+VLOOKUP(C11,'Anexo_GR '!$C$8:$N$33,4,0) -> 1574094.002 | I11: =+VLOOKUP(C11,'Anexo_GR '!$C$8:$N$33,5,0) -> 575335.0951 | J11: =+VLOOKUP(C11,'Anexo_GR '!$C$8:$N$33,6,0) -> 0 | L11: =+VLOOKUP(C11,'Anexo_GR '!$C$8:$N$33,7,0) -> 7.533180502 | N11: =+VLOOKUP(C11,'Anexo_GR '!$C$8:$N$33,8,0) -> Si Cumple | P11: =+VLOOKUP(C11,'Anexo_GR '!$C$8:$N$33,10,0) -> 867198.1523 | Q11: =+VLOOKUP(C11,'Anexo_GR '!$C$8:$N$33,11,0) -> 833249.8089 | R11: =+VLOOKUP(C11,'Anexo_GR '!$C$8:$N$33,12,0) -> 33948.34341 | S11: =+VLOOKUP(C11,'Anexo_GR '!$C$8:$O$33,13,0) -> Si Cumple
A12: 110000 : GOBIERNO REGIONAL DE ICA | B12: 11 | C12: 110000 | D12: ICA | E12: GOBIERNO REGIONAL ICA | F12: =+VLOOKUP(C12,'Anexo_GR '!$C$8:$N$33,3,0) -> 108866.2565 | H12: =+VLOOKUP(C12,'Anexo_GR '!$C$8:$N$33,4,0) -> 1235794.607 | I12: =+VLOOKUP(C12,'Anexo_GR '!$C$8:$N$33,5,0) -> 969153.7379 | J12: =+VLOOKUP(C12,'Anexo_GR '!$C$8:$N$33,6,0) -> 0 | L12: =+VLOOKUP(C12,'Anexo_GR '!$C$8:$N$33,7,0) -> 8.80941346 | N12: =+VLOOKUP(C12,'Anexo_GR '!$C$8:$N$33,8,0) -> Si Cumple | P12: =+VLOOKUP(C12,'Anexo_GR '!$C$8:$N$33,10,0) -> 627990.0125 | Q12: =+VLOOKUP(C12,'Anexo_GR '!$C$8:$N$33,11,0) -> 543266.4725 | R12: =+VLOOKUP(C12,'Anexo_GR '!$C$8:$N$33,12,0) -> 84723.54001 | S12: =+VLOOKUP(C12,'Anexo_GR '!$C$8:$O$33,13,0) -> Si Cumple
A13: 120000 : GOBIERNO REGIONAL DE JUNIN | B13: 12 | C13: 120000 | D13: JUNÍN | E13: GOBIERNO REGIONAL JUNIN | F13: =+VLOOKUP(C13,'Anexo_GR '!$C$8:$N$33,3,0) -> 378682.8089 | H13: =+VLOOKUP(C13,'Anexo_GR '!$C$8:$N$33,4,0) -> 2428731.374 | I13: =+VLOOKUP(C13,'Anexo_GR '!$C$8:$N$33,5,0) -> 978262.7844 | J13: =+VLOOKUP(C13,'Anexo_GR '!$C$8:$N$33,6,0) -> 0 | L13: =+VLOOKUP(C13,'Anexo_GR '!$C$8:$N$33,7,0) -> 15.59179467 | N13: =+VLOOKUP(C13,'Anexo_GR '!$C$8:$N$33,8,0) -> Si Cumple | P13: =+VLOOKUP(C13,'Anexo_GR '!$C$8:$N$33,10,0) -> 1423575.725 | Q13: =+VLOOKUP(C13,'Anexo_GR '!$C$8:$N$33,11,0) -> 1118652.923 | R13: =+VLOOKUP(C13,'Anexo_GR '!$C$8:$N$33,12,0) -> 304922.8022 | S13: =+VLOOKUP(C13,'Anexo_GR '!$C$8:$O$33,13,0) -> Si Cumple
A14: 130000 : GOBIERNO REGIONAL DE LA LIBERTAD | B14: 13 | C14: 130000 | D14: LA LIBERTAD | E14: GOBIERNO REGIONAL LA LIBERTAD | F14: =+VLOOKUP(C14,'Anexo_GR '!$C$8:$N$33,3,0) -> 1147752.4 | H14: =+VLOOKUP(C14,'Anexo_GR '!$C$8:$N$33,4,0) -> 2767639.511 | I14: =+VLOOKUP(C14,'Anexo_GR '!$C$8:$N$33,5,0) -> 1216634.623 | J14: =+VLOOKUP(C14,'Anexo_GR '!$C$8:$N$33,6,0) -> 0 | L14: =+VLOOKUP(C14,'Anexo_GR '!$C$8:$N$33,7,0) -> 41.47044425 | N14: =+VLOOKUP(C14,'Anexo_GR '!$C$8:$N$33,8,0) -> Si Cumple | P14: =+VLOOKUP(C14,'Anexo_GR '!$C$8:$N$33,10,0) -> 1697049.278 | Q14: =+VLOOKUP(C14,'Anexo_GR '!$C$8:$N$33,11,0) -> 1251684.104 | R14: =+VLOOKUP(C14,'Anexo_GR '!$C$8:$N$33,12,0) -> 445365.1742 | S14: =+VLOOKUP(C14,'Anexo_GR '!$C$8:$O$33,13,0) -> Si Cumple
A15: 140000 : GOBIERNO REGIONAL DE LAMBAYEQUE | B15: 14 | C15: 140000 | D15: LAMBAYEQUE | E15: GOBIERNO REGIONAL LAMBAYEQUE | F15: =+VLOOKUP(C15,'Anexo_GR '!$C$8:$N$33,3,0) -> 678369.7558 | H15: =+VLOOKUP(C15,'Anexo_GR '!$C$8:$N$33,4,0) -> 1634603.24 | I15: =+VLOOKUP(C15,'Anexo_GR '!$C$8:$N$33,5,0) -> 699332.626 | J15: =+VLOOKUP(C15,'Anexo_GR '!$C$8:$N$33,6,0) -> 0 | L15: =+VLOOKUP(C15,'Anexo_GR '!$C$8:$N$33,7,0) -> 41.50057575 | N15: =+VLOOKUP(C15,'Anexo_GR '!$C$8:$N$33,8,0) -> Si Cumple | P15: =+VLOOKUP(C15,'Anexo_GR '!$C$8:$N$33,10,0) -> 991607.1931 | Q15: =+VLOOKUP(C15,'Anexo_GR '!$C$8:$N$33,11,0) -> 744436.8572 | R15: =+VLOOKUP(C15,'Anexo_GR '!$C$8:$N$33,12,0) -> 247170.3359 | S15: =+VLOOKUP(C15,'Anexo_GR '!$C$8:$O$33,13,0) -> Si Cumple
A16: 150000 : GOBIERNO REGIONAL DE LIMA | B16: 15 | C16: 150000 | D16: LIMA | E16: GOBIERNO REGIONAL LIMA | F16: =+VLOOKUP(C16,'Anexo_GR '!$C$8:$N$33,3,0) -> 202621.4557 | H16: =+VLOOKUP(C16,'Anexo_GR '!$C$8:$N$33,4,0) -> 1702796.783 | I16: =+VLOOKUP(C16,'Anexo_GR '!$C$8:$N$33,5,0) -> 701633.8368 | J16: =+VLOOKUP(C16,'Anexo_GR '!$C$8:$N$33,6,0) -> 0 | L16: =+VLOOKUP(C16,'Anexo_GR '!$C$8:$N$33,7,0) -> 11.89933277 | N16: =+VLOOKUP(C16,'Anexo_GR '!$C$8:$N$33,8,0) -> Si Cumple | P16: =+VLOOKUP(C16,'Anexo_GR '!$C$8:$N$33,10,0) -> 1001521.563 | Q16: =+VLOOKUP(C16,'Anexo_GR '!$C$8:$N$33,11,0) -> 785047.8609 | R16: =+VLOOKUP(C16,'Anexo_GR '!$C$8:$N$33,12,0) -> 216473.7017 | S16: =+VLOOKUP(C16,'Anexo_GR '!$C$8:$O$33,13,0) -> Si Cumple
A17: 160000 : GOBIERNO REGIONAL DE LORETO | B17: 16 | C17: 160000 | D17: LORETO | E17: GOBIERNO REGIONAL LORETO | F17: =+VLOOKUP(C17,'Anexo_GR '!$C$8:$N$33,3,0) -> 769981.0997 | H17: =+VLOOKUP(C17,'Anexo_GR '!$C$8:$N$33,4,0) -> 2679683.235 | I17: =+VLOOKUP(C17,'Anexo_GR '!$C$8:$N$33,5,0) -> 790953.0209 | J17: =+VLOOKUP(C17,'Anexo_GR '!$C$8:$N$33,6,0) -> 0 | L17: =+VLOOKUP(C17,'Anexo_GR '!$C$8:$N$33,7,0) -> 28.73403429 | N17: =+VLOOKUP(C17,'Anexo_GR '!$C$8:$N$33,8,0) -> Si Cumple | P17: =+VLOOKUP(C17,'Anexo_GR '!$C$8:$N$33,10,0) -> 1668112.008 | Q17: =+VLOOKUP(C17,'Anexo_GR '!$C$8:$N$33,11,0) -> 1250487.61 | R17: =+VLOOKUP(C17,'Anexo_GR '!$C$8:$N$33,12,0) -> 417624.3979 | S17: =+VLOOKUP(C17,'Anexo_GR '!$C$8:$O$33,13,0) -> Si Cumple
A18: 170000 : GOBIERNO REGIONAL DE MADRE DE DIOS | B18: 17 | C18: 170000 | D18: MADRE DE DIOS | E18: GOBIERNO REGIONAL MADRE DE DIOS | F18: =+VLOOKUP(C18,'Anexo_GR '!$C$8:$N$33,3,0) -> 40384.95609 | H18: =+VLOOKUP(C18,'Anexo_GR '!$C$8:$N$33,4,0) -> 417618.0981 | I18: =+VLOOKUP(C18,'Anexo_GR '!$C$8:$N$33,5,0) -> 209134.5429 | J18: =+VLOOKUP(C18,'Anexo_GR '!$C$8:$N$33,6,0) -> 0 | L18: =+VLOOKUP(C18,'Anexo_GR '!$C$8:$N$33,7,0) -> 9.670307937 | N18: =+VLOOKUP(C18,'Anexo_GR '!$C$8:$N$33,8,0) -> Si Cumple | P18: =+VLOOKUP(C18,'Anexo_GR '!$C$8:$N$33,10,0) -> 248837.7095 | Q18: =+VLOOKUP(C18,'Anexo_GR '!$C$8:$N$33,11,0) -> 172757.6703 | R18: =+VLOOKUP(C18,'Anexo_GR '!$C$8:$N$33,12,0) -> 76080.03926 | S18: =+VLOOKUP(C18,'Anexo_GR '!$C$8:$O$33,13,0) -> Si Cumple
A19: 180000 : GOBIERNO REGIONAL DE MOQUEGUA | B19: 18 | C19: 180000 | D19: MOQUEGUA | E19: GOBIERNO REGIONAL MOQUEGUA | F19: =+VLOOKUP(C19,'Anexo_GR '!$C$8:$N$33,3,0) -> 297299.3763 | H19: =+VLOOKUP(C19,'Anexo_GR '!$C$8:$N$33,4,0) -> 568538.8933 | I19: =+VLOOKUP(C19,'Anexo_GR '!$C$8:$N$33,5,0) -> 347312.1174 | J19: =+VLOOKUP(C19,'Anexo_GR '!$C$8:$N$33,6,0) -> 0 | L19: =+VLOOKUP(C19,'Anexo_GR '!$C$8:$N$33,7,0) -> 52.29182731 | N19: =+VLOOKUP(C19,'Anexo_GR '!$C$8:$N$33,8,0) -> Si Cumple | P19: =+VLOOKUP(C19,'Anexo_GR '!$C$8:$N$33,10,0) -> 289182.7982 | Q19: =+VLOOKUP(C19,'Anexo_GR '!$C$8:$N$33,11,0) -> 248940.0535 | R19: =+VLOOKUP(C19,'Anexo_GR '!$C$8:$N$33,12,0) -> 40242.74472 | S19: =+VLOOKUP(C19,'Anexo_GR '!$C$8:$O$33,13,0) -> Si Cumple
A20: 190000 : GOBIERNO REGIONAL DE PASCO | B20: 19 | C20: 190000 | D20: PASCO | E20: GOBIERNO REGIONAL PASCO | F20: =+VLOOKUP(C20,'Anexo_GR '!$C$8:$N$33,3,0) -> 247550.9706 | H20: =+VLOOKUP(C20,'Anexo_GR '!$C$8:$N$33,4,0) -> 668205.1546 | I20: =+VLOOKUP(C20,'Anexo_GR '!$C$8:$N$33,5,0) -> 281069.7487 | J20: =+VLOOKUP(C20,'Anexo_GR '!$C$8:$N$33,6,0) -> 0 | L20: =+VLOOKUP(C20,'Anexo_GR '!$C$8:$N$33,7,0) -> 37.0471507 | N20: =+VLOOKUP(C20,'Anexo_GR '!$C$8:$N$33,8,0) -> Si Cumple | P20: =+VLOOKUP(C20,'Anexo_GR '!$C$8:$N$33,10,0) -> 362269.4147 | Q20: =+VLOOKUP(C20,'Anexo_GR '!$C$8:$N$33,11,0) -> 305125.6992 | R20: =+VLOOKUP(C20,'Anexo_GR '!$C$8:$N$33,12,0) -> 57143.71553 | S20: =+VLOOKUP(C20,'Anexo_GR '!$C$8:$O$33,13,0) -> Si Cumple
A21: 200000 : GOBIERNO REGIONAL DE PIURA | B21: 20 | C21: 200000 | D21: PIURA | E21: GOBIERNO REGIONAL PIURA | F21: =+VLOOKUP(C21,'Anexo_GR '!$C$8:$N$33,3,0) -> 1972156.242 | H21: =+VLOOKUP(C21,'Anexo_GR '!$C$8:$N$33,4,0) -> 2902433.303 | I21: =+VLOOKUP(C21,'Anexo_GR '!$C$8:$N$33,5,0) -> 1607943.356 | J21: =+VLOOKUP(C21,'Anexo_GR '!$C$8:$N$33,6,0) -> 0 | L21: =+VLOOKUP(C21,'Anexo_GR '!$C$8:$N$33,7,0) -> 67.94837423 | N21: =+VLOOKUP(C21,'Anexo_GR '!$C$8:$N$33,8,0) -> Si Cumple | P21: =+VLOOKUP(C21,'Anexo_GR '!$C$8:$N$33,10,0) -> 1773173.496 | Q21: =+VLOOKUP(C21,'Anexo_GR '!$C$8:$N$33,11,0) -> 1365022.063 | R21: =+VLOOKUP(C21,'Anexo_GR '!$C$8:$N$33,12,0) -> 408151.433 | S21: =+VLOOKUP(C21,'Anexo_GR '!$C$8:$O$33,13,0) -> Si Cumple
A22: 210000 : GOBIERNO REGIONAL DE PUNO | B22: 21 | C22: 210000 | D22: PUNO | E22: GOBIERNO REGIONAL PUNO | F22: =+VLOOKUP(C22,'Anexo_GR '!$C$8:$N$33,3,0) -> 1197277.233 | H22: =+VLOOKUP(C22,'Anexo_GR '!$C$8:$N$33,4,0) -> 2481994.358 | I22: =+VLOOKUP(C22,'Anexo_GR '!$C$8:$N$33,5,0) -> 1098644.284 | J22: =+VLOOKUP(C22,'Anexo_GR '!$C$8:$N$33,6,0) -> 0 | L22: =+VLOOKUP(C22,'Anexo_GR '!$C$8:$N$33,7,0) -> 48.23851549 | N22: =+VLOOKUP(C22,'Anexo_GR '!$C$8:$N$33,8,0) -> Si Cumple | P22: =+VLOOKUP(C22,'Anexo_GR '!$C$8:$N$33,10,0) -> 1462787.979 | Q22: =+VLOOKUP(C22,'Anexo_GR '!$C$8:$N$33,11,0) -> 1080855.462 | R22: =+VLOOKUP(C22,'Anexo_GR '!$C$8:$N$33,12,0) -> 381932.5175 | S22: =+VLOOKUP(C22,'Anexo_GR '!$C$8:$O$33,13,0) -> Si Cumple
A23: 220000 : GOBIERNO REGIONAL DE SAN MARTIN | B23: 22 | C23: 220000 | D23: SAN MARTÍN | E23: GOBIERNO REGIONAL SAN MARTIN | F23: =+VLOOKUP(C23,'Anexo_GR '!$C$8:$N$33,3,0) -> 317504.8803 | H23: =+VLOOKUP(C23,'Anexo_GR '!$C$8:$N$33,4,0) -> 1856907.351 | I23: =+VLOOKUP(C23,'Anexo_GR '!$C$8:$N$33,5,0) -> 596978.9014 | J23: =+VLOOKUP(C23,'Anexo_GR '!$C$8:$N$33,6,0) -> 0 | L23: =+VLOOKUP(C23,'Anexo_GR '!$C$8:$N$33,7,0) -> 17.09858492 | N23: =+VLOOKUP(C23,'Anexo_GR '!$C$8:$N$33,8,0) -> Si Cumple | P23: =+VLOOKUP(C23,'Anexo_GR '!$C$8:$N$33,10,0) -> 1106268.302 | Q23: =+VLOOKUP(C23,'Anexo_GR '!$C$8:$N$33,11,0) -> 844398.6698 | R23: =+VLOOKUP(C23,'Anexo_GR '!$C$8:$N$33,12,0) -> 261869.6318 | S23: =+VLOOKUP(C23,'Anexo_GR '!$C$8:$O$33,13,0) -> Si Cumple
A24: 230000 : GOBIERNO REGIONAL DE TACNA | B24: 23 | C24: 230000 | D24: TACNA | E24: GOBIERNO REGIONAL TACNA | F24: =+VLOOKUP(C24,'Anexo_GR '!$C$8:$N$33,3,0) -> 90350.46643 | H24: =+VLOOKUP(C24,'Anexo_GR '!$C$8:$N$33,4,0) -> 801227.4776 | I24: =+VLOOKUP(C24,'Anexo_GR '!$C$8:$N$33,5,0) -> 593297.2414 | J24: =+VLOOKUP(C24,'Anexo_GR '!$C$8:$N$33,6,0) -> 0 | L24: =+VLOOKUP(C24,'Anexo_GR '!$C$8:$N$33,7,0) -> 11.27650623 | N24: =+VLOOKUP(C24,'Anexo_GR '!$C$8:$N$33,8,0) -> Si Cumple | P24: =+VLOOKUP(C24,'Anexo_GR '!$C$8:$N$33,10,0) -> 410510.5151 | Q24: =+VLOOKUP(C24,'Anexo_GR '!$C$8:$N$33,11,0) -> 334923.6637 | R24: =+VLOOKUP(C24,'Anexo_GR '!$C$8:$N$33,12,0) -> 75586.85137 | S24: =+VLOOKUP(C24,'Anexo_GR '!$C$8:$O$33,13,0) -> Si Cumple
A25: 240000 : GOBIERNO REGIONAL DE TUMBES | B25: 24 | C25: 240000 | D25: TUMBES | E25: GOBIERNO REGIONAL TUMBES | F25: =+VLOOKUP(C25,'Anexo_GR '!$C$8:$N$33,3,0) -> 239943.447 | H25: =+VLOOKUP(C25,'Anexo_GR '!$C$8:$N$33,4,0) -> 562253.1039 | I25: =+VLOOKUP(C25,'Anexo_GR '!$C$8:$N$33,5,0) -> 206500.6454 | J25: =+VLOOKUP(C25,'Anexo_GR '!$C$8:$N$33,6,0) -> 0 | L25: =+VLOOKUP(C25,'Anexo_GR '!$C$8:$N$33,7,0) -> 42.67534414 | N25: =+VLOOKUP(C25,'Anexo_GR '!$C$8:$N$33,8,0) -> Si Cumple | P25: =+VLOOKUP(C25,'Anexo_GR '!$C$8:$N$33,10,0) -> 338819.2502 | Q25: =+VLOOKUP(C25,'Anexo_GR '!$C$8:$N$33,11,0) -> 268191.3863 | R25: =+VLOOKUP(C25,'Anexo_GR '!$C$8:$N$33,12,0) -> 70627.86394 | S25: =+VLOOKUP(C25,'Anexo_GR '!$C$8:$O$33,13,0) -> Si Cumple
A26: 250000 : GOBIERNO REGIONAL DE UCAYALI | B26: 25 | C26: 250000 | D26: UCAYALI | E26: GOBIERNO REGIONAL UCAYALI | F26: =+VLOOKUP(C26,'Anexo_GR '!$C$8:$N$33,3,0) -> 385078.4278 | H26: =+VLOOKUP(C26,'Anexo_GR '!$C$8:$N$33,4,0) -> 1215545.122 | I26: =+VLOOKUP(C26,'Anexo_GR '!$C$8:$N$33,5,0) -> 631410.8753 | J26: =+VLOOKUP(C26,'Anexo_GR '!$C$8:$N$33,6,0) -> 0 | L26: =+VLOOKUP(C26,'Anexo_GR '!$C$8:$N$33,7,0) -> 31.67948446 | N26: =+VLOOKUP(C26,'Anexo_GR '!$C$8:$N$33,8,0) -> Si Cumple | P26: =+VLOOKUP(C26,'Anexo_GR '!$C$8:$N$33,10,0) -> 750691.4264 | Q26: =+VLOOKUP(C26,'Anexo_GR '!$C$8:$N$33,11,0) -> 556992.845 | R26: =+VLOOKUP(C26,'Anexo_GR '!$C$8:$N$33,12,0) -> 193698.5815 | S26: =+VLOOKUP(C26,'Anexo_GR '!$C$8:$O$33,13,0) -> Si Cumple
A27: 260000 : REGION LIMA METROPOLITANA | B27: 26 | C27: 260000 | D27: MM LIMA | E27: REGION LIMA METROPOLITANA | F27: =+VLOOKUP(C27,'Anexo_GR '!$C$8:$N$33,3,0) -> 1498.21252 | H27: =+VLOOKUP(C27,'Anexo_GR '!$C$8:$N$33,4,0) -> 26024.73816 | I27: =+VLOOKUP(C27,'Anexo_GR '!$C$8:$N$33,5,0) -> 18245.51832 | J27: =+VLOOKUP(C27,'Anexo_GR '!$C$8:$N$33,6,0) -> 0 | L27: =+VLOOKUP(C27,'Anexo_GR '!$C$8:$N$33,7,0) -> 5.756878363 | N27: =+VLOOKUP(C27,'Anexo_GR '!$C$8:$N$33,8,0) -> Si Cumple | P27: =+VLOOKUP(C27,'Anexo_GR '!$C$8:$N$33,10,0) -> 13072.34778 | Q27: =+VLOOKUP(C27,'Anexo_GR '!$C$8:$N$33,11,0) -> 11017.62602 | R27: =+VLOOKUP(C27,'Anexo_GR '!$C$8:$N$33,12,0) -> 2054.72176 | S27: =+VLOOKUP(C27,'Anexo_GR '!$C$8:$O$33,13,0) -> Si Cumple
A28: 010101 : MP DE CHACHAPOYAS | B28: 1 | C28: 010101 | D28: AMAZONAS | E28: MP DE CHACHAPOYAS | F28: =+VLOOKUP(C28,'Anexo_GL '!$B$9:$O$1882,4,0) -> 7920.793 | H28: =+VLOOKUP(C28,'Anexo_GL '!$B$9:$O$1882,5,0) -> 28825.5833 | I28: =+VLOOKUP(C28,'Anexo_GL '!$B$9:$O$1882,6,0) -> 0.92715 | J28: =+VLOOKUP(C28,'Anexo_GL '!$B$9:$O$1882,7,0) -> 0 | L28: =+VLOOKUP(C28,'Anexo_GL '!$B$9:$O$1882,8,0) -> 27.47834421 | N28: =+VLOOKUP(C28,'Anexo_GL '!$B$9:$O$1882,9,0) -> Si Cumple | P28: =+VLOOKUP(C28,'Anexo_GL '!$B$9:$O$1882,11,0) -> 9818.66441 | Q28: =+VLOOKUP(C28,'Anexo_GL '!$B$9:$O$1882,12,0) -> 7995.34238 | R28: =+VLOOKUP(C28,'Anexo_GL '!$B$9:$O$1882,13,0) -> 1823.32203 | S28: =+VLOOKUP(C28,'Anexo_GL '!$B$9:$O$1882,14,0) -> Si Cumple
A29: 010102 : MD DE ASUNCION | B29: 2 | C29: 010102 | D29: AMAZONAS | E29: MD DE ASUNCION | F29: =+VLOOKUP(C29,'Anexo_GL '!$B$9:$O$1882,4,0) -> 50.32118 | H29: =+VLOOKUP(C29,'Anexo_GL '!$B$9:$O$1882,5,0) -> 801.81462 | I29: =+VLOOKUP(C29,'Anexo_GL '!$B$9:$O$1882,6,0) -> 0.00029 | J29: =+VLOOKUP(C29,'Anexo_GL '!$B$9:$O$1882,7,0) -> 0 | L29: =+VLOOKUP(C29,'Anexo_GL '!$B$9:$O$1882,8,0) -> 6.275912006 | N29: =+VLOOKUP(C29,'Anexo_GL '!$B$9:$O$1882,9,0) -> Si Cumple | P29: =+VLOOKUP(C29,'Anexo_GL '!$B$9:$O$1882,11,0) -> 145.72774 | Q29: =+VLOOKUP(C29,'Anexo_GL '!$B$9:$O$1882,12,0) -> 280.83414 | R29: =+VLOOKUP(C29,'Anexo_GL '!$B$9:$O$1882,13,0) -> -135.1064 | S29: =+VLOOKUP(C29,'Anexo_GL '!$B$9:$O$1882,14,0) -> No Cumple
A30: 010103 : MD DE BALSAS | B30: 3 | C30: 010103 | D30: AMAZONAS | E30: MD DE BALSAS | F30: =+VLOOKUP(C30,'Anexo_GL '!$B$9:$O$1882,4,0) -> 12.43451 | H30: =+VLOOKUP(C30,'Anexo_GL '!$B$9:$O$1882,5,0) -> 1055.787482 | I30: =+VLOOKUP(C30,'Anexo_GL '!$B$9:$O$1882,6,0) -> 0.00107 | J30: =+VLOOKUP(C30,'Anexo_GL '!$B$9:$O$1882,7,0) -> 0 | L30: =+VLOOKUP(C30,'Anexo_GL '!$B$9:$O$1882,8,0) -> 1.177747436 | N30: =+VLOOKUP(C30,'Anexo_GL '!$B$9:$O$1882,9,0) -> Si Cumple | P30: =+VLOOKUP(C30,'Anexo_GL '!$B$9:$O$1882,11,0) -> 300.56168 | Q30: =+VLOOKUP(C30,'Anexo_GL '!$B$9:$O$1882,12,0) -> 298.7498 | R30: =+VLOOKUP(C30,'Anexo_GL '!$B$9:$O$1882,13,0) -> 1.81188 | S30: =+VLOOKUP(C30,'Anexo_GL '!$B$9:$O$1882,14,0) -> Si Cumple
A31: 010104 : MD DE CHETO | B31: 4 | C31: 010104 | D31: AMAZONAS | E31: MD DE CHETO | F31: =+VLOOKUP(C31,'Anexo_GL '!$B$9:$O$1882,4,0) -> 41.09498 | H31: =+VLOOKUP(C31,'Anexo_GL '!$B$9:$O$1882,5,0) -> 948.4212 | I31: =+VLOOKUP(C31,'Anexo_GL '!$B$9:$O$1882,6,0) -> 0 | J31: =+VLOOKUP(C31,'Anexo_GL '!$B$9:$O$1882,7,0) -> 0 | L31: =+VLOOKUP(C31,'Anexo_GL '!$B$9:$O$1882,8,0) -> 4.332988339 | N31: =+VLOOKUP(C31,'Anexo_GL '!$B$9:$O$1882,9,0) -> Si Cumple | P31: =+VLOOKUP(C31,'Anexo_GL '!$B$9:$O$1882,11,0) -> 295.22112 | Q31: =+VLOOKUP(C31,'Anexo_GL '!$B$9:$O$1882,12,0) -> 202.32676 | R31: =+VLOOKUP(C31,'Anexo_GL '!$B$9:$O$1882,13,0) -> 92.89436 | S31: =+VLOOKUP(C31,'Anexo_GL '!$B$9:$O$1882,14,0) -> Si Cumple
A32: 010105 : MD DE CHILIQUIN | B32: 5 | C32: 010105 | D32: AMAZONAS | E32: MD DE CHILIQUIN | F32: =+VLOOKUP(C32,'Anexo_GL '!$B$9:$O$1882,4,0) -> 236.01278 | H32: =+VLOOKUP(C32,'Anexo_GL '!$B$9:$O$1882,5,0) -> 943.313385 | I32: =+VLOOKUP(C32,'Anexo_GL '!$B$9:$O$1882,6,0) -> 0.00029 | J32: =+VLOOKUP(C32,'Anexo_GL '!$B$9:$O$1882,7,0) -> 0 | L32: =+VLOOKUP(C32,'Anexo_GL '!$B$9:$O$1882,8,0) -> 25.01955169 | N32: =+VLOOKUP(C32,'Anexo_GL '!$B$9:$O$1882,9,0) -> Si Cumple | P32: =+VLOOKUP(C32,'Anexo_GL '!$B$9:$O$1882,11,0) -> 193.8349 | Q32: =+VLOOKUP(C32,'Anexo_GL '!$B$9:$O$1882,12,0) -> 305.74772 | R32: =+VLOOKUP(C32,'Anexo_GL '!$B$9:$O$1882,13,0) -> -111.91282 | S32: =+VLOOKUP(C32,'Anexo_GL '!$B$9:$O$1882,14,0) -> No Cumple
A33: 010106 : MD DE CHUQUIBAMBA | B33: 6 | C33: 010106 | D33: AMAZONAS | E33: MD DE CHUQUIBAMBA | F33: =+VLOOKUP(C33,'Anexo_GL '!$B$9:$O$1882,4,0) -> 61.88297 | H33: =+VLOOKUP(C33,'Anexo_GL '!$B$9:$O$1882,5,0) -> 1638.682673 | I33: =+VLOOKUP(C33,'Anexo_GL '!$B$9:$O$1882,6,0) -> 0.00137 | J33: =+VLOOKUP(C33,'Anexo_GL '!$B$9:$O$1882,7,0) -> 0 | L33: =+VLOOKUP(C33,'Anexo_GL '!$B$9:$O$1882,8,0) -> 3.776385205 | N33: =+VLOOKUP(C33,'Anexo_GL '!$B$9:$O$1882,9,0) -> Si Cumple | P33: =+VLOOKUP(C33,'Anexo_GL '!$B$9:$O$1882,11,0) -> 246.25178 | Q33: =+VLOOKUP(C33,'Anexo_GL '!$B$9:$O$1882,12,0) -> 283.22328 | R33: =+VLOOKUP(C33,'Anexo_GL '!$B$9:$O$1882,13,0) -> -36.9715 | S33: =+VLOOKUP(C33,'Anexo_GL '!$B$9:$O$1882,14,0) -> No Cumple
A34: 010107 : MD DE GRANADA | B34: 7 | C34: 010107 | D34: AMAZONAS | E34: MD DE GRANADA | F34: =+VLOOKUP(C34,'Anexo_GL '!$B$9:$O$1882,4,0) -> 164.73239 | H34: =+VLOOKUP(C34,'Anexo_GL '!$B$9:$O$1882,5,0) -> 929.86063 | I34: =+VLOOKUP(C34,'Anexo_GL '!$B$9:$O$1882,6,0) -> 0 | J34: =+VLOOKUP(C34,'Anexo_GL '!$B$9:$O$1882,7,0) -> 0 | L34: =+VLOOKUP(C34,'Anexo_GL '!$B$9:$O$1882,8,0) -> 17.71581511 | N34: =+VLOOKUP(C34,'Anexo_GL '!$B$9:$O$1882,9,0) -> Si Cumple | P34: =+VLOOKUP(C34,'Anexo_GL '!$B$9:$O$1882,11,0) -> 232.91855 | Q34: =+VLOOKUP(C34,'Anexo_GL '!$B$9:$O$1882,12,0) -> 217.03516 | R34: =+VLOOKUP(C34,'Anexo_GL '!$B$9:$O$1882,13,0) -> 15.88339 | S34: =+VLOOKUP(C34,'Anexo_GL '!$B$9:$O$1882,14,0) -> Si Cumple
A35: 010108 : MD DE HUANCAS | B35: 8 | C35: 010108 | D35: AMAZONAS | E35: MD DE HUANCAS | F35: =+VLOOKUP(C35,'Anexo_GL '!$B$9:$O$1882,4,0) -> 102.93396 | H35: =+VLOOKUP(C35,'Anexo_GL '!$B$9:$O$1882,5,0) -> 1074.489937 | I35: =+VLOOKUP(C35,'Anexo_GL '!$B$9:$O$1882,6,0) -> 0.00029 | J35: =+VLOOKUP(C35,'Anexo_GL '!$B$9:$O$1882,7,0) -> 0 | L35: =+VLOOKUP(C35,'Anexo_GL '!$B$9:$O$1882,8,0) -> 9.579797484 | N35: =+VLOOKUP(C35,'Anexo_GL '!$B$9:$O$1882,9,0) -> Si Cumple | P35: =+VLOOKUP(C35,'Anexo_GL '!$B$9:$O$1882,11,0) -> 303.44382 | Q35: =+VLOOKUP(C35,'Anexo_GL '!$B$9:$O$1882,12,0) -> 379.10098 | R35: =+VLOOKUP(C35,'Anexo_GL '!$B$9:$O$1882,13,0) -> -75.65716 | S35: =+VLOOKUP(C35,'Anexo_GL '!$B$9:$O$1882,14,0) -> No Cumple
A36: 010109 : MD DE JALCA GRANDE | B36: 9 | C36: 010109 | D36: AMAZONAS | E36: MD DE JALCA GRANDE | F36: =+VLOOKUP(C36,'Anexo_GL '!$B$9:$O$1882,4,0) -> 224.55917 | H36: =+VLOOKUP(C36,'Anexo_GL '!$B$9:$O$1882,5,0) -> 2096.11709 | I36: =+VLOOKUP(C36,'Anexo_GL '!$B$9:$O$1882,6,0) -> 0.97474 | J36: =+VLOOKUP(C36,'Anexo_GL '!$B$9:$O$1882,7,0) -> 0 | L36: =+VLOOKUP(C36,'Anexo_GL '!$B$9:$O$1882,8,0) -> 10.71310239 | N36: =+VLOOKUP(C36,'Anexo_GL '!$B$9:$O$1882,9,0) -> Si Cumple | P36: =+VLOOKUP(C36,'Anexo_GL '!$B$9:$O$1882,11,0) -> 408.7623 | Q36: =+VLOOKUP(C36,'Anexo_GL '!$B$9:$O$1882,12,0) -> 834.55306 | R36: =+VLOOKUP(C36,'Anexo_GL '!$B$9:$O$1882,13,0) -> -425.79076 | S36: =+VLOOKUP(C36,'Anexo_GL '!$B$9:$O$1882,14,0) -> No Cumple
A37: 010110 : MD DE LEIMEBAMBA | B37: 10 | C37: 010110 | D37: AMAZONAS | E37: MD DE LEIMEBAMBA | F37: =+VLOOKUP(C37,'Anexo_GL '!$B$9:$O$1882,4,0) -> 36.21269 | H37: =+VLOOKUP(C37,'Anexo_GL '!$B$9:$O$1882,5,0) -> 2594.417398 | I37: =+VLOOKUP(C37,'Anexo_GL '!$B$9:$O$1882,6,0) -> 0.00166 | J37: =+VLOOKUP(C37,'Anexo_GL '!$B$9:$O$1882,7,0) -> 0 | L37: =+VLOOKUP(C37,'Anexo_GL '!$B$9:$O$1882,8,0) -> 1.395792752 | N37: =+VLOOKUP(C37,'Anexo_GL '!$B$9:$O$1882,9,0) -> Si Cumple | P37: =+VLOOKUP(C37,'Anexo_GL '!$B$9:$O$1882,11,0) -> 429.05337 | Q37: =+VLOOKUP(C37,'Anexo_GL '!$B$9:$O$1882,12,0) -> 333.41384 | R37: =+VLOOKUP(C37,'Anexo_GL '!$B$9:$O$1882,13,0) -> 95.63953 | S37: =+VLOOKUP(C37,'Anexo_GL '!$B$9:$O$1882,14,0) -> Si Cumple
A38: 010111 : MD DE LEVANTO | B38: 11 | C38: 010111 | D38: AMAZONAS | E38: MD DE LEVANTO | F38: =+VLOOKUP(C38,'Anexo_GL '!$B$9:$O$1882,4,0) -> 32.46496 | H38: =+VLOOKUP(C38,'Anexo_GL '!$B$9:$O$1882,5,0) -> 984.5132375 | I38: =+VLOOKUP(C38,'Anexo_GL '!$B$9:$O$1882,6,0) -> 0.00029 | J38: =+VLOOKUP(C38,'Anexo_GL '!$B$9:$O$1882,7,0) -> 0 | L38: =+VLOOKUP(C38,'Anexo_GL '!$B$9:$O$1882,8,0) -> 3.2975646 | N38: =+VLOOKUP(C38,'Anexo_GL '!$B$9:$O$1882,9,0) -> Si Cumple | P38: =+VLOOKUP(C38,'Anexo_GL '!$B$9:$O$1882,11,0) -> 163.15657 | Q38: =+VLOOKUP(C38,'Anexo_GL '!$B$9:$O$1882,12,0) -> 213.5339 | R38: =+VLOOKUP(C38,'Anexo_GL '!$B$9:$O$1882,13,0) -> -50.37733 | S38: =+VLOOKUP(C38,'Anexo_GL '!$B$9:$O$1882,14,0) -> No Cumple
A39: 010112 : MD DE MAGDALENA | B39: 12 | C39: 010112 | D39: AMAZONAS | E39: MD DE MAGDALENA | F39: =+VLOOKUP(C39,'Anexo_GL '!$B$9:$O$1882,4,0) -> 39.16175 | H39: =+VLOOKUP(C39,'Anexo_GL '!$B$9:$O$1882,5,0) -> 913.7837275 | I39: =+VLOOKUP(C39,'Anexo_GL '!$B$9:$O$1882,6,0) -> 0 | J39: =+VLOOKUP(C39,'Anexo_GL '!$B$9:$O$1882,7,0) -> 0 | L39: =+VLOOKUP(C39,'Anexo_GL '!$B$9:$O$1882,8,0) -> 4.285669445 | N39: =+VLOOKUP(C39,'Anexo_GL '!$B$9:$O$1882,9,0) -> Si Cumple | P39: =+VLOOKUP(C39,'Anexo_GL '!$B$9:$O$1882,11,0) -> 157.49089 | Q39: =+VLOOKUP(C39,'Anexo_GL '!$B$9:$O$1882,12,0) -> 225.69672 | R39: =+VLOOKUP(C39,'Anexo_GL '!$B$9:$O$1882,13,0) -> -68.20583 | S39: =+VLOOKUP(C39,'Anexo_GL '!$B$9:$O$1882,14,0) -> No Cumple
A40: 010113 : MD DE MARISCAL CASTILLA | B40: 13 | C40: 010113 | D40: AMAZONAS | E40: MD DE MARISCAL CASTILLA | F40: =+VLOOKUP(C40,'Anexo_GL '!$B$9:$O$1882,4,0) -> 944.83642 | H40: =+VLOOKUP(C40,'Anexo_GL '!$B$9:$O$1882,5,0) -> 924.9075425 | I40: =+VLOOKUP(C40,'Anexo_GL '!$B$9:$O$1882,6,0) -> 0.00107 | J40: =+VLOOKUP(C40,'Anexo_GL '!$B$9:$O$1882,7,0) -> 0 | L40: =+VLOOKUP(C40,'Anexo_GL '!$B$9:$O$1882,8,0) -> 102.1546886 | N40: =+VLOOKUP(C40,'Anexo_GL '!$B$9:$O$1882,9,0) -> No Cumple | P40: =+VLOOKUP(C40,'Anexo_GL '!$B$9:$O$1882,11,0) -> 280.42149 | Q40: =+VLOOKUP(C40,'Anexo_GL '!$B$9:$O$1882,12,0) -> 133.64526 | R40: =+VLOOKUP(C40,'Anexo_GL '!$B$9:$O$1882,13,0) -> 146.77623 | S40: =+VLOOKUP(C40,'Anexo_GL '!$B$9:$O$1882,14,0) -> Si Cumple
A41: 010114 : MD DE MOLINOPAMPA | B41: 14 | C41: 010114 | D41: AMAZONAS | E41: MD DE MOLINOPAMPA | F41: =+VLOOKUP(C41,'Anexo_GL '!$B$9:$O$1882,4,0) -> 381.95721 | H41: =+VLOOKUP(C41,'Anexo_GL '!$B$9:$O$1882,5,0) -> 1057.783965 | I41: =+VLOOKUP(C41,'Anexo_GL '!$B$9:$O$1882,6,0) -> 0.00283 | J41: =+VLOOKUP(C41,'Anexo_GL '!$B$9:$O$1882,7,0) -> 0 | L41: =+VLOOKUP(C41,'Anexo_GL '!$B$9:$O$1882,8,0) -> 36.10918889 | N41: =+VLOOKUP(C41,'Anexo_GL '!$B$9:$O$1882,9,0) -> Si Cumple | P41: =+VLOOKUP(C41,'Anexo_GL '!$B$9:$O$1882,11,0) -> 215.17063 | Q41: =+VLOOKUP(C41,'Anexo_GL '!$B$9:$O$1882,12,0) -> 348.4507 | R41: =+VLOOKUP(C41,'Anexo_GL '!$B$9:$O$1882,13,0) -> -133.28007 | S41: =+VLOOKUP(C41,'Anexo_GL '!$B$9:$O$1882,14,0) -> No Cumple
A42: 010115 : MD DE MONTEVIDEO | B42: 15 | C42: 010115 | D42: AMAZONAS | E42: MD DE MONTEVIDEO | F42: =+VLOOKUP(C42,'Anexo_GL '!$B$9:$O$1882,4,0) -> 180.82289 | H42: =+VLOOKUP(C42,'Anexo_GL '!$B$9:$O$1882,5,0) -> 844.4286475 | I42: =+VLOOKUP(C42,'Anexo_GL '!$B$9:$O$1882,6,0) -> 0 | J42: =+VLOOKUP(C42,'Anexo_GL '!$B$9:$O$1882,7,0) -> 0 | L42: =+VLOOKUP(C42,'Anexo_GL '!$B$9:$O$1882,8,0) -> 21.41363756 | N42: =+VLOOKUP(C42,'Anexo_GL '!$B$9:$O$1882,9,0) -> Si Cumple | P42: =+VLOOKUP(C42,'Anexo_GL '!$B$9:$O$1882,11,0) -> 155.64939 | Q42: =+VLOOKUP(C42,'Anexo_GL '!$B$9:$O$1882,12,0) -> 216.38857 | R42: =+VLOOKUP(C42,'Anexo_GL '!$B$9:$O$1882,13,0) -> -60.73918 | S42: =+VLOOKUP(C42,'Anexo_GL '!$B$9:$O$1882,14,0) -> No Cumple
A43: 010116 : MD DE OLLEROS | B43: 16 | C43: 010116 | D43: AMAZONAS | E43: MD DE OLLEROS | F43: =+VLOOKUP(C43,'Anexo_GL '!$B$9:$O$1882,4,0) -> 83.10466 | H43: =+VLOOKUP(C43,'Anexo_GL '!$B$9:$O$1882,5,0) -> 773.8579275 | I43: =+VLOOKUP(C43,'Anexo_GL '!$B$9:$O$1882,6,0) -> 0.00029 | J43: =+VLOOKUP(C43,'Anexo_GL '!$B$9:$O$1882,7,0) -> 0 | L43: =+VLOOKUP(C43,'Anexo_GL '!$B$9:$O$1882,8,0) -> 10.73900739 | N43: =+VLOOKUP(C43,'Anexo_GL '!$B$9:$O$1882,9,0) -> Si Cumple | P43: =+VLOOKUP(C43,'Anexo_GL '!$B$9:$O$1882,11,0) -> 150.80043 | Q43: =+VLOOKUP(C43,'Anexo_GL '!$B$9:$O$1882,12,0) -> 232.81073 | R43: =+VLOOKUP(C43,'Anexo_GL '!$B$9:$O$1882,13,0) -> -82.0103 | S43: =+VLOOKUP(C43,'Anexo_GL '!$B$9:$O$1882,14,0) -> No Cumple
A44: 010117 : MD DE QUINJALCA | B44: 17 | C44: 010117 | D44: AMAZONAS | E44: MD DE QUINJALCA | F44: =+VLOOKUP(C44,'Anexo_GL '!$B$9:$O$1882,4,0) -> 8.78815 | H44: =+VLOOKUP(C44,'Anexo_GL '!$B$9:$O$1882,5,0) -> 762.0807975 | I44: =+VLOOKUP(C44,'Anexo_GL '!$B$9:$O$1882,6,0) -> 0.00137 | J44: =+VLOOKUP(C44,'Anexo_GL '!$B$9:$O$1882,7,0) -> 0 | L44: =+VLOOKUP(C44,'Anexo_GL '!$B$9:$O$1882,8,0) -> 1.153178249 | N44: =+VLOOKUP(C44,'Anexo_GL '!$B$9:$O$1882,9,0) -> Si Cumple | P44: =+VLOOKUP(C44,'Anexo_GL '!$B$9:$O$1882,11,0) -> 219.79083 | Q44: =+VLOOKUP(C44,'Anexo_GL '!$B$9:$O$1882,12,0) -> 232.54053 | R44: =+VLOOKUP(C44,'Anexo_GL '!$B$9:$O$1882,13,0) -> -12.7497 | S44: =+VLOOKUP(C44,'Anexo_GL '!$B$9:$O$1882,14,0) -> No Cumple
A45: 010118 : MD DE SAN FRANCISCO DE DAGUAS | B45: 18 | C45: 010118 | D45: AMAZONAS | E45: MD DE SAN FRANCISCO DE DAGUAS | F45: =+VLOOKUP(C45,'Anexo_GL '!$B$9:$O$1882,4,0) -> 60.14046 | H45: =+VLOOKUP(C45,'Anexo_GL '!$B$9:$O$1882,5,0) -> 742.7253875 | I45: =+VLOOKUP(C45,'Anexo_GL '!$B$9:$O$1882,6,0) -> 0.00029 | J45: =+VLOOKUP(C45,'Anexo_GL '!$B$9:$O$1882,7,0) -> 0 | L45: =+VLOOKUP(C45,'Anexo_GL '!$B$9:$O$1882,8,0) -> 8.097267309 | N45: =+VLOOKUP(C45,'Anexo_GL '!$B$9:$O$1882,9,0) -> Si Cumple | P45: =+VLOOKUP(C45,'Anexo_GL '!$B$9:$O$1882,11,0) -> 242.17778 | Q45: =+VLOOKUP(C45,'Anexo_GL '!$B$9:$O$1882,12,0) -> 185.99891 | R45: =+VLOOKUP(C45,'Anexo_GL '!$B$9:$O$1882,13,0) -> 56.17887 | S45: =+VLOOKUP(C45,'Anexo_GL '!$B$9:$O$1882,14,0) -> Si Cumple
A46: 010119 : MD DE SAN ISIDRO DE MAYNO | B46: 19 | C46: 010119 | D46: AMAZONAS | E46: MD DE SAN ISIDRO DE MAYNO | F46: =+VLOOKUP(C46,'Anexo_GL '!$B$9:$O$1882,4,0) -> 105.1625 | H46: =+VLOOKUP(C46,'Anexo_GL '!$B$9:$O$1882,5,0) -> 848.124465 | I46: =+VLOOKUP(C46,'Anexo_GL '!$B$9:$O$1882,6,0) -> 0 | J46: =+VLOOKUP(C46,'Anexo_GL '!$B$9:$O$1882,7,0) -> 0 | L46: =+VLOOKUP(C46,'Anexo_GL '!$B$9:$O$1882,8,0) -> 12.39941829 | N46: =+VLOOKUP(C46,'Anexo_GL '!$B$9:$O$1882,9,0) -> Si Cumple | P46: =+VLOOKUP(C46,'Anexo_GL '!$B$9:$O$1882,11,0) -> 380.04842 | Q46: =+VLOOKUP(C46,'Anexo_GL '!$B$9:$O$1882,12,0) -> 281.7015 | R46: =+VLOOKUP(C46,'Anexo_GL '!$B$9:$O$1882,13,0) -> 98.34692 | S46: =+VLOOKUP(C46,'Anexo_GL '!$B$9:$O$1882,14,0) -> Si Cumple
A47: 010120 : MD DE SOLOCO | B47: 20 | C47: 010120 | D47: AMAZONAS | E47: MD DE SOLOCO | F47: =+VLOOKUP(C47,'Anexo_GL '!$B$9:$O$1882,4,0) -> 953.85045 | H47: =+VLOOKUP(C47,'Anexo_GL '!$B$9:$O$1882,5,0) -> 938.27131 | I47: =+VLOOKUP(C47,'Anexo_GL '!$B$9:$O$1882,6,0) -> 0.00107 | J47: =+VLOOKUP(C47,'Anexo_GL '!$B$9:$O$1882,7,0) -> 0 | L47: =+VLOOKUP(C47,'Anexo_GL '!$B$9:$O$1882,8,0) -> 101.6604089 | N47: =+VLOOKUP(C47,'Anexo_GL '!$B$9:$O$1882,9,0) -> No Cumple | P47: =+VLOOKUP(C47,'Anexo_GL '!$B$9:$O$1882,11,0) -> 502.07852 | Q47: =+VLOOKUP(C47,'Anexo_GL '!$B$9:$O$1882,12,0) -> 264.36331 | R47: =+VLOOKUP(C47,'Anexo_GL '!$B$9:$O$1882,13,0) -> 237.71521 | S47: =+VLOOKUP(C47,'Anexo_GL '!$B$9:$O$1882,14,0) -> Si Cumple
A48: 010121 : MD DE SONCHE | B48: 21 | C48: 010121 | D48: AMAZONAS | E48: MD DE SONCHE | F48: =+VLOOKUP(C48,'Anexo_GL '!$B$9:$O$1882,4,0) -> 20.11923 | H48: =+VLOOKUP(C48,'Anexo_GL '!$B$9:$O$1882,5,0) -> 944.0858925 | I48: =+VLOOKUP(C48,'Anexo_GL '!$B$9:$O$1882,6,0) -> 0.00147 | J48: =+VLOOKUP(C48,'Anexo_GL '!$B$9:$O$1882,7,0) -> 0 | L48: =+VLOOKUP(C48,'Anexo_GL '!$B$9:$O$1882,8,0) -> 2.131080462 | N48: =+VLOOKUP(C48,'Anexo_GL '!$B$9:$O$1882,9,0) -> Si Cumple | P48: =+VLOOKUP(C48,'Anexo_GL '!$B$9:$O$1882,11,0) -> 290.65929 | Q48: =+VLOOKUP(C48,'Anexo_GL '!$B$9:$O$1882,12,0) -> 225.47471 | R48: =+VLOOKUP(C48,'Anexo_GL '!$B$9:$O$1882,13,0) -> 65.18458 | S48: =+VLOOKUP(C48,'Anexo_GL '!$B$9:$O$1882,14,0) -> Si Cumple
A49: 010201 : MP DE BAGUA - LA PECA | B49: 22 | C49: 010201 | D49: AMAZONAS | E49: MP DE BAGUA - LA PECA | F49: =+VLOOKUP(C49,'Anexo_GL '!$B$9:$O$1882,4,0) -> 1451.08741 | H49: =+VLOOKUP(C49,'Anexo_GL '!$B$9:$O$1882,5,0) -> 28852.74977 | I49: =+VLOOKUP(C49,'Anexo_GL '!$B$9:$O$1882,6,0) -> 0.80523 | J49: =+VLOOKUP(C49,'Anexo_GL '!$B$9:$O$1882,7,0) -> 0 | L49: =+VLOOKUP(C49,'Anexo_GL '!$B$9:$O$1882,8,0) -> 5.029286364 | N49: =+VLOOKUP(C49,'Anexo_GL '!$B$9:$O$1882,9,0) -> Si Cumple | P49: =+VLOOKUP(C49,'Anexo_GL '!$B$9:$O$1882,11,0) -> 10512.45622 | Q49: =+VLOOKUP(C49,'Anexo_GL '!$B$9:$O$1882,12,0) -> 8276.67406 | R49: =+VLOOKUP(C49,'Anexo_GL '!$B$9:$O$1882,13,0) -> 2235.78216 | S49: =+VLOOKUP(C49,'Anexo_GL '!$B$9:$O$1882,14,0) -> Si Cumple
A50: 010202 : MD DE ARAMANGO | B50: 23 | C50: 010202 | D50: AMAZONAS | E50: MD DE ARAMANGO | F50: =+VLOOKUP(C50,'Anexo_GL '!$B$9:$O$1882,4,0) -> 1941.88383 | H50: =+VLOOKUP(C50,'Anexo_GL '!$B$9:$O$1882,5,0) -> 5946.310652 | I50: =+VLOOKUP(C50,'Anexo_GL '!$B$9:$O$1882,6,0) -> 1.11037 | J50: =+VLOOKUP(C50,'Anexo_GL '!$B$9:$O$1882,7,0) -> 0 | L50: =+VLOOKUP(C50,'Anexo_GL '!$B$9:$O$1882,8,0) -> 32.65695224 | N50: =+VLOOKUP(C50,'Anexo_GL '!$B$9:$O$1882,9,0) -> Si Cumple | P50: =+VLOOKUP(C50,'Anexo_GL '!$B$9:$O$1882,11,0) -> 1578.4772 | Q50: =+VLOOKUP(C50,'Anexo_GL '!$B$9:$O$1882,12,0) -> 2071.04166 | R50: =+VLOOKUP(C50,'Anexo_GL '!$B$9:$O$1882,13,0) -> -492.56446 | S50: =+VLOOKUP(C50,'Anexo_GL '!$B$9:$O$1882,14,0) -> No Cumple
A51: 010203 : MD DE COPALLIN | B51: 24 | C51: 010203 | D51: AMAZONAS | E51: MD DE COPALLIN | F51: =+VLOOKUP(C51,'Anexo_GL '!$B$9:$O$1882,4,0) -> 684.26368 | H51: =+VLOOKUP(C51,'Anexo_GL '!$B$9:$O$1882,5,0) -> 2688.330805 | I51: =+VLOOKUP(C51,'Anexo_GL '!$B$9:$O$1882,6,0) -> 0.00186 | J51: =+VLOOKUP(C51,'Anexo_GL '!$B$9:$O$1882,7,0) -> 0 | L51: =+VLOOKUP(C51,'Anexo_GL '!$B$9:$O$1882,8,0) -> 25.45310565 | N51: =+VLOOKUP(C51,'Anexo_GL '!$B$9:$O$1882,9,0) -> Si Cumple | P51: =+VLOOKUP(C51,'Anexo_GL '!$B$9:$O$1882,11,0) -> 1175.88765 | Q51: =+VLOOKUP(C51,'Anexo_GL '!$B$9:$O$1882,12,0) -> 1334.00112 | R51: =+VLOOKUP(C51,'Anexo_GL '!$B$9:$O$1882,13,0) -> -158.11347 | S51: =+VLOOKUP(C51,'Anexo_GL '!$B$9:$O$1882,14,0) -> No Cumple
A52: 010204 : MD DE EL PARCO | B52: 25 | C52: 010204 | D52: AMAZONAS | E52: MD DE EL PARCO | F52: =+VLOOKUP(C52,'Anexo_GL '!$B$9:$O$1882,4,0) -> 181.34501 | H52: =+VLOOKUP(C52,'Anexo_GL '!$B$9:$O$1882,5,0) -> 4362.884035 | I52: =+VLOOKUP(C52,'Anexo_GL '!$B$9:$O$1882,6,0) -> 0.00078 | J52: =+VLOOKUP(C52,'Anexo_GL '!$B$9:$O$1882,7,0) -> 0 | L52: =+VLOOKUP(C52,'Anexo_GL '!$B$9:$O$1882,8,0) -> 4.156539769 | N52: =+VLOOKUP(C52,'Anexo_GL '!$B$9:$O$1882,9,0) -> Si Cumple | P52: =+VLOOKUP(C52,'Anexo_GL '!$B$9:$O$1882,11,0) -> 385.5359 | Q52: =+VLOOKUP(C52,'Anexo_GL '!$B$9:$O$1882,12,0) -> 503.19351 | R52: =+VLOOKUP(C52,'Anexo_GL '!$B$9:$O$1882,13,0) -> -117.65761 | S52: =+VLOOKUP(C52,'Anexo_GL '!$B$9:$O$1882,14,0) -> No Cumple
A53: 010205 : MD DE IMAZA | B53: 26 | C53: 010205 | D53: AMAZONAS | E53: MD DE IMAZA | F53: =+VLOOKUP(C53,'Anexo_GL '!$B$9:$O$1882,4,0) -> 8711.65981 | H53: =+VLOOKUP(C53,'Anexo_GL '!$B$9:$O$1882,5,0) -> 13230.47839 | I53: =+VLOOKUP(C53,'Anexo_GL '!$B$9:$O$1882,6,0) -> 2.21948 | J53: =+VLOOKUP(C53,'Anexo_GL '!$B$9:$O$1882,7,0) -> 0 | L53: =+VLOOKUP(C53,'Anexo_GL '!$B$9:$O$1882,8,0) -> 65.84538784 | N53: =+VLOOKUP(C53,'Anexo_GL '!$B$9:$O$1882,9,0) -> Si Cumple | P53: =+VLOOKUP(C53,'Anexo_GL '!$B$9:$O$1882,11,0) -> 4869.40752 | Q53: =+VLOOKUP(C53,'Anexo_GL '!$B$9:$O$1882,12,0) -> 4670.92985 | R53: =+VLOOKUP(C53,'Anexo_GL '!$B$9:$O$1882,13,0) -> 198.47767 | S53: =+VLOOKUP(C53,'Anexo_GL '!$B$9:$O$1882,14,0) -> Si Cumple
A54: 010206 : MD DE LA PECA | B54: 27 | C54: 010206 | D54: AMAZONAS | E54: MD DE LA PECA | F54: =+VLOOKUP(C54,'Anexo_GL '!$B$9:$O$1882,4,0) -> 284.98675 | H54: =+VLOOKUP(C54,'Anexo_GL '!$B$9:$O$1882,5,0) -> 3734.94891 | I54: =+VLOOKUP(C54,'Anexo_GL '!$B$9:$O$1882,6,0) -> 0.00264 | J54: =+VLOOKUP(C54,'Anexo_GL '!$B$9:$O$1882,7,0) -> 0 | L54: =+VLOOKUP(C54,'Anexo_GL '!$B$9:$O$1882,8,0) -> 7.630271708 | N54: =+VLOOKUP(C54,'Anexo_GL '!$B$9:$O$1882,9,0) -> Si Cumple | P54: =+VLOOKUP(C54,'Anexo_GL '!$B$9:$O$1882,11,0) -> 1564.05167 | Q54: =+VLOOKUP(C54,'Anexo_GL '!$B$9:$O$1882,12,0) -> 1169.79279 | R54: =+VLOOKUP(C54,'Anexo_GL '!$B$9:$O$1882,13,0) -> 394.25888 | S54: =+VLOOKUP(C54,'Anexo_GL '!$B$9:$O$1882,14,0) -> Si Cumple
A55: 010301 : MP DE BONGARA - JUMBILLA | B55: 28 | C55: 010301 | D55: AMAZONAS | E55: MP DE BONGARA - JUMBILLA | F55: =+VLOOKUP(C55,'Anexo_GL '!$B$9:$O$1882,4,0) -> 1977.10487 | H55: =+VLOOKUP(C55,'Anexo_GL '!$B$9:$O$1882,5,0) -> 7069.750443 | I55: =+VLOOKUP(C55,'Anexo_GL '!$B$9:$O$1882,6,0) -> 0.00107 | J55: =+VLOOKUP(C55,'Anexo_GL '!$B$9:$O$1882,7,0) -> 0 | L55: =+VLOOKUP(C55,'Anexo_GL '!$B$9:$O$1882,8,0) -> 27.96569534 | N55: =+VLOOKUP(C55,'Anexo_GL '!$B$9:$O$1882,9,0) -> Si Cumple | P55: =+VLOOKUP(C55,'Anexo_GL '!$B$9:$O$1882,11,0) -> 1776.22376 | Q55: =+VLOOKUP(C55,'Anexo_GL '!$B$9:$O$1882,12,0) -> 1405.01976 | R55: =+VLOOKUP(C55,'Anexo_GL '!$B$9:$O$1882,13,0) -> 371.204 | S55: =+VLOOKUP(C55,'Anexo_GL '!$B$9:$O$1882,14,0) -> Si Cumple
A56: 010302 : MD DE CHISQUILLA | B56: 29 | C56: 010302 | D56: AMAZONAS | E56: MD DE CHISQUILLA | F56: =+VLOOKUP(C56,'Anexo_GL '!$B$9:$O$1882,4,0) -> 21.643 | H56: =+VLOOKUP(C56,'Anexo_GL '!$B$9:$O$1882,5,0) -> 862.161295 | I56: =+VLOOKUP(C56,'Anexo_GL '!$B$9:$O$1882,6,0) -> 0.00107 | J56: =+VLOOKUP(C56,'Anexo_GL '!$B$9:$O$1882,7,0) -> 0 | L56: =+VLOOKUP(C56,'Anexo_GL '!$B$9:$O$1882,8,0) -> 2.510319139 | N56: =+VLOOKUP(C56,'Anexo_GL '!$B$9:$O$1882,9,0) -> Si Cumple | P56: =+VLOOKUP(C56,'Anexo_GL '!$B$9:$O$1882,11,0) -> 143.47634 | Q56: =+VLOOKUP(C56,'Anexo_GL '!$B$9:$O$1882,12,0) -> 210.00086 | R56: =+VLOOKUP(C56,'Anexo_GL '!$B$9:$O$1882,13,0) -> -66.52452 | S56: =+VLOOKUP(C56,'Anexo_GL '!$B$9:$O$1882,14,0) -> No Cumple
A57: 010303 : MD DE CHURUJA | B57: 30 | C57: 010303 | D57: AMAZONAS | E57: MD DE CHURUJA | F57: =+VLOOKUP(C57,'Anexo_GL '!$B$9:$O$1882,4,0) -> 37.01171 | H57: =+VLOOKUP(C57,'Anexo_GL '!$B$9:$O$1882,5,0) -> 793.180445 | I57: =+VLOOKUP(C57,'Anexo_GL '!$B$9:$O$1882,6,0) -> 0 | J57: =+VLOOKUP(C57,'Anexo_GL '!$B$9:$O$1882,7,0) -> 0 | L57: =+VLOOKUP(C57,'Anexo_GL '!$B$9:$O$1882,8,0) -> 4.666240858 | N57: =+VLOOKUP(C57,'Anexo_GL '!$B$9:$O$1882,9,0) -> Si Cumple | P57: =+VLOOKUP(C57,'Anexo_GL '!$B$9:$O$1882,11,0) -> 207.91131 | Q57: =+VLOOKUP(C57,'Anexo_GL '!$B$9:$O$1882,12,0) -> 263.21374 | R57: =+VLOOKUP(C57,'Anexo_GL '!$B$9:$O$1882,13,0) -> -55.30243 | S57: =+VLOOKUP(C57,'Anexo_GL '!$B$9:$O$1882,14,0) -> No Cumple
A58: 010304 : MD DE COROSHA | B58: 31 | C58: 010304 | D58: AMAZONAS | E58: MD DE COROSHA | F58: =+VLOOKUP(C58,'Anexo_GL '!$B$9:$O$1882,4,0) -> 37.04752 | H58: =+VLOOKUP(C58,'Anexo_GL '!$B$9:$O$1882,5,0) -> 1125.469755 | I58: =+VLOOKUP(C58,'Anexo_GL '!$B$9:$O$1882,6,0) -> 0.00216 | J58: =+VLOOKUP(C58,'Anexo_GL '!$B$9:$O$1882,7,0) -> 0 | L58: =+VLOOKUP(C58,'Anexo_GL '!$B$9:$O$1882,8,0) -> 3.291738391 | N58: =+VLOOKUP(C58,'Anexo_GL '!$B$9:$O$1882,9,0) -> Si Cumple | P58: =+VLOOKUP(C58,'Anexo_GL '!$B$9:$O$1882,11,0) -> 315.93989 | Q58: =+VLOOKUP(C58,'Anexo_GL '!$B$9:$O$1882,12,0) -> 220.86189 | R58: =+VLOOKUP(C58,'Anexo_GL '!$B$9:$O$1882,13,0) -> 95.078 | S58: =+VLOOKUP(C58,'Anexo_GL '!$B$9:$O$1882,14,0) -> Si Cumple
A59: 010305 : MD DE CUISPES | B59: 32 | C59: 010305 | D59: AMAZONAS | E59: MD DE CUISPES | F59: =+VLOOKUP(C59,'Anexo_GL '!$B$9:$O$1882,4,0) -> 47.16992 | H59: =+VLOOKUP(C59,'Anexo_GL '!$B$9:$O$1882,5,0) -> 825.2903525 | I59: =+VLOOKUP(C59,'Anexo_GL '!$B$9:$O$1882,6,0) -> 0.00107 | J59: =+VLOOKUP(C59,'Anexo_GL '!$B$9:$O$1882,7,0) -> 0 | L59: =+VLOOKUP(C59,'Anexo_GL '!$B$9:$O$1882,8,0) -> 5.715554514 | N59: =+VLOOKUP(C59,'Anexo_GL '!$B$9:$O$1882,9,0) -> Si Cumple | P59: =+VLOOKUP(C59,'Anexo_GL '!$B$9:$O$1882,11,0) -> 295.37453 | Q59: =+VLOOKUP(C59,'Anexo_GL '!$B$9:$O$1882,12,0) -> 234.89175 | R59: =+VLOOKUP(C59,'Anexo_GL '!$B$9:$O$1882,13,0) -> 60.48278 | S59: =+VLOOKUP(C59,'Anexo_GL '!$B$9:$O$1882,14,0) -> Si Cumple
A60: 010306 : MD DE FLORIDA | B60: 33 | C60: 010306 | D60: AMAZONAS | E60: MD DE FLORIDA | F60: =+VLOOKUP(C60,'Anexo_GL '!$B$9:$O$1882,4,0) -> 1655.36948 | H60: =+VLOOKUP(C60,'Anexo_GL '!$B$9:$O$1882,5,0) -> 3489.14528 | I60: =+VLOOKUP(C60,'Anexo_GL '!$B$9:$O$1882,6,0) -> 0.01538 | J60: =+VLOOKUP(C60,'Anexo_GL '!$B$9:$O$1882,7,0) -> 0 | L60: =+VLOOKUP(C60,'Anexo_GL '!$B$9:$O$1882,8,0) -> 47.44340941 | N60: =+VLOOKUP(C60,'Anexo_GL '!$B$9:$O$1882,9,0) -> Si Cumple | P60: =+VLOOKUP(C60,'Anexo_GL '!$B$9:$O$1882,11,0) -> 918.07825 | Q60: =+VLOOKUP(C60,'Anexo_GL '!$B$9:$O$1882,12,0) -> 999.0549 | R60: =+VLOOKUP(C60,'Anexo_GL '!$B$9:$O$1882,13,0) -> -80.97665 | S60: =+VLOOKUP(C60,'Anexo_GL '!$B$9:$O$1882,14,0) -> No Cumple
A61: 010307 : MD DE JAZAN | B61: 34 | C61: 010307 | D61: AMAZONAS | E61: MD DE JAZAN | F61: =+VLOOKUP(C61,'Anexo_GL '!$B$9:$O$1882,4,0) -> 1902.39647 | H61: =+VLOOKUP(C61,'Anexo_GL '!$B$9:$O$1882,5,0) -> 3623.648427 | I61: =+VLOOKUP(C61,'Anexo_GL '!$B$9:$O$1882,6,0) -> 0.00647 | J61: =+VLOOKUP(C61,'Anexo_GL '!$B$9:$O$1882,7,0) -> 0 | L61: =+VLOOKUP(C61,'Anexo_GL '!$B$9:$O$1882,8,0) -> 52.49947692 | N61: =+VLOOKUP(C61,'Anexo_GL '!$B$9:$O$1882,9,0) -> Si Cumple | P61: =+VLOOKUP(C61,'Anexo_GL '!$B$9:$O$1882,11,0) -> 1426.65601 | Q61: =+VLOOKUP(C61,'Anexo_GL '!$B$9:$O$1882,12,0) -> 1525.47723 | R61: =+VLOOKUP(C61,'Anexo_GL '!$B$9:$O$1882,13,0) -> -98.82122 | S61: =+VLOOKUP(C61,'Anexo_GL '!$B$9:$O$1882,14,0) -> No Cumple
A62: 010308 : MD DE RECTA | B62: 35 | C62: 010308 | D62: AMAZONAS | E62: MD DE RECTA | F62: =+VLOOKUP(C62,'Anexo_GL '!$B$9:$O$1882,4,0) -> 25.39805 | H62: =+VLOOKUP(C62,'Anexo_GL '!$B$9:$O$1882,5,0) -> 929.2638275 | I62: =+VLOOKUP(C62,'Anexo_GL '!$B$9:$O$1882,6,0) -> 0 | J62: =+VLOOKUP(C62,'Anexo_GL '!$B$9:$O$1882,7,0) -> 0 | L62: =+VLOOKUP(C62,'Anexo_GL '!$B$9:$O$1882,8,0) -> 2.733136624 | N62: =+VLOOKUP(C62,'Anexo_GL '!$B$9:$O$1882,9,0) -> Si Cumple | P62: =+VLOOKUP(C62,'Anexo_GL '!$B$9:$O$1882,11,0) -> 143.88131 | Q62: =+VLOOKUP(C62,'Anexo_GL '!$B$9:$O$1882,12,0) -> 182.44264 | R62: =+VLOOKUP(C62,'Anexo_GL '!$B$9:$O$1882,13,0) -> -38.56133 | S62: =+VLOOKUP(C62,'Anexo_GL '!$B$9:$O$1882,14,0) -> No Cumple
A63: 010309 : MD DE SAN CARLOS | B63: 36 | C63: 010309 | D63: AMAZONAS | E63: MD DE SAN CARLOS | F63: =+VLOOKUP(C63,'Anexo_GL '!$B$9:$O$1882,4,0) -> 71.0012 | H63: =+VLOOKUP(C63,'Anexo_GL '!$B$9:$O$1882,5,0) -> 791.31077 | I63: =+VLOOKUP(C63,'Anexo_GL '!$B$9:$O$1882,6,0) -> 0.00107 | J63: =+VLOOKUP(C63,'Anexo_GL '!$B$9:$O$1882,7,0) -> 0 | L63: =+VLOOKUP(C63,'Anexo_GL '!$B$9:$O$1882,8,0) -> 8.9726063 | N63: =+VLOOKUP(C63,'Anexo_GL '!$B$9:$O$1882,9,0) -> Si Cumple | P63: =+VLOOKUP(C63,'Anexo_GL '!$B$9:$O$1882,11,0) -> 257.59372 | Q63: =+VLOOKUP(C63,'Anexo_GL '!$B$9:$O$1882,12,0) -> 252.08487 | R63: =+VLOOKUP(C63,'Anexo_GL '!$B$9:$O$1882,13,0) -> 5.50885 | S63: =+VLOOKUP(C63,'Anexo_GL '!$B$9:$O$1882,14,0) -> Si Cumple
A64: 010310 : MD DE SHIPASBAMBA | B64: 37 | C64: 010310 | D64: AMAZONAS | E64: MD DE SHIPASBAMBA | F64: =+VLOOKUP(C64,'Anexo_GL '!$B$9:$O$1882,4,0) -> 29.29367 | H64: =+VLOOKUP(C64,'Anexo_GL '!$B$9:$O$1882,5,0) -> 1254.84014 | I64: =+VLOOKUP(C64,'Anexo_GL '!$B$9:$O$1882,6,0) -> 0.00294 | J64: =+VLOOKUP(C64,'Anexo_GL '!$B$9:$O$1882,7,0) -> 0 | L64: =+VLOOKUP(C64,'Anexo_GL '!$B$9:$O$1882,8,0) -> 2.334454331 | N64: =+VLOOKUP(C64,'Anexo_GL '!$B$9:$O$1882,9,0) -> Si Cumple | P64: =+VLOOKUP(C64,'Anexo_GL '!$B$9:$O$1882,11,0) -> 450.09543 | Q64: =+VLOOKUP(C64,'Anexo_GL '!$B$9:$O$1882,12,0) -> 278.30622 | R64: =+VLOOKUP(C64,'Anexo_GL '!$B$9:$O$1882,13,0) -> 171.78921 | S64: =+VLOOKUP(C64,'Anexo_GL '!$B$9:$O$1882,14,0) -> Si Cumple
A65: 010311 : MD DE VALERA | B65: 38 | C65: 010311 | D65: AMAZONAS | E65: MD DE VALERA | F65: =+VLOOKUP(C65,'Anexo_GL '!$B$9:$O$1882,4,0) -> 42.90919 | H65: =+VLOOKUP(C65,'Anexo_GL '!$B$9:$O$1882,5,0) -> 890.1636325 | I65: =+VLOOKUP(C65,'Anexo_GL '!$B$9:$O$1882,6,0) -> 0.00107 | J65: =+VLOOKUP(C65,'Anexo_GL '!$B$9:$O$1882,7,0) -> 0 | L65: =+VLOOKUP(C65,'Anexo_GL '!$B$9:$O$1882,8,0) -> 4.820371046 | N65: =+VLOOKUP(C65,'Anexo_GL '!$B$9:$O$1882,9,0) -> Si Cumple | P65: =+VLOOKUP(C65,'Anexo_GL '!$B$9:$O$1882,11,0) -> 199.44297 | Q65: =+VLOOKUP(C65,'Anexo_GL '!$B$9:$O$1882,12,0) -> 267.76748 | R65: =+VLOOKUP(C65,'Anexo_GL '!$B$9:$O$1882,13,0) -> -68.32451 | S65: =+VLOOKUP(C65,'Anexo_GL '!$B$9:$O$1882,14,0) -> No Cumple
A66: 010312 : MD DE YAMBRASBAMBA | B66: 39 | C66: 010312 | D66: AMAZONAS | E66: MD DE YAMBRASBAMBA | F66: =+VLOOKUP(C66,'Anexo_GL '!$B$9:$O$1882,4,0) -> 917.37757 | H66: =+VLOOKUP(C66,'Anexo_GL '!$B$9:$O$1882,5,0) -> 3589.839675 | I66: =+VLOOKUP(C66,'Anexo_GL '!$B$9:$O$1882,6,0) -> 0.01724 | J66: =+VLOOKUP(C66,'Anexo_GL '!$B$9:$O$1882,7,0) -> 0 | L66: =+VLOOKUP(C66,'Anexo_GL '!$B$9:$O$1882,8,0) -> 25.55483401 | N66: =+VLOOKUP(C66,'Anexo_GL '!$B$9:$O$1882,9,0) -> Si Cumple | P66: =+VLOOKUP(C66,'Anexo_GL '!$B$9:$O$1882,11,0) -> 985.36834 | Q66: =+VLOOKUP(C66,'Anexo_GL '!$B$9:$O$1882,12,0) -> 1057.29653 | R66: =+VLOOKUP(C66,'Anexo_GL '!$B$9:$O$1882,13,0) -> -71.92819 | S66: =+VLOOKUP(C66,'Anexo_GL '!$B$9:$O$1882,14,0) -> No Cumple
A67: 010401 : MP DE CONDORCANQUI - NIEVA | B67: 40 | C67: 010401 | D67: AMAZONAS | E67: MP DE CONDORCANQUI - NIEVA | F67: =+VLOOKUP(C67,'Anexo_GL '!$B$9:$O$1882,4,0) -> 862.69359 | H67: =+VLOOKUP(C67,'Anexo_GL '!$B$9:$O$1882,5,0) -> 27615.45654 | I67: =+VLOOKUP(C67,'Anexo_GL '!$B$9:$O$1882,6,0) -> 2.39904 | J67: =+VLOOKUP(C67,'Anexo_GL '!$B$9:$O$1882,7,0) -> 0 | L67: =+VLOOKUP(C67,'Anexo_GL '!$B$9:$O$1882,8,0) -> 3.123951939 | N67: =+VLOOKUP(C67,'Anexo_GL '!$B$9:$O$1882,9,0) -> Si Cumple | P67: =+VLOOKUP(C67,'Anexo_GL '!$B$9:$O$1882,11,0) -> 14170.85956 | Q67: =+VLOOKUP(C67,'Anexo_GL '!$B$9:$O$1882,12,0) -> 8402.78325 | R67: =+VLOOKUP(C67,'Anexo_GL '!$B$9:$O$1882,13,0) -> 5768.07631 | S67: =+VLOOKUP(C67,'Anexo_GL '!$B$9:$O$1882,14,0) -> Si Cumple
A68: 010402 : MD DE EL CENEPA | B68: 41 | C68: 010402 | D68: AMAZONAS | E68: MD DE EL CENEPA | F68: =+VLOOKUP(C68,'Anexo_GL '!$B$9:$O$1882,4,0) -> 1949.35986 | H68: =+VLOOKUP(C68,'Anexo_GL '!$B$9:$O$1882,5,0) -> 8571.200085 | I68: =+VLOOKUP(C68,'Anexo_GL '!$B$9:$O$1882,6,0) -> 0.61545 | J68: =+VLOOKUP(C68,'Anexo_GL '!$B$9:$O$1882,7,0) -> 0 | L68: =+VLOOKUP(C68,'Anexo_GL '!$B$9:$O$1882,8,0) -> 22.74313796 | N68: =+VLOOKUP(C68,'Anexo_GL '!$B$9:$O$1882,9,0) -> Si Cumple | P68: =+VLOOKUP(C68,'Anexo_GL '!$B$9:$O$1882,11,0) -> 4162.72786 | Q68: =+VLOOKUP(C68,'Anexo_GL '!$B$9:$O$1882,12,0) -> 3547.73358 | R68: =+VLOOKUP(C68,'Anexo_GL '!$B$9:$O$1882,13,0) -> 614.99428 | S68: =+VLOOKUP(C68,'Anexo_GL '!$B$9:$O$1882,14,0) -> Si Cumple
A69: 010403 : MD DE RIO SANTIAGO | B69: 42 | C69: 010403 | D69: AMAZONAS | E69: MD DE RIO SANTIAGO | F69: =+VLOOKUP(C69,'Anexo_GL '!$B$9:$O$1882,4,0) -> 2564.72015 | H69: =+VLOOKUP(C69,'Anexo_GL '!$B$9:$O$1882,5,0) -> 12179.20599 | I69: =+VLOOKUP(C69,'Anexo_GL '!$B$9:$O$1882,6,0) -> 1.05004 | J69: =+VLOOKUP(C69,'Anexo_GL '!$B$9:$O$1882,7,0) -> 0 | L69: =+VLOOKUP(C69,'Anexo_GL '!$B$9:$O$1882,8,0) -> 21.05818846 | N69: =+VLOOKUP(C69,'Anexo_GL '!$B$9:$O$1882,9,0) -> Si Cumple | P69: =+VLOOKUP(C69,'Anexo_GL '!$B$9:$O$1882,11,0) -> 4583.42448 | Q69: =+VLOOKUP(C69,'Anexo_GL '!$B$9:$O$1882,12,0) -> 5165.43869 | R69: =+VLOOKUP(C69,'Anexo_GL '!$B$9:$O$1882,13,0) -> -582.01421 | S69: =+VLOOKUP(C69,'Anexo_GL '!$B$9:$O$1882,14,0) -> No Cumple
A70: 010501 : MP DE LUYA - LAMUD | B70: 43 | C70: 010501 | D70: AMAZONAS | E70: MP DE LUYA - LAMUD | F70: =+VLOOKUP(C70,'Anexo_GL '!$B$9:$O$1882,4,0) -> 1436.22895 | H70: =+VLOOKUP(C70,'Anexo_GL '!$B$9:$O$1882,5,0) -> 22678.51248 | I70: =+VLOOKUP(C70,'Anexo_GL '!$B$9:$O$1882,6,0) -> 0 | J70: =+VLOOKUP(C70,'Anexo_GL '!$B$9:$O$1882,7,0) -> 0 | L70: =+VLOOKUP(C70,'Anexo_GL '!$B$9:$O$1882,8,0) -> 6.332994509 | N70: =+VLOOKUP(C70,'Anexo_GL '!$B$9:$O$1882,9,0) -> Si Cumple | P70: =+VLOOKUP(C70,'Anexo_GL '!$B$9:$O$1882,11,0) -> 2320.71053 | Q70: =+VLOOKUP(C70,'Anexo_GL '!$B$9:$O$1882,12,0) -> 1976.19657 | R70: =+VLOOKUP(C70,'Anexo_GL '!$B$9:$O$1882,13,0) -> 344.51396 | S70: =+VLOOKUP(C70,'Anexo_GL '!$B$9:$O$1882,14,0) -> Si Cumple
A71: 010502 : MD DE CAMPORREDONDO | B71: 44 | C71: 010502 | D71: AMAZONAS | E71: MD DE CAMPORREDONDO | F71: =+VLOOKUP(C71,'Anexo_GL '!$B$9:$O$1882,4,0) -> 28.37584 | H71: =+VLOOKUP(C71,'Anexo_GL '!$B$9:$O$1882,5,0) -> 4616.995995 | I71: =+VLOOKUP(C71,'Anexo_GL '!$B$9:$O$1882,6,0) -> 0.00186 | J71: =+VLOOKUP(C71,'Anexo_GL '!$B$9:$O$1882,7,0) -> 0 | L71: =+VLOOKUP(C71,'Anexo_GL '!$B$9:$O$1882,8,0) -> 0.6145952916 | N71: =+VLOOKUP(C71,'Anexo_GL '!$B$9:$O$1882,9,0) -> Si Cumple | P71: =+VLOOKUP(C71,'Anexo_GL '!$B$9:$O$1882,11,0) -> 728.57368 | Q71: =+VLOOKUP(C71,'Anexo_GL '!$B$9:$O$1882,12,0) -> 831.80311 | R71: =+VLOOKUP(C71,'Anexo_GL '!$B$9:$O$1882,13,0) -> -103.22943 | S71: =+VLOOKUP(C71,'Anexo_GL '!$B$9:$O$1882,14,0) -> No Cumple
A72: 010503 : MD DE COCABAMBA | B72: 45 | C72: 010503 | D72: AMAZONAS | E72: MD DE COCABAMBA | F72: =+VLOOKUP(C72,'Anexo_GL '!$B$9:$O$1882,4,0) -> 1652.41303 | H72: =+VLOOKUP(C72,'Anexo_GL '!$B$9:$O$1882,5,0) -> 1217.257427 | I72: =+VLOOKUP(C72,'Anexo_GL '!$B$9:$O$1882,6,0) -> 0.00078 | J72: =+VLOOKUP(C72,'Anexo_GL '!$B$9:$O$1882,7,0) -> 0 | L72: =+VLOOKUP(C72,'Anexo_GL '!$B$9:$O$1882,8,0) -> 135.7488558 | N72: =+VLOOKUP(C72,'Anexo_GL '!$B$9:$O$1882,9,0) -> No Cumple | P72: =+VLOOKUP(C72,'Anexo_GL '!$B$9:$O$1882,11,0) -> 255.04425 | Q72: =+VLOOKUP(C72,'Anexo_GL '!$B$9:$O$1882,12,0) -> 284.3295 | R72: =+VLOOKUP(C72,'Anexo_GL '!$B$9:$O$1882,13,0) -> -29.28525 | S72: =+VLOOKUP(C72,'Anexo_GL '!$B$9:$O$1882,14,0) -> No Cumple
A73: 010504 : MD DE COLCAMAR | B73: 46 | C73: 010504 | D73: AMAZONAS | E73: MD DE COLCAMAR | F73: =+VLOOKUP(C73,'Anexo_GL '!$B$9:$O$1882,4,0) -> 11.08381 | H73: =+VLOOKUP(C73,'Anexo_GL '!$B$9:$O$1882,5,0) -> 1113.232545 | I73: =+VLOOKUP(C73,'Anexo_GL '!$B$9:$O$1882,6,0) -> 0 | J73: =+VLOOKUP(C73,'Anexo_GL '!$B$9:$O$1882,7,0) -> 0 | L73: =+VLOOKUP(C73,'Anexo_GL '!$B$9:$O$1882,8,0) -> 0.9956419303 | N73: =+VLOOKUP(C73,'Anexo_GL '!$B$9:$O$1882,9,0) -> Si Cumple | P73: =+VLOOKUP(C73,'Anexo_GL '!$B$9:$O$1882,11,0) -> 279.46215 | Q73: =+VLOOKUP(C73,'Anexo_GL '!$B$9:$O$1882,12,0) -> 237.65788 | R73: =+VLOOKUP(C73,'Anexo_GL '!$B$9:$O$1882,13,0) -> 41.80427 | S73: =+VLOOKUP(C73,'Anexo_GL '!$B$9:$O$1882,14,0) -> Si Cumple
A74: 010505 : MD DE CONILA | B74: 47 | C74: 010505 | D74: AMAZONAS | E74: MD DE CONILA | F74: =+VLOOKUP(C74,'Anexo_GL '!$B$9:$O$1882,4,0) -> 380.37066 | H74: =+VLOOKUP(C74,'Anexo_GL '!$B$9:$O$1882,5,0) -> 882.0454025 | I74: =+VLOOKUP(C74,'Anexo_GL '!$B$9:$O$1882,6,0) -> 0 | J74: =+VLOOKUP(C74,'Anexo_GL '!$B$9:$O$1882,7,0) -> 0 | L74: =+VLOOKUP(C74,'Anexo_GL '!$B$9:$O$1882,8,0) -> 43.1237053 | N74: =+VLOOKUP(C74,'Anexo_GL '!$B$9:$O$1882,9,0) -> Si Cumple | P74: =+VLOOKUP(C74,'Anexo_GL '!$B$9:$O$1882,11,0) -> 312.0053 | Q74: =+VLOOKUP(C74,'Anexo_GL '!$B$9:$O$1882,12,0) -> 361.18165 | R74: =+VLOOKUP(C74,'Anexo_GL '!$B$9:$O$1882,13,0) -> -49.17635 | S74: =+VLOOKUP(C74,'Anexo_GL '!$B$9:$O$1882,14,0) -> No Cumple
A75: 010506 : MD DE INGUILPATA | B75: 48 | C75: 010506 | D75: AMAZONAS | E75: MD DE INGUILPATA | F75: =+VLOOKUP(C75,'Anexo_GL '!$B$9:$O$1882,4,0) -> 18.75962 | H75: =+VLOOKUP(C75,'Anexo_GL '!$B$9:$O$1882,5,0) -> 969.2085125 | I75: =+VLOOKUP(C75,'Anexo_GL '!$B$9:$O$1882,6,0) -> 0 | J75: =+VLOOKUP(C75,'Anexo_GL '!$B$9:$O$1882,7,0) -> 0 | L75: =+VLOOKUP(C75,'Anexo_GL '!$B$9:$O$1882,8,0) -> 1.935560796 | N75: =+VLOOKUP(C75,'Anexo_GL '!$B$9:$O$1882,9,0) -> Si Cumple | P75: =+VLOOKUP(C75,'Anexo_GL '!$B$9:$O$1882,11,0) -> 229.87543 | Q75: =+VLOOKUP(C75,'Anexo_GL '!$B$9:$O$1882,12,0) -> 232.8475 | R75: =+VLOOKUP(C75,'Anexo_GL '!$B$9:$O$1882,13,0) -> -2.97207 | S75: =+VLOOKUP(C75,'Anexo_GL '!$B$9:$O$1882,14,0) -> No Cumple
A76: 010507 : MD DE LONGUITA | B76: 49 | C76: 010507 | D76: AMAZONAS | E76: MD DE LONGUITA | F76: =+VLOOKUP(C76,'Anexo_GL '!$B$9:$O$1882,4,0) -> 9.19566 | H76: =+VLOOKUP(C76,'Anexo_GL '!$B$9:$O$1882,5,0) -> 1974.66217 | I76: =+VLOOKUP(C76,'Anexo_GL '!$B$9:$O$1882,6,0) -> 0 | J76: =+VLOOKUP(C76,'Anexo_GL '!$B$9:$O$1882,7,0) -> 0 | L76: =+VLOOKUP(C76,'Anexo_GL '!$B$9:$O$1882,8,0) -> 0.4656826945 | N76: =+VLOOKUP(C76,'Anexo_GL '!$B$9:$O$1882,9,0) -> Si Cumple | P76: =+VLOOKUP(C76,'Anexo_GL '!$B$9:$O$1882,11,0) -> 287.79128 | Q76: =+VLOOKUP(C76,'Anexo_GL '!$B$9:$O$1882,12,0) -> 212.30954 | R76: =+VLOOKUP(C76,'Anexo_GL '!$B$9:$O$1882,13,0) -> 75.48174 | S76: =+VLOOKUP(C76,'Anexo_GL '!$B$9:$O$1882,14,0) -> Si Cumple
A77: 010508 : MD DE LONYA CHICO | B77: 50 | C77: 010508 | D77: AMAZONAS | E77: MD DE LONYA CHICO | F77: =+VLOOKUP(C77,'Anexo_GL '!$B$9:$O$1882,4,0) -> 21.37507 | H77: =+VLOOKUP(C77,'Anexo_GL '!$B$9:$O$1882,5,0) -> 1183.054645 | I77: =+VLOOKUP(C77,'Anexo_GL '!$B$9:$O$1882,6,0) -> 0 | J77: =+VLOOKUP(C77,'Anexo_GL '!$B$9:$O$1882,7,0) -> 0 | L77: =+VLOOKUP(C77,'Anexo_GL '!$B$9:$O$1882,8,0) -> 1.806769458 | N77: =+VLOOKUP(C77,'Anexo_GL '!$B$9:$O$1882,9,0) -> Si Cumple | P77: =+VLOOKUP(C77,'Anexo_GL '!$B$9:$O$1882,11,0) -> 361.11881 | Q77: =+VLOOKUP(C77,'Anexo_GL '!$B$9:$O$1882,12,0) -> 411.9767 | R77: =+VLOOKUP(C77,'Anexo_GL '!$B$9:$O$1882,13,0) -> -50.85789 | S77: =+VLOOKUP(C77,'Anexo_GL '!$B$9:$O$1882,14,0) -> No Cumple
A78: 010509 : MD DE LUYA | B78: 51 | C78: 010509 | D78: AMAZONAS | E78: MD DE LUYA | F78: =+VLOOKUP(C78,'Anexo_GL '!$B$9:$O$1882,4,0) -> 30.29392 | H78: =+VLOOKUP(C78,'Anexo_GL '!$B$9:$O$1882,5,0) -> 2348.847263 | I78: =+VLOOKUP(C78,'Anexo_GL '!$B$9:$O$1882,6,0) -> 0.00078 | J78: =+VLOOKUP(C78,'Anexo_GL '!$B$9:$O$1882,7,0) -> 0 | L78: =+VLOOKUP(C78,'Anexo_GL '!$B$9:$O$1882,8,0) -> 1.289735628 | N78: =+VLOOKUP(C78,'Anexo_GL '!$B$9:$O$1882,9,0) -> Si Cumple | P78: =+VLOOKUP(C78,'Anexo_GL '!$B$9:$O$1882,11,0) -> 615.77147 | Q78: =+VLOOKUP(C78,'Anexo_GL '!$B$9:$O$1882,12,0) -> 508.10199 | R78: =+VLOOKUP(C78,'Anexo_GL '!$B$9:$O$1882,13,0) -> 107.66948 | S78: =+VLOOKUP(C78,'Anexo_GL '!$B$9:$O$1882,14,0) -> Si Cumple
A79: 010510 : MD DE LUYA VIEJO | B79: 52 | C79: 010510 | D79: AMAZONAS | E79: MD DE LUYA VIEJO | F79: =+VLOOKUP(C79,'Anexo_GL '!$B$9:$O$1882,4,0) -> 71.65236 | H79: =+VLOOKUP(C79,'Anexo_GL '!$B$9:$O$1882,5,0) -> 947.4572775 | I79: =+VLOOKUP(C79,'Anexo_GL '!$B$9:$O$1882,6,0) -> 0 | J79: =+VLOOKUP(C79,'Anexo_GL '!$B$9:$O$1882,7,0) -> 0 | L79: =+VLOOKUP(C79,'Anexo_GL '!$B$9:$O$1882,8,0) -> 7.562595349 | N79: =+VLOOKUP(C79,'Anexo_GL '!$B$9:$O$1882,9,0) -> Si Cumple | P79: =+VLOOKUP(C79,'Anexo_GL '!$B$9:$O$1882,11,0) -> 184.26346 | Q79: =+VLOOKUP(C79,'Anexo_GL '!$B$9:$O$1882,12,0) -> 252.35724 | R79: =+VLOOKUP(C79,'Anexo_GL '!$B$9:$O$1882,13,0) -> -68.09378 | S79: =+VLOOKUP(C79,'Anexo_GL '!$B$9:$O$1882,14,0) -> No Cumple
A80: 010511 : MD DE MARIA | B80: 53 | C80: 010511 | D80: AMAZONAS | E80: MD DE MARIA | F80: =+VLOOKUP(C80,'Anexo_GL '!$B$9:$O$1882,4,0) -> 49.85981 | H80: =+VLOOKUP(C80,'Anexo_GL '!$B$9:$O$1882,5,0) -> 1074.55081 | I80: =+VLOOKUP(C80,'Anexo_GL '!$B$9:$O$1882,6,0) -> 0 | J80: =+VLOOKUP(C80,'Anexo_GL '!$B$9:$O$1882,7,0) -> 0 | L80: =+VLOOKUP(C80,'Anexo_GL '!$B$9:$O$1882,8,0) -> 4.640060715 | N80: =+VLOOKUP(C80,'Anexo_GL '!$B$9:$O$1882,9,0) -> Si Cumple | P80: =+VLOOKUP(C80,'Anexo_GL '!$B$9:$O$1882,11,0) -> 184.3139 | Q80: =+VLOOKUP(C80,'Anexo_GL '!$B$9:$O$1882,12,0) -> 224.57467 | R80: =+VLOOKUP(C80,'Anexo_GL '!$B$9:$O$1882,13,0) -> -40.26077 | S80: =+VLOOKUP(C80,'Anexo_GL '!$B$9:$O$1882,14,0) -> No Cumple
A81: 010512 : MD DE OCALLI | B81: 54 | C81: 010512 | D81: AMAZONAS | E81: MD DE OCALLI | F81: =+VLOOKUP(C81,'Anexo_GL '!$B$9:$O$1882,4,0) -> 36.11917 | H81: =+VLOOKUP(C81,'Anexo_GL '!$B$9:$O$1882,5,0) -> 1793.52022 | I81: =+VLOOKUP(C81,'Anexo_GL '!$B$9:$O$1882,6,0) -> 0.00078 | J81: =+VLOOKUP(C81,'Anexo_GL '!$B$9:$O$1882,7,0) -> 0 | L81: =+VLOOKUP(C81,'Anexo_GL '!$B$9:$O$1882,8,0) -> 2.013870242 | N81: =+VLOOKUP(C81,'Anexo_GL '!$B$9:$O$1882,9,0) -> Si Cumple | P81: =+VLOOKUP(C81,'Anexo_GL '!$B$9:$O$1882,11,0) -> 337.38369 | Q81: =+VLOOKUP(C81,'Anexo_GL '!$B$9:$O$1882,12,0) -> 605.39066 | R81: =+VLOOKUP(C81,'Anexo_GL '!$B$9:$O$1882,13,0) -> -268.00697 | S81: =+VLOOKUP(C81,'Anexo_GL '!$B$9:$O$1882,14,0) -> No Cumple
A82: 010513 : MD DE OCUMAL | B82: 55 | C82: 010513 | D82: AMAZONAS | E82: MD DE OCUMAL | F82: =+VLOOKUP(C82,'Anexo_GL '!$B$9:$O$1882,4,0) -> 28.011 | H82: =+VLOOKUP(C82,'Anexo_GL '!$B$9:$O$1882,5,0) -> 2064.45936 | I82: =+VLOOKUP(C82,'Anexo_GL '!$B$9:$O$1882,6,0) -> 0.00078 | J82: =+VLOOKUP(C82,'Anexo_GL '!$B$9:$O$1882,7,0) -> 0 | L82: =+VLOOKUP(C82,'Anexo_GL '!$B$9:$O$1882,8,0) -> 1.356820122 | N82: =+VLOOKUP(C82,'Anexo_GL '!$B$9:$O$1882,9,0) -> Si Cumple | P82: =+VLOOKUP(C82,'Anexo_GL '!$B$9:$O$1882,11,0) -> 763.20457 | Q82: =+VLOOKUP(C82,'Anexo_GL '!$B$9:$O$1882,12,0) -> 381.49605 | R82: =+VLOOKUP(C82,'Anexo_GL '!$B$9:$O$1882,13,0) -> 381.70852 | S82: =+VLOOKUP(C82,'Anexo_GL '!$B$9:$O$1882,14,0) -> Si Cumple
A83: 010514 : MD DE PIZUQUIA | B83: 56 | C83: 010514 | D83: AMAZONAS | E83: MD DE PIZUQUIA | F83: =+VLOOKUP(C83,'Anexo_GL '!$B$9:$O$1882,4,0) -> 248.91669 | H83: =+VLOOKUP(C83,'Anexo_GL '!$B$9:$O$1882,5,0) -> 3300.42492 | I83: =+VLOOKUP(C83,'Anexo_GL '!$B$9:$O$1882,6,0) -> 0.00107 | J83: =+VLOOKUP(C83,'Anexo_GL '!$B$9:$O$1882,7,0) -> 0 | L83: =+VLOOKUP(C83,'Anexo_GL '!$B$9:$O$1882,8,0) -> 7.54195887 | N83: =+VLOOKUP(C83,'Anexo_GL '!$B$9:$O$1882,9,0) -> Si Cumple | P83: =+VLOOKUP(C83,'Anexo_GL '!$B$9:$O$1882,11,0) -> 962.43571 | Q83: =+VLOOKUP(C83,'Anexo_GL '!$B$9:$O$1882,12,0) -> 947.81291 | R83: =+VLOOKUP(C83,'Anexo_GL '!$B$9:$O$1882,13,0) -> 14.6228 | S83: =+VLOOKUP(C83,'Anexo_GL '!$B$9:$O$1882,14,0) -> Si Cumple
A84: 010515 : MD DE PROVIDENCIA | B84: 57 | C84: 010515 | D84: AMAZONAS | E84: MD DE PROVIDENCIA | F84: =+VLOOKUP(C84,'Anexo_GL '!$B$9:$O$1882,4,0) -> 78.67396 | H84: =+VLOOKUP(C84,'Anexo_GL '!$B$9:$O$1882,5,0) -> 1034.813517 | I84: =+VLOOKUP(C84,'Anexo_GL '!$B$9:$O$1882,6,0) -> 0 | J84: =+VLOOKUP(C84,'Anexo_GL '!$B$9:$O$1882,7,0) -> 0 | L84: =+VLOOKUP(C84,'Anexo_GL '!$B$9:$O$1882,8,0) -> 7.602718622 | N84: =+VLOOKUP(C84,'Anexo_GL '!$B$9:$O$1882,9,0) -> Si Cumple | P84: =+VLOOKUP(C84,'Anexo_GL '!$B$9:$O$1882,11,0) -> 228.14373 | Q84: =+VLOOKUP(C84,'Anexo_GL '!$B$9:$O$1882,12,0) -> 269.83615 | R84: =+VLOOKUP(C84,'Anexo_GL '!$B$9:$O$1882,13,0) -> -41.69242 | S84: =+VLOOKUP(C84,'Anexo_GL '!$B$9:$O$1882,14,0) -> No Cumple
A85: 010516 : MD DE SAN CRISTOBAL DE OLTO | B85: 58 | C85: 010516 | D85: AMAZONAS | E85: MD DE SAN CRISTOBAL DE OLTO | F85: =+VLOOKUP(C85,'Anexo_GL '!$B$9:$O$1882,4,0) -> 64.86952 | H85: =+VLOOKUP(C85,'Anexo_GL '!$B$9:$O$1882,5,0) -> 1055.224602 | I85: =+VLOOKUP(C85,'Anexo_GL '!$B$9:$O$1882,6,0) -> 0 | J85: =+VLOOKUP(C85,'Anexo_GL '!$B$9:$O$1882,7,0) -> 0 | L85: =+VLOOKUP(C85,'Anexo_GL '!$B$9:$O$1882,8,0) -> 6.147460915 | N85: =+VLOOKUP(C85,'Anexo_GL '!$B$9:$O$1882,9,0) -> Si Cumple | P85: =+VLOOKUP(C85,'Anexo_GL '!$B$9:$O$1882,11,0) -> 444.43823 | Q85: =+VLOOKUP(C85,'Anexo_GL '!$B$9:$O$1882,12,0) -> 219.53811 | R85: =+VLOOKUP(C85,'Anexo_GL '!$B$9:$O$1882,13,0) -> 224.90012 | S85: =+VLOOKUP(C85,'Anexo_GL '!$B$9:$O$1882,14,0) -> Si Cumple
A86: 010517 : MD DE SAN FRANCISCO DE YESO | B86: 59 | C86: 010517 | D86: AMAZONAS | E86: MD DE SAN FRANCISCO DE YESO | F86: =+VLOOKUP(C86,'Anexo_GL '!$B$9:$O$1882,4,0) -> 32.35915 | H86: =+VLOOKUP(C86,'Anexo_GL '!$B$9:$O$1882,5,0) -> 797.803035 | I86: =+VLOOKUP(C86,'Anexo_GL '!$B$9:$O$1882,6,0) -> 0 | J86: =+VLOOKUP(C86,'Anexo_GL '!$B$9:$O$1882,7,0) -> 0 | L86: =+VLOOKUP(C86,'Anexo_GL '!$B$9:$O$1882,8,0) -> 4.056032452 | N86: =+VLOOKUP(C86,'Anexo_GL '!$B$9:$O$1882,9,0) -> Si Cumple | P86: =+VLOOKUP(C86,'Anexo_GL '!$B$9:$O$1882,11,0) -> 312.90338 | Q86: =+VLOOKUP(C86,'Anexo_GL '!$B$9:$O$1882,12,0) -> 201.10803 | R86: =+VLOOKUP(C86,'Anexo_GL '!$B$9:$O$1882,13,0) -> 111.79535 | S86: =+VLOOKUP(C86,'Anexo_GL '!$B$9:$O$1882,14,0) -> Si Cumple
A87: 010518 : MD DE SAN JERONIMO DE PACLAS | B87: 60 | C87: 010518 | D87: AMAZONAS | E87: MD DE SAN JERONIMO DE PACLAS | F87: =+VLOOKUP(C87,'Anexo_GL '!$B$9:$O$1882,4,0) -> 23.63066 | H87: =+VLOOKUP(C87,'Anexo_GL '!$B$9:$O$1882,5,0) -> 1005.22247 | I87: =+VLOOKUP(C87,'Anexo_GL '!$B$9:$O$1882,6,0) -> 0 | J87: =+VLOOKUP(C87,'Anexo_GL '!$B$9:$O$1882,7,0) -> 0 | L87: =+VLOOKUP(C87,'Anexo_GL '!$B$9:$O$1882,8,0) -> 2.350789075 | N87: =+VLOOKUP(C87,'Anexo_GL '!$B$9:$O$1882,9,0) -> Si Cumple | P87: =+VLOOKUP(C87,'Anexo_GL '!$B$9:$O$1882,11,0) -> 185.76884 | Q87: =+VLOOKUP(C87,'Anexo_GL '!$B$9:$O$1882,12,0) -> 273.97281 | R87: =+VLOOKUP(C87,'Anexo_GL '!$B$9:$O$1882,13,0) -> -88.20397 | S87: =+VLOOKUP(C87,'Anexo_GL '!$B$9:$O$1882,14,0) -> No Cumple
A88: 010519 : MD DE SAN JUAN DE LOPECANCHA | B88: 61 | C88: 010519 | D88: AMAZONAS | E88: MD DE SAN JUAN DE LOPECANCHA | F88: =+VLOOKUP(C88,'Anexo_GL '!$B$9:$O$1882,4,0) -> 83.36362 | H88: =+VLOOKUP(C88,'Anexo_GL '!$B$9:$O$1882,5,0) -> 949.62618 | I88: =+VLOOKUP(C88,'Anexo_GL '!$B$9:$O$1882,6,0) -> 0 | J88: =+VLOOKUP(C88,'Anexo_GL '!$B$9:$O$1882,7,0) -> 0 | L88: =+VLOOKUP(C88,'Anexo_GL '!$B$9:$O$1882,8,0) -> 8.778572217 | N88: =+VLOOKUP(C88,'Anexo_GL '!$B$9:$O$1882,9,0) -> Si Cumple | P88: =+VLOOKUP(C88,'Anexo_GL '!$B$9:$O$1882,11,0) -> 314.23862 | Q88: =+VLOOKUP(C88,'Anexo_GL '!$B$9:$O$1882,12,0) -> 241.24173 | R88: =+VLOOKUP(C88,'Anexo_GL '!$B$9:$O$1882,13,0) -> 72.99689 | S88: =+VLOOKUP(C88,'Anexo_GL '!$B$9:$O$1882,14,0) -> Si Cumple
A89: 010520 : MD DE SANTA CATALINA | B89: 62 | C89: 010520 | D89: AMAZONAS | E89: MD DE SANTA CATALINA | F89: =+VLOOKUP(C89,'Anexo_GL '!$B$9:$O$1882,4,0) -> 60.76808 | H89: =+VLOOKUP(C89,'Anexo_GL '!$B$9:$O$1882,5,0) -> 1214.444523 | I89: =+VLOOKUP(C89,'Anexo_GL '!$B$9:$O$1882,6,0) -> 0.00078 | J89: =+VLOOKUP(C89,'Anexo_GL '!$B$9:$O$1882,7,0) -> 0 | L89: =+VLOOKUP(C89,'Anexo_GL '!$B$9:$O$1882,8,0) -> 5.003775708 | N89: =+VLOOKUP(C89,'Anexo_GL '!$B$9:$O$1882,9,0) -> Si Cumple | P89: =+VLOOKUP(C89,'Anexo_GL '!$B$9:$O$1882,11,0) -> 220.13521 | Q89: =+VLOOKUP(C89,'Anexo_GL '!$B$9:$O$1882,12,0) -> 291.21292 | R89: =+VLOOKUP(C89,'Anexo_GL '!$B$9:$O$1882,13,0) -> -71.07771 | S89: =+VLOOKUP(C89,'Anexo_GL '!$B$9:$O$1882,14,0) -> No Cumple
A90: 010521 : MD DE SANTO TOMAS | B90: 63 | C90: 010521 | D90: AMAZONAS | E90: MD DE SANTO TOMAS | F90: =+VLOOKUP(C90,'Anexo_GL '!$B$9:$O$1882,4,0) -> 99.43389 | H90: =+VLOOKUP(C90,'Anexo_GL '!$B$9:$O$1882,5,0) -> 1402.073502 | I90: =+VLOOKUP(C90,'Anexo_GL '!$B$9:$O$1882,6,0) -> 0.00186 | J90: =+VLOOKUP(C90,'Anexo_GL '!$B$9:$O$1882,7,0) -> 0 | L90: =+VLOOKUP(C90,'Anexo_GL '!$B$9:$O$1882,8,0) -> 7.091917066 | N90: =+VLOOKUP(C90,'Anexo_GL '!$B$9:$O$1882,9,0) -> Si Cumple | P90: =+VLOOKUP(C90,'Anexo_GL '!$B$9:$O$1882,11,0) -> 300.81229 | Q90: =+VLOOKUP(C90,'Anexo_GL '!$B$9:$O$1882,12,0) -> 407.13126 | R90: =+VLOOKUP(C90,'Anexo_GL '!$B$9:$O$1882,13,0) -> -106.31897 | S90: =+VLOOKUP(C90,'Anexo_GL '!$B$9:$O$1882,14,0) -> No Cumple
A91: 010522 : MD DE TINGO | B91: 64 | C91: 010522 | D91: AMAZONAS | E91: MD DE TINGO | F91: =+VLOOKUP(C91,'Anexo_GL '!$B$9:$O$1882,4,0) -> 11.21855 | H91: =+VLOOKUP(C91,'Anexo_GL '!$B$9:$O$1882,5,0) -> 860.6241675 | I91: =+VLOOKUP(C91,'Anexo_GL '!$B$9:$O$1882,6,0) -> 0 | J91: =+VLOOKUP(C91,'Anexo_GL '!$B$9:$O$1882,7,0) -> 0 | L91: =+VLOOKUP(C91,'Anexo_GL '!$B$9:$O$1882,8,0) -> 1.303536482 | N91: =+VLOOKUP(C91,'Anexo_GL '!$B$9:$O$1882,9,0) -> Si Cumple | P91: =+VLOOKUP(C91,'Anexo_GL '!$B$9:$O$1882,11,0) -> 314.81592 | Q91: =+VLOOKUP(C91,'Anexo_GL '!$B$9:$O$1882,12,0) -> 283.26436 | R91: =+VLOOKUP(C91,'Anexo_GL '!$B$9:$O$1882,13,0) -> 31.55156 | S91: =+VLOOKUP(C91,'Anexo_GL '!$B$9:$O$1882,14,0) -> Si Cumple
A92: 010523 : MD DE TRITA | B92: 65 | C92: 010523 | D92: AMAZONAS | E92: MD DE TRITA | F92: =+VLOOKUP(C92,'Anexo_GL '!$B$9:$O$1882,4,0) -> 2.20165 | H92: =+VLOOKUP(C92,'Anexo_GL '!$B$9:$O$1882,5,0) -> 1081.752228 | I92: =+VLOOKUP(C92,'Anexo_GL '!$B$9:$O$1882,6,0) -> 0 | J92: =+VLOOKUP(C92,'Anexo_GL '!$B$9:$O$1882,7,0) -> 0 | L92: =+VLOOKUP(C92,'Anexo_GL '!$B$9:$O$1882,8,0) -> 0.2035262738 | N92: =+VLOOKUP(C92,'Anexo_GL '!$B$9:$O$1882,9,0) -> Si Cumple | P92: =+VLOOKUP(C92,'Anexo_GL '!$B$9:$O$1882,11,0) -> 334.83882 | Q92: =+VLOOKUP(C92,'Anexo_GL '!$B$9:$O$1882,12,0) -> 310.40329 | R92: =+VLOOKUP(C92,'Anexo_GL '!$B$9:$O$1882,13,0) -> 24.43553 | S92: =+VLOOKUP(C92,'Anexo_GL '!$B$9:$O$1882,14,0) -> Si Cumple
A93: 010601 : MP DE RODRIGUEZ DE MENDOZA - SAN NICOLAS | B93: 66 | C93: 010601 | D93: AMAZONAS | E93: MP DE RODRIGUEZ DE MENDOZA - SAN NICOLAS | F93: =+VLOOKUP(C93,'Anexo_GL '!$B$9:$O$1882,4,0) -> 4528.26339 | H93: =+VLOOKUP(C93,'Anexo_GL '!$B$9:$O$1882,5,0) -> 10481.74205 | I93: =+VLOOKUP(C93,'Anexo_GL '!$B$9:$O$1882,6,0) -> 0.00735 | J93: =+VLOOKUP(C93,'Anexo_GL '!$B$9:$O$1882,7,0) -> 0 | L93: =+VLOOKUP(C93,'Anexo_GL '!$B$9:$O$1882,8,0) -> 43.20143892 | N93: =+VLOOKUP(C93,'Anexo_GL '!$B$9:$O$1882,9,0) -> Si Cumple | P93: =+VLOOKUP(C93,'Anexo_GL '!$B$9:$O$1882,11,0) -> 2921.80967 | Q93: =+VLOOKUP(C93,'Anexo_GL '!$B$9:$O$1882,12,0) -> 2579.27792 | R93: =+VLOOKUP(C93,'Anexo_GL '!$B$9:$O$1882,13,0) -> 342.53175 | S93: =+VLOOKUP(C93,'Anexo_GL '!$B$9:$O$1882,14,0) -> Si Cumple
A94: 010602 : MD DE CHIRIMOTO | B94: 67 | C94: 010602 | D94: AMAZONAS | E94: MD DE CHIRIMOTO | F94: =+VLOOKUP(C94,'Anexo_GL '!$B$9:$O$1882,4,0) -> 56.25321 | H94: =+VLOOKUP(C94,'Anexo_GL '!$B$9:$O$1882,5,0) -> 1204.616352 | I94: =+VLOOKUP(C94,'Anexo_GL '!$B$9:$O$1882,6,0) -> 0.01284 | J94: =+VLOOKUP(C94,'Anexo_GL '!$B$9:$O$1882,7,0) -> 0 | L94: =+VLOOKUP(C94,'Anexo_GL '!$B$9:$O$1882,8,0) -> 4.669802953 | N94: =+VLOOKUP(C94,'Anexo_GL '!$B$9:$O$1882,9,0) -> Si Cumple | P94: =+VLOOKUP(C94,'Anexo_GL '!$B$9:$O$1882,11,0) -> 271.998 | Q94: =+VLOOKUP(C94,'Anexo_GL '!$B$9:$O$1882,12,0) -> 386.08855 | R94: =+VLOOKUP(C94,'Anexo_GL '!$B$9:$O$1882,13,0) -> -114.09055 | S94: =+VLOOKUP(C94,'Anexo_GL '!$B$9:$O$1882,14,0) -> No Cumple
A95: 010603 : MD DE COCHAMAL | B95: 68 | C95: 010603 | D95: AMAZONAS | E95: MD DE COCHAMAL | F95: =+VLOOKUP(C95,'Anexo_GL '!$B$9:$O$1882,4,0) -> 160.3182 | H95: =+VLOOKUP(C95,'Anexo_GL '!$B$9:$O$1882,5,0) -> 813.50789 | I95: =+VLOOKUP(C95,'Anexo_GL '!$B$9:$O$1882,6,0) -> 0.00157 | J95: =+VLOOKUP(C95,'Anexo_GL '!$B$9:$O$1882,7,0) -> 0 | L95: =+VLOOKUP(C95,'Anexo_GL '!$B$9:$O$1882,8,0) -> 19.7070246 | N95: =+VLOOKUP(C95,'Anexo_GL '!$B$9:$O$1882,9,0) -> Si Cumple | P95: =+VLOOKUP(C95,'Anexo_GL '!$B$9:$O$1882,11,0) -> 237.15944 | Q95: =+VLOOKUP(C95,'Anexo_GL '!$B$9:$O$1882,12,0) -> 273.8495 | R95: =+VLOOKUP(C95,'Anexo_GL '!$B$9:$O$1882,13,0) -> -36.69006 | S95: =+VLOOKUP(C95,'Anexo_GL '!$B$9:$O$1882,14,0) -> No Cumple
A96: 010604 : MD DE HUAMBO | B96: 69 | C96: 010604 | D96: AMAZONAS | E96: MD DE HUAMBO | F96: =+VLOOKUP(C96,'Anexo_GL '!$B$9:$O$1882,4,0) -> 120.89919 | H96: =+VLOOKUP(C96,'Anexo_GL '!$B$9:$O$1882,5,0) -> 2039.063907 | I96: =+VLOOKUP(C96,'Anexo_GL '!$B$9:$O$1882,6,0) -> 0.00813 | J96: =+VLOOKUP(C96,'Anexo_GL '!$B$9:$O$1882,7,0) -> 0 | L96: =+VLOOKUP(C96,'Anexo_GL '!$B$9:$O$1882,8,0) -> 5.929151585 | N96: =+VLOOKUP(C96,'Anexo_GL '!$B$9:$O$1882,9,0) -> Si Cumple | P96: =+VLOOKUP(C96,'Anexo_GL '!$B$9:$O$1882,11,0) -> 266.95451 | Q96: =+VLOOKUP(C96,'Anexo_GL '!$B$9:$O$1882,12,0) -> 488.67707 | R96: =+VLOOKUP(C96,'Anexo_GL '!$B$9:$O$1882,13,0) -> -221.72256 | S96: =+VLOOKUP(C96,'Anexo_GL '!$B$9:$O$1882,14,0) -> No Cumple
A97: 010605 : MD DE LIMABAMBA | B97: 70 | C97: 010605 | D97: AMAZONAS | E97: MD DE LIMABAMBA | F97: =+VLOOKUP(C97,'Anexo_GL '!$B$9:$O$1882,4,0) -> 2215.67641 | H97: =+VLOOKUP(C97,'Anexo_GL '!$B$9:$O$1882,5,0) -> 1384.876882 | I97: =+VLOOKUP(C97,'Anexo_GL '!$B$9:$O$1882,6,0) -> 0.00813 | J97: =+VLOOKUP(C97,'Anexo_GL '!$B$9:$O$1882,7,0) -> 0 | L97: =+VLOOKUP(C97,'Anexo_GL '!$B$9:$O$1882,8,0) -> 159.9908582 | N97: =+VLOOKUP(C97,'Anexo_GL '!$B$9:$O$1882,9,0) -> No Cumple | P97: =+VLOOKUP(C97,'Anexo_GL '!$B$9:$O$1882,11,0) -> 659.51747 | Q97: =+VLOOKUP(C97,'Anexo_GL '!$B$9:$O$1882,12,0) -> 419.29001 | R97: =+VLOOKUP(C97,'Anexo_GL '!$B$9:$O$1882,13,0) -> 240.22746 | S97: =+VLOOKUP(C97,'Anexo_GL '!$B$9:$O$1882,14,0) -> Si Cumple
A98: 010606 : MD DE LONGAR | B98: 71 | C98: 010606 | D98: AMAZONAS | E98: MD DE LONGAR | F98: =+VLOOKUP(C98,'Anexo_GL '!$B$9:$O$1882,4,0) -> 98.86282 | H98: =+VLOOKUP(C98,'Anexo_GL '!$B$9:$O$1882,5,0) -> 817.7551025 | I98: =+VLOOKUP(C98,'Anexo_GL '!$B$9:$O$1882,6,0) -> 0.00421 | J98: =+VLOOKUP(C98,'Anexo_GL '!$B$9:$O$1882,7,0) -> 0 | L98: =+VLOOKUP(C98,'Anexo_GL '!$B$9:$O$1882,8,0) -> 12.08953875 | N98: =+VLOOKUP(C98,'Anexo_GL '!$B$9:$O$1882,9,0) -> Si Cumple | P98: =+VLOOKUP(C98,'Anexo_GL '!$B$9:$O$1882,11,0) -> 218.246 | Q98: =+VLOOKUP(C98,'Anexo_GL '!$B$9:$O$1882,12,0) -> 256.39407 | R98: =+VLOOKUP(C98,'Anexo_GL '!$B$9:$O$1882,13,0) -> -38.14807 | S98: =+VLOOKUP(C98,'Anexo_GL '!$B$9:$O$1882,14,0) -> No Cumple
A99: 010607 : MD DE MARISCAL BENAVIDES | B99: 72 | C99: 010607 | D99: AMAZONAS | E99: MD DE MARISCAL BENAVIDES | F99: =+VLOOKUP(C99,'Anexo_GL '!$B$9:$O$1882,4,0) -> 298.90181 | H99: =+VLOOKUP(C99,'Anexo_GL '!$B$9:$O$1882,5,0) -> 918.4067425 | I99: =+VLOOKUP(C99,'Anexo_GL '!$B$9:$O$1882,6,0) -> 0.00235 | J99: =+VLOOKUP(C99,'Anexo_GL '!$B$9:$O$1882,7,0) -> 0 | L99: =+VLOOKUP(C99,'Anexo_GL '!$B$9:$O$1882,8,0) -> 32.54568985 | N99: =+VLOOKUP(C99,'Anexo_GL '!$B$9:$O$1882,9,0) -> Si Cumple | P99: =+VLOOKUP(C99,'Anexo_GL '!$B$9:$O$1882,11,0) -> 344.07604 | Q99: =+VLOOKUP(C99,'Anexo_GL '!$B$9:$O$1882,12,0) -> 283.55138 | R99: =+VLOOKUP(C99,'Anexo_GL '!$B$9:$O$1882,13,0) -> 60.52466 | S99: =+VLOOKUP(C99,'Anexo_GL '!$B$9:$O$1882,14,0) -> Si Cumple
A100: 010608 : MD DE MILPUC | B100: 73 | C100: 010608 | D100: AMAZONAS | E100: MD DE MILPUC | F100: =+VLOOKUP(C100,'Anexo_GL '!$B$9:$O$1882,4,0) -> 97.60468 | H100: =+VLOOKUP(C100,'Anexo_GL '!$B$9:$O$1882,5,0) -> 766.0441075 | I100: =+VLOOKUP(C100,'Anexo_GL '!$B$9:$O$1882,6,0) -> 0.03844 | J100: =+VLOOKUP(C100,'Anexo_GL '!$B$9:$O$1882,7,0) -> 0 | L100: =+VLOOKUP(C100,'Anexo_GL '!$B$9:$O$1882,8,0) -> 12.74139166 | N100: =+VLOOKUP(C100,'Anexo_GL '!$B$9:$O$1882,9,0) -> Si Cumple | P100: =+VLOOKUP(C100,'Anexo_GL '!$B$9:$O$1882,11,0) -> 267.02193 | Q100: =+VLOOKUP(C100,'Anexo_GL '!$B$9:$O$1882,12,0) -> 253.52727 | R100: =+VLOOKUP(C100,'Anexo_GL '!$B$9:$O$1882,13,0) -> 13.49466 | S100: =+VLOOKUP(C100,'Anexo_GL '!$B$9:$O$1882,14,0) -> Si Cumple
A101: 010609 : MD DE OMIA | B101: 74 | C101: 010609 | D101: AMAZONAS | E101: MD DE OMIA | F101: =+VLOOKUP(C101,'Anexo_GL '!$B$9:$O$1882,4,0) -> 204.49922 | H101: =+VLOOKUP(C101,'Anexo_GL '!$B$9:$O$1882,5,0) -> 3993.102027 | I101: =+VLOOKUP(C101,'Anexo_GL '!$B$9:$O$1882,6,0) -> 0.04353 | J101: =+VLOOKUP(C101,'Anexo_GL '!$B$9:$O$1882,7,0) -> 0 | L101: =+VLOOKUP(C101,'Anexo_GL '!$B$9:$O$1882,8,0) -> 5.121312168 | N101: =+VLOOKUP(C101,'Anexo_GL '!$B$9:$O$1882,9,0) -> Si Cumple | P101: =+VLOOKUP(C101,'Anexo_GL '!$B$9:$O$1882,11,0) -> 1768.72505 | Q101: =+VLOOKUP(C101,'Anexo_GL '!$B$9:$O$1882,12,0) -> 1469.21256 | R101: =+VLOOKUP(C101,'Anexo_GL '!$B$9:$O$1882,13,0) -> 299.51249 | S101: =+VLOOKUP(C101,'Anexo_GL '!$B$9:$O$1882,14,0) -> Si Cumple
A102: 010610 : MD DE SANTA ROSA | B102: 75 | C102: 010610 | D102: AMAZONAS | E102: MD DE SANTA ROSA | F102: =+VLOOKUP(C102,'Anexo_GL '!$B$9:$O$1882,4,0) -> 104.34405 | H102: =+VLOOKUP(C102,'Anexo_GL '!$B$9:$O$1882,5,0) -> 1029.217328 | I102: =+VLOOKUP(C102,'Anexo_GL '!$B$9:$O$1882,6,0) -> 0.00157 | J102: =+VLOOKUP(C102,'Anexo_GL '!$B$9:$O$1882,7,0) -> 0 | L102: =+VLOOKUP(C102,'Anexo_GL '!$B$9:$O$1882,8,0) -> 10.13819406 | N102: =+VLOOKUP(C102,'Anexo_GL '!$B$9:$O$1882,9,0) -> Si Cumple | P102: =+VLOOKUP(C102,'Anexo_GL '!$B$9:$O$1882,11,0) -> 274.46673 | Q102: =+VLOOKUP(C102,'Anexo_GL '!$B$9:$O$1882,12,0) -> 290.79544 | R102: =+VLOOKUP(C102,'Anexo_GL '!$B$9:$O$1882,13,0) -> -16.32871 | S102: =+VLOOKUP(C102,'Anexo_GL '!$B$9:$O$1882,14,0) -> No Cumple
A103: 010611 : MD DE TOTORA | B103: 76 | C103: 010611 | D103: AMAZONAS | E103: MD DE TOTORA | F103: =+VLOOKUP(C103,'Anexo_GL '!$B$9:$O$1882,4,0) -> 11.39707 | H103: =+VLOOKUP(C103,'Anexo_GL '!$B$9:$O$1882,5,0) -> 712.444965 | I103: =+VLOOKUP(C103,'Anexo_GL '!$B$9:$O$1882,6,0) -> 0.00078 | J103: =+VLOOKUP(C103,'Anexo_GL '!$B$9:$O$1882,7,0) -> 0 | L103: =+VLOOKUP(C103,'Anexo_GL '!$B$9:$O$1882,8,0) -> 1.599712337 | N103: =+VLOOKUP(C103,'Anexo_GL '!$B$9:$O$1882,9,0) -> Si Cumple | P103: =+VLOOKUP(C103,'Anexo_GL '!$B$9:$O$1882,11,0) -> 204.59534 | Q103: =+VLOOKUP(C103,'Anexo_GL '!$B$9:$O$1882,12,0) -> 274.14593 | R103: =+VLOOKUP(C103,'Anexo_GL '!$B$9:$O$1882,13,0) -> -69.55059 | S103: =+VLOOKUP(C103,'Anexo_GL '!$B$9:$O$1882,14,0) -> No Cumple
A104: 010612 : MD DE VISTA ALEGRE | B104: 77 | C104: 010612 | D104: AMAZONAS | E104: MD DE VISTA ALEGRE | F104: =+VLOOKUP(C104,'Anexo_GL '!$B$9:$O$1882,4,0) -> 111.846 | H104: =+VLOOKUP(C104,'Anexo_GL '!$B$9:$O$1882,5,0) -> 2050.260835 | I104: =+VLOOKUP(C104,'Anexo_GL '!$B$9:$O$1882,6,0) -> 0.02412 | J104: =+VLOOKUP(C104,'Anexo_GL '!$B$9:$O$1882,7,0) -> 0 | L104: =+VLOOKUP(C104,'Anexo_GL '!$B$9:$O$1882,8,0) -> 5.455208337 | N104: =+VLOOKUP(C104,'Anexo_GL '!$B$9:$O$1882,9,0) -> Si Cumple | P104: =+VLOOKUP(C104,'Anexo_GL '!$B$9:$O$1882,11,0) -> 935.10002 | Q104: =+VLOOKUP(C104,'Anexo_GL '!$B$9:$O$1882,12,0) -> 435.51457 | R104: =+VLOOKUP(C104,'Anexo_GL '!$B$9:$O$1882,13,0) -> 499.58545 | S104: =+VLOOKUP(C104,'Anexo_GL '!$B$9:$O$1882,14,0) -> Si Cumple
A105: 010701 : MUNICIPALIDAD PROVINCIA DE UTCUBAMBA - BAGUA GRANDE | B105: 78 | C105: 010701 | D105: AMAZONAS | E105: MUNICIPALIDAD PROVINCIA DE UTCUBAMBA - BAGUA GRANDE | F105: =+VLOOKUP(C105,'Anexo_GL '!$B$9:$O$1882,4,0) -> 4263.91505 | H105: =+VLOOKUP(C105,'Anexo_GL '!$B$9:$O$1882,5,0) -> 48157.316 | I105: =+VLOOKUP(C105,'Anexo_GL '!$B$9:$O$1882,6,0) -> 0.9989 | J105: =+VLOOKUP(C105,'Anexo_GL '!$B$9:$O$1882,7,0) -> 0 | L105: =+VLOOKUP(C105,'Anexo_GL '!$B$9:$O$1882,8,0) -> 8.854137655 | N105: =+VLOOKUP(C105,'Anexo_GL '!$B$9:$O$1882,9,0) -> Si Cumple | P105: =+VLOOKUP(C105,'Anexo_GL '!$B$9:$O$1882,11,0) -> 15985.26082 | Q105: =+VLOOKUP(C105,'Anexo_GL '!$B$9:$O$1882,12,0) -> 12523.75121 | R105: =+VLOOKUP(C105,'Anexo_GL '!$B$9:$O$1882,13,0) -> 3461.50961 | S105: =+VLOOKUP(C105,'Anexo_GL '!$B$9:$O$1882,14,0) -> Si Cumple
A106: 010702 : MD DE CAJARURO | B106: 79 | C106: 010702 | D106: AMAZONAS | E106: MD DE CAJARURO | F106: =+VLOOKUP(C106,'Anexo_GL '!$B$9:$O$1882,4,0) -> 826.03118 | H106: =+VLOOKUP(C106,'Anexo_GL '!$B$9:$O$1882,5,0) -> 13531.98402 | I106: =+VLOOKUP(C106,'Anexo_GL '!$B$9:$O$1882,6,0) -> 0.80667 | J106: =+VLOOKUP(C106,'Anexo_GL '!$B$9:$O$1882,7,0) -> 0 | L106: =+VLOOKUP(C106,'Anexo_GL '!$B$9:$O$1882,8,0) -> 6.104287284 | N106: =+VLOOKUP(C106,'Anexo_GL '!$B$9:$O$1882,9,0) -> Si Cumple | P106: =+VLOOKUP(C106,'Anexo_GL '!$B$9:$O$1882,11,0) -> 5171.71081 | Q106: =+VLOOKUP(C106,'Anexo_GL '!$B$9:$O$1882,12,0) -> 3742.71306 | R106: =+VLOOKUP(C106,'Anexo_GL '!$B$9:$O$1882,13,0) -> 1428.99775 | S106: =+VLOOKUP(C106,'Anexo_GL '!$B$9:$O$1882,14,0) -> Si Cumple
A107: 010703 : MD DE CUMBA | B107: 80 | C107: 010703 | D107: AMAZONAS | E107: MD DE CUMBA | F107: =+VLOOKUP(C107,'Anexo_GL '!$B$9:$O$1882,4,0) -> 276.36456 | H107: =+VLOOKUP(C107,'Anexo_GL '!$B$9:$O$1882,5,0) -> 4688.655008 | I107: =+VLOOKUP(C107,'Anexo_GL '!$B$9:$O$1882,6,0) -> 0.0053 | J107: =+VLOOKUP(C107,'Anexo_GL '!$B$9:$O$1882,7,0) -> 0 | L107: =+VLOOKUP(C107,'Anexo_GL '!$B$9:$O$1882,8,0) -> 5.894324909 | N107: =+VLOOKUP(C107,'Anexo_GL '!$B$9:$O$1882,9,0) -> Si Cumple | P107: =+VLOOKUP(C107,'Anexo_GL '!$B$9:$O$1882,11,0) -> 1076.74736 | Q107: =+VLOOKUP(C107,'Anexo_GL '!$B$9:$O$1882,12,0) -> 1694.63869 | R107: =+VLOOKUP(C107,'Anexo_GL '!$B$9:$O$1882,13,0) -> -617.89133 | S107: =+VLOOKUP(C107,'Anexo_GL '!$B$9:$O$1882,14,0) -> No Cumple
A108: 010704 : MD DE EL MILAGRO | B108: 81 | C108: 010704 | D108: AMAZONAS | E108: MD DE EL MILAGRO | F108: =+VLOOKUP(C108,'Anexo_GL '!$B$9:$O$1882,4,0) -> 2916.35028 | H108: =+VLOOKUP(C108,'Anexo_GL '!$B$9:$O$1882,5,0) -> 3730.22353 | I108: =+VLOOKUP(C108,'Anexo_GL '!$B$9:$O$1882,6,0) -> 0.00264 | J108: =+VLOOKUP(C108,'Anexo_GL '!$B$9:$O$1882,7,0) -> 0 | L108: =+VLOOKUP(C108,'Anexo_GL '!$B$9:$O$1882,8,0) -> 78.18164934 | N108: =+VLOOKUP(C108,'Anexo_GL '!$B$9:$O$1882,9,0) -> Si Cumple | P108: =+VLOOKUP(C108,'Anexo_GL '!$B$9:$O$1882,11,0) -> 1270.26908 | Q108: =+VLOOKUP(C108,'Anexo_GL '!$B$9:$O$1882,12,0) -> 1198.50075 | R108: =+VLOOKUP(C108,'Anexo_GL '!$B$9:$O$1882,13,0) -> 71.76833 | S108: =+VLOOKUP(C108,'Anexo_GL '!$B$9:$O$1882,14,0) -> Si Cumple
A109: 010705 : MD DE JAMALCA | B109: 82 | C109: 010705 | D109: AMAZONAS | E109: MD DE JAMALCA | F109: =+VLOOKUP(C109,'Anexo_GL '!$B$9:$O$1882,4,0) -> 172.28223 | H109: =+VLOOKUP(C109,'Anexo_GL '!$B$9:$O$1882,5,0) -> 4626.823958 | I109: =+VLOOKUP(C109,'Anexo_GL '!$B$9:$O$1882,6,0) -> 0.00373 | J109: =+VLOOKUP(C109,'Anexo_GL '!$B$9:$O$1882,7,0) -> 0 | L109: =+VLOOKUP(C109,'Anexo_GL '!$B$9:$O$1882,8,0) -> 3.723552735 | N109: =+VLOOKUP(C109,'Anexo_GL '!$B$9:$O$1882,9,0) -> Si Cumple | P109: =+VLOOKUP(C109,'Anexo_GL '!$B$9:$O$1882,11,0) -> 2086.62473 | Q109: =+VLOOKUP(C109,'Anexo_GL '!$B$9:$O$1882,12,0) -> 1873.96226 | R109: =+VLOOKUP(C109,'Anexo_GL '!$B$9:$O$1882,13,0) -> 212.66247 | S109: =+VLOOKUP(C109,'Anexo_GL '!$B$9:$O$1882,14,0) -> Si Cumple
A110: 010706 : MD DE LONYA GRANDE | B110: 83 | C110: 010706 | D110: AMAZONAS | E110: MD DE LONYA GRANDE | F110: =+VLOOKUP(C110,'Anexo_GL '!$B$9:$O$1882,4,0) -> 2596.21491 | H110: =+VLOOKUP(C110,'Anexo_GL '!$B$9:$O$1882,5,0) -> 5201.964727 | I110: =+VLOOKUP(C110,'Anexo_GL '!$B$9:$O$1882,6,0) -> 0.00373 | J110: =+VLOOKUP(C110,'Anexo_GL '!$B$9:$O$1882,7,0) -> 0 | L110: =+VLOOKUP(C110,'Anexo_GL '!$B$9:$O$1882,8,0) -> 49.90835282 | N110: =+VLOOKUP(C110,'Anexo_GL '!$B$9:$O$1882,9,0) -> Si Cumple | P110: =+VLOOKUP(C110,'Anexo_GL '!$B$9:$O$1882,11,0) -> 2630.27441 | Q110: =+VLOOKUP(C110,'Anexo_GL '!$B$9:$O$1882,12,0) -> 1886.08033 | R110: =+VLOOKUP(C110,'Anexo_GL '!$B$9:$O$1882,13,0) -> 744.19408 | S110: =+VLOOKUP(C110,'Anexo_GL '!$B$9:$O$1882,14,0) -> Si Cumple
A111: 010707 : MD DE YAMON | B111: 84 | C111: 010707 | D111: AMAZONAS | E111: MD DE YAMON | F111: =+VLOOKUP(C111,'Anexo_GL '!$B$9:$O$1882,4,0) -> 496.72448 | H111: =+VLOOKUP(C111,'Anexo_GL '!$B$9:$O$1882,5,0) -> 2352.44864 | I111: =+VLOOKUP(C111,'Anexo_GL '!$B$9:$O$1882,6,0) -> 0.00186 | J111: =+VLOOKUP(C111,'Anexo_GL '!$B$9:$O$1882,7,0) -> 0 | L111: =+VLOOKUP(C111,'Anexo_GL '!$B$9:$O$1882,8,0) -> 21.1152104 | N111: =+VLOOKUP(C111,'Anexo_GL '!$B$9:$O$1882,9,0) -> Si Cumple | P111: =+VLOOKUP(C111,'Anexo_GL '!$B$9:$O$1882,11,0) -> 781.04761 | Q111: =+VLOOKUP(C111,'Anexo_GL '!$B$9:$O$1882,12,0) -> 821.95705 | R111: =+VLOOKUP(C111,'Anexo_GL '!$B$9:$O$1882,13,0) -> -40.90944 | S111: =+VLOOKUP(C111,'Anexo_GL '!$B$9:$O$1882,14,0) -> No Cumple
A112: 020101 : MP DE HUARAZ | B112: 85 | C112: 020101 | D112: ANCASH | E112: MP DE HUARAZ | F112: =+VLOOKUP(C112,'Anexo_GL '!$B$9:$O$1882,4,0) -> 17253.71844 | H112: =+VLOOKUP(C112,'Anexo_GL '!$B$9:$O$1882,5,0) -> 77863.05442 | I112: =+VLOOKUP(C112,'Anexo_GL '!$B$9:$O$1882,6,0) -> 104141.4976 | J112: =+VLOOKUP(C112,'Anexo_GL '!$B$9:$O$1882,7,0) -> 0 | L112: =+VLOOKUP(C112,'Anexo_GL '!$B$9:$O$1882,8,0) -> 16.5675728 | N112: =+VLOOKUP(C112,'Anexo_GL '!$B$9:$O$1882,9,0) -> Si Cumple | P112: =+VLOOKUP(C112,'Anexo_GL '!$B$9:$O$1882,11,0) -> 31826.23914 | Q112: =+VLOOKUP(C112,'Anexo_GL '!$B$9:$O$1882,12,0) -> 18092.79736 | R112: =+VLOOKUP(C112,'Anexo_GL '!$B$9:$O$1882,13,0) -> 13733.44178 | S112: =+VLOOKUP(C112,'Anexo_GL '!$B$9:$O$1882,14,0) -> Si Cumple
A113: 020102 : MD DE COCHABAMBA | B113: 86 | C113: 020102 | D113: ANCASH | E113: MD DE COCHABAMBA | F113: =+VLOOKUP(C113,'Anexo_GL '!$B$9:$O$1882,4,0) -> 197.94384 | H113: =+VLOOKUP(C113,'Anexo_GL '!$B$9:$O$1882,5,0) -> 3133.806177 | I113: =+VLOOKUP(C113,'Anexo_GL '!$B$9:$O$1882,6,0) -> 6837.53614 | J113: =+VLOOKUP(C113,'Anexo_GL '!$B$9:$O$1882,7,0) -> 0 | L113: =+VLOOKUP(C113,'Anexo_GL '!$B$9:$O$1882,8,0) -> 2.894958592 | N113: =+VLOOKUP(C113,'Anexo_GL '!$B$9:$O$1882,9,0) -> Si Cumple | P113: =+VLOOKUP(C113,'Anexo_GL '!$B$9:$O$1882,11,0) -> 749.79165 | Q113: =+VLOOKUP(C113,'Anexo_GL '!$B$9:$O$1882,12,0) -> 423.07351 | R113: =+VLOOKUP(C113,'Anexo_GL '!$B$9:$O$1882,13,0) -> 326.71814 | S113: =+VLOOKUP(C113,'Anexo_GL '!$B$9:$O$1882,14,0) -> Si Cumple
A114: 020103 : MD DE COLCABAMBA | B114: 87 | C114: 020103 | D114: ANCASH | E114: MD DE COLCABAMBA | F114: =+VLOOKUP(C114,'Anexo_GL '!$B$9:$O$1882,4,0) -> 98.05638 | H114: =+VLOOKUP(C114,'Anexo_GL '!$B$9:$O$1882,5,0) -> 1826.140863 | I114: =+VLOOKUP(C114,'Anexo_GL '!$B$9:$O$1882,6,0) -> 423.22551 | J114: =+VLOOKUP(C114,'Anexo_GL '!$B$9:$O$1882,7,0) -> 0 | L114: =+VLOOKUP(C114,'Anexo_GL '!$B$9:$O$1882,8,0) -> 5.369595633 | N114: =+VLOOKUP(C114,'Anexo_GL '!$B$9:$O$1882,9,0) -> Si Cumple | P114: =+VLOOKUP(C114,'Anexo_GL '!$B$9:$O$1882,11,0) -> 224.91642 | Q114: =+VLOOKUP(C114,'Anexo_GL '!$B$9:$O$1882,12,0) -> 243.51781 | R114: =+VLOOKUP(C114,'Anexo_GL '!$B$9:$O$1882,13,0) -> -18.60139 | S114: =+VLOOKUP(C114,'Anexo_GL '!$B$9:$O$1882,14,0) -> No Cumple
A115: 020104 : MD DE HUANCHAY | B115: 88 | C115: 020104 | D115: ANCASH | E115: MD DE HUANCHAY | F115: =+VLOOKUP(C115,'Anexo_GL '!$B$9:$O$1882,4,0) -> 101.98899 | H115: =+VLOOKUP(C115,'Anexo_GL '!$B$9:$O$1882,5,0) -> 2810.029697 | I115: =+VLOOKUP(C115,'Anexo_GL '!$B$9:$O$1882,6,0) -> 5918.47777 | J115: =+VLOOKUP(C115,'Anexo_GL '!$B$9:$O$1882,7,0) -> 0 | L115: =+VLOOKUP(C115,'Anexo_GL '!$B$9:$O$1882,8,0) -> 1.723230093 | N115: =+VLOOKUP(C115,'Anexo_GL '!$B$9:$O$1882,9,0) -> Si Cumple | P115: =+VLOOKUP(C115,'Anexo_GL '!$B$9:$O$1882,11,0) -> 987.55248 | Q115: =+VLOOKUP(C115,'Anexo_GL '!$B$9:$O$1882,12,0) -> 555.66438 | R115: =+VLOOKUP(C115,'Anexo_GL '!$B$9:$O$1882,13,0) -> 431.8881 | S115: =+VLOOKUP(C115,'Anexo_GL '!$B$9:$O$1882,14,0) -> Si Cumple
A116: 020105 : MD DE INDEPENDENCIA | B116: 89 | C116: 020105 | D116: ANCASH | E116: MD DE INDEPENDENCIA | F116: =+VLOOKUP(C116,'Anexo_GL '!$B$9:$O$1882,4,0) -> 6179.45835 | H116: =+VLOOKUP(C116,'Anexo_GL '!$B$9:$O$1882,5,0) -> 62622.81645 | I116: =+VLOOKUP(C116,'Anexo_GL '!$B$9:$O$1882,6,0) -> 136855.051 | J116: =+VLOOKUP(C116,'Anexo_GL '!$B$9:$O$1882,7,0) -> 0 | L116: =+VLOOKUP(C116,'Anexo_GL '!$B$9:$O$1882,8,0) -> 4.515330859 | N116: =+VLOOKUP(C116,'Anexo_GL '!$B$9:$O$1882,9,0) -> Si Cumple | P116: =+VLOOKUP(C116,'Anexo_GL '!$B$9:$O$1882,11,0) -> 29536.50811 | Q116: =+VLOOKUP(C116,'Anexo_GL '!$B$9:$O$1882,12,0) -> 12228.23783 | R116: =+VLOOKUP(C116,'Anexo_GL '!$B$9:$O$1882,13,0) -> 17308.27028 | S116: =+VLOOKUP(C116,'Anexo_GL '!$B$9:$O$1882,14,0) -> Si Cumple
A117: 020106 : MD DE JANGAS | B117: 90 | C117: 020106 | D117: ANCASH | E117: MD DE JANGAS | F117: =+VLOOKUP(C117,'Anexo_GL '!$B$9:$O$1882,4,0) -> 140.49092 | H117: =+VLOOKUP(C117,'Anexo_GL '!$B$9:$O$1882,5,0) -> 5390.619117 | I117: =+VLOOKUP(C117,'Anexo_GL '!$B$9:$O$1882,6,0) -> 14412.7683 | J117: =+VLOOKUP(C117,'Anexo_GL '!$B$9:$O$1882,7,0) -> 0 | L117: =+VLOOKUP(C117,'Anexo_GL '!$B$9:$O$1882,8,0) -> 0.9747670751 | N117: =+VLOOKUP(C117,'Anexo_GL '!$B$9:$O$1882,9,0) -> Si Cumple | P117: =+VLOOKUP(C117,'Anexo_GL '!$B$9:$O$1882,11,0) -> 2177.0506 | Q117: =+VLOOKUP(C117,'Anexo_GL '!$B$9:$O$1882,12,0) -> 929.49506 | R117: =+VLOOKUP(C117,'Anexo_GL '!$B$9:$O$1882,13,0) -> 1247.55554 | S117: =+VLOOKUP(C117,'Anexo_GL '!$B$9:$O$1882,14,0) -> Si Cumple
A118: 020107 : MD DE LA LIBERTAD | B118: 91 | C118: 020107 | D118: ANCASH | E118: MD DE LA LIBERTAD | F118: =+VLOOKUP(C118,'Anexo_GL '!$B$9:$O$1882,4,0) -> 127.30654 | H118: =+VLOOKUP(C118,'Anexo_GL '!$B$9:$O$1882,5,0) -> 2691.399255 | I118: =+VLOOKUP(C118,'Anexo_GL '!$B$9:$O$1882,6,0) -> 4477.09797 | J118: =+VLOOKUP(C118,'Anexo_GL '!$B$9:$O$1882,7,0) -> 0 | L118: =+VLOOKUP(C118,'Anexo_GL '!$B$9:$O$1882,8,0) -> 2.84350579 | N118: =+VLOOKUP(C118,'Anexo_GL '!$B$9:$O$1882,9,0) -> Si Cumple | P118: =+VLOOKUP(C118,'Anexo_GL '!$B$9:$O$1882,11,0) -> 622.54339 | Q118: =+VLOOKUP(C118,'Anexo_GL '!$B$9:$O$1882,12,0) -> 497.14108 | R118: =+VLOOKUP(C118,'Anexo_GL '!$B$9:$O$1882,13,0) -> 125.40231 | S118: =+VLOOKUP(C118,'Anexo_GL '!$B$9:$O$1882,14,0) -> Si Cumple
A119: 020108 : MD DE OLLEROS | B119: 92 | C119: 020108 | D119: ANCASH | E119: MD DE OLLEROS | F119: =+VLOOKUP(C119,'Anexo_GL '!$B$9:$O$1882,4,0) -> 1234.90473 | H119: =+VLOOKUP(C119,'Anexo_GL '!$B$9:$O$1882,5,0) -> 3165.85657 | I119: =+VLOOKUP(C119,'Anexo_GL '!$B$9:$O$1882,6,0) -> 7240.61196 | J119: =+VLOOKUP(C119,'Anexo_GL '!$B$9:$O$1882,7,0) -> 0 | L119: =+VLOOKUP(C119,'Anexo_GL '!$B$9:$O$1882,8,0) -> 17.05525357 | N119: =+VLOOKUP(C119,'Anexo_GL '!$B$9:$O$1882,9,0) -> Si Cumple | P119: =+VLOOKUP(C119,'Anexo_GL '!$B$9:$O$1882,11,0) -> 1078.14821 | Q119: =+VLOOKUP(C119,'Anexo_GL '!$B$9:$O$1882,12,0) -> 577.18659 | R119: =+VLOOKUP(C119,'Anexo_GL '!$B$9:$O$1882,13,0) -> 500.96162 | S119: =+VLOOKUP(C119,'Anexo_GL '!$B$9:$O$1882,14,0) -> Si Cumple
A120: 020109 : MD DE PAMPAS | B120: 93 | C120: 020109 | D120: ANCASH | E120: MD DE PAMPAS | F120: =+VLOOKUP(C120,'Anexo_GL '!$B$9:$O$1882,4,0) -> 1062.75023 | H120: =+VLOOKUP(C120,'Anexo_GL '!$B$9:$O$1882,5,0) -> 1862.4408 | I120: =+VLOOKUP(C120,'Anexo_GL '!$B$9:$O$1882,6,0) -> 2673.37535 | J120: =+VLOOKUP(C120,'Anexo_GL '!$B$9:$O$1882,7,0) -> 0 | L120: =+VLOOKUP(C120,'Anexo_GL '!$B$9:$O$1882,8,0) -> 39.75312445 | N120: =+VLOOKUP(C120,'Anexo_GL '!$B$9:$O$1882,9,0) -> Si Cumple | P120: =+VLOOKUP(C120,'Anexo_GL '!$B$9:$O$1882,11,0) -> 566.04546 | Q120: =+VLOOKUP(C120,'Anexo_GL '!$B$9:$O$1882,12,0) -> 436.63947 | R120: =+VLOOKUP(C120,'Anexo_GL '!$B$9:$O$1882,13,0) -> 129.40599 | S120: =+VLOOKUP(C120,'Anexo_GL '!$B$9:$O$1882,14,0) -> Si Cumple
A121: 020110 : MD DE PARIACOTO | B121: 94 | C121: 020110 | D121: ANCASH | E121: MD DE PARIACOTO | F121: =+VLOOKUP(C121,'Anexo_GL '!$B$9:$O$1882,4,0) -> 218.88287 | H121: =+VLOOKUP(C121,'Anexo_GL '!$B$9:$O$1882,5,0) -> 4869.802203 | I121: =+VLOOKUP(C121,'Anexo_GL '!$B$9:$O$1882,6,0) -> 10124.00828 | J121: =+VLOOKUP(C121,'Anexo_GL '!$B$9:$O$1882,7,0) -> 0 | L121: =+VLOOKUP(C121,'Anexo_GL '!$B$9:$O$1882,8,0) -> 2.162017888 | N121: =+VLOOKUP(C121,'Anexo_GL '!$B$9:$O$1882,9,0) -> Si Cumple | P121: =+VLOOKUP(C121,'Anexo_GL '!$B$9:$O$1882,11,0) -> 1316.82984 | Q121: =+VLOOKUP(C121,'Anexo_GL '!$B$9:$O$1882,12,0) -> 996.79575 | R121: =+VLOOKUP(C121,'Anexo_GL '!$B$9:$O$1882,13,0) -> 320.03409 | S121: =+VLOOKUP(C121,'Anexo_GL '!$B$9:$O$1882,14,0) -> Si Cumple
A122: 020111 : MD DE PIRA | B122: 95 | C122: 020111 | D122: ANCASH | E122: MD DE PIRA | F122: =+VLOOKUP(C122,'Anexo_GL '!$B$9:$O$1882,4,0) -> 839.17938 | H122: =+VLOOKUP(C122,'Anexo_GL '!$B$9:$O$1882,5,0) -> 4553.48176 | I122: =+VLOOKUP(C122,'Anexo_GL '!$B$9:$O$1882,6,0) -> 10099.99644 | J122: =+VLOOKUP(C122,'Anexo_GL '!$B$9:$O$1882,7,0) -> 0 | L122: =+VLOOKUP(C122,'Anexo_GL '!$B$9:$O$1882,8,0) -> 8.308709661 | N122: =+VLOOKUP(C122,'Anexo_GL '!$B$9:$O$1882,9,0) -> Si Cumple | P122: =+VLOOKUP(C122,'Anexo_GL '!$B$9:$O$1882,11,0) -> 1459.09169 | Q122: =+VLOOKUP(C122,'Anexo_GL '!$B$9:$O$1882,12,0) -> 940.1746 | R122: =+VLOOKUP(C122,'Anexo_GL '!$B$9:$O$1882,13,0) -> 518.91709 | S122: =+VLOOKUP(C122,'Anexo_GL '!$B$9:$O$1882,14,0) -> Si Cumple
A123: 020112 : MD DE TARICA | B123: 96 | C123: 020112 | D123: ANCASH | E123: MD DE TARICA | F123: =+VLOOKUP(C123,'Anexo_GL '!$B$9:$O$1882,4,0) -> 876.27957 | H123: =+VLOOKUP(C123,'Anexo_GL '!$B$9:$O$1882,5,0) -> 7784.416888 | I123: =+VLOOKUP(C123,'Anexo_GL '!$B$9:$O$1882,6,0) -> 20417.01128 | J123: =+VLOOKUP(C123,'Anexo_GL '!$B$9:$O$1882,7,0) -> 0 | L123: =+VLOOKUP(C123,'Anexo_GL '!$B$9:$O$1882,8,0) -> 4.291909124 | N123: =+VLOOKUP(C123,'Anexo_GL '!$B$9:$O$1882,9,0) -> Si Cumple | P123: =+VLOOKUP(C123,'Anexo_GL '!$B$9:$O$1882,11,0) -> 2505.72472 | Q123: =+VLOOKUP(C123,'Anexo_GL '!$B$9:$O$1882,12,0) -> 1572.40589 | R123: =+VLOOKUP(C123,'Anexo_GL '!$B$9:$O$1882,13,0) -> 933.31883 | S123: =+VLOOKUP(C123,'Anexo_GL '!$B$9:$O$1882,14,0) -> Si Cumple
A124: 020201 : MP DE AIJA | B124: 97 | C124: 020201 | D124: ANCASH | E124: MP DE AIJA | F124: =+VLOOKUP(C124,'Anexo_GL '!$B$9:$O$1882,4,0) -> 675.46683 | H124: =+VLOOKUP(C124,'Anexo_GL '!$B$9:$O$1882,5,0) -> 11307.2101 | I124: =+VLOOKUP(C124,'Anexo_GL '!$B$9:$O$1882,6,0) -> 7447.51276 | J124: =+VLOOKUP(C124,'Anexo_GL '!$B$9:$O$1882,7,0) -> 0 | L124: =+VLOOKUP(C124,'Anexo_GL '!$B$9:$O$1882,8,0) -> 5.973770929 | N124: =+VLOOKUP(C124,'Anexo_GL '!$B$9:$O$1882,9,0) -> Si Cumple | P124: =+VLOOKUP(C124,'Anexo_GL '!$B$9:$O$1882,11,0) -> 1867.33186 | Q124: =+VLOOKUP(C124,'Anexo_GL '!$B$9:$O$1882,12,0) -> 1099.64041 | R124: =+VLOOKUP(C124,'Anexo_GL '!$B$9:$O$1882,13,0) -> 767.69145 | S124: =+VLOOKUP(C124,'Anexo_GL '!$B$9:$O$1882,14,0) -> Si Cumple
A125: 020202 : MD DE CORIS | B125: 98 | C125: 020202 | D125: ANCASH | E125: MD DE CORIS | F125: =+VLOOKUP(C125,'Anexo_GL '!$B$9:$O$1882,4,0) -> 99.97921 | H125: =+VLOOKUP(C125,'Anexo_GL '!$B$9:$O$1882,5,0) -> 4542.350917 | I125: =+VLOOKUP(C125,'Anexo_GL '!$B$9:$O$1882,6,0) -> 10577.94002 | J125: =+VLOOKUP(C125,'Anexo_GL '!$B$9:$O$1882,7,0) -> 0 | L125: =+VLOOKUP(C125,'Anexo_GL '!$B$9:$O$1882,8,0) -> 0.9451671101 | N125: =+VLOOKUP(C125,'Anexo_GL '!$B$9:$O$1882,9,0) -> Si Cumple | P125: =+VLOOKUP(C125,'Anexo_GL '!$B$9:$O$1882,11,0) -> 1626.09095 | Q125: =+VLOOKUP(C125,'Anexo_GL '!$B$9:$O$1882,12,0) -> 560.17848 | R125: =+VLOOKUP(C125,'Anexo_GL '!$B$9:$O$1882,13,0) -> 1065.91247 | S125: =+VLOOKUP(C125,'Anexo_GL '!$B$9:$O$1882,14,0) -> Si Cumple
A126: 020203 : MD DE HUACLLAN | B126: 99 | C126: 020203 | D126: ANCASH | E126: MD DE HUACLLAN | F126: =+VLOOKUP(C126,'Anexo_GL '!$B$9:$O$1882,4,0) -> 67.19588 | H126: =+VLOOKUP(C126,'Anexo_GL '!$B$9:$O$1882,5,0) -> 1294.539535 | I126: =+VLOOKUP(C126,'Anexo_GL '!$B$9:$O$1882,6,0) -> 1456.24297 | J126: =+VLOOKUP(C126,'Anexo_GL '!$B$9:$O$1882,7,0) -> 0 | L126: =+VLOOKUP(C126,'Anexo_GL '!$B$9:$O$1882,8,0) -> 4.614331632 | N126: =+VLOOKUP(C126,'Anexo_GL '!$B$9:$O$1882,9,0) -> Si Cumple | P126: =+VLOOKUP(C126,'Anexo_GL '!$B$9:$O$1882,11,0) -> 320.73541 | Q126: =+VLOOKUP(C126,'Anexo_GL '!$B$9:$O$1882,12,0) -> 233.57158 | R126: =+VLOOKUP(C126,'Anexo_GL '!$B$9:$O$1882,13,0) -> 87.16383 | S126: =+VLOOKUP(C126,'Anexo_GL '!$B$9:$O$1882,14,0) -> Si Cumple
A127: 020204 : MD DE LA MERCED | B127: 100 | C127: 020204 | D127: ANCASH | E127: MD DE LA MERCED | F127: =+VLOOKUP(C127,'Anexo_GL '!$B$9:$O$1882,4,0) -> 112.12603 | H127: =+VLOOKUP(C127,'Anexo_GL '!$B$9:$O$1882,5,0) -> 3249.051802 | I127: =+VLOOKUP(C127,'Anexo_GL '!$B$9:$O$1882,6,0) -> 5831.23977 | J127: =+VLOOKUP(C127,'Anexo_GL '!$B$9:$O$1882,7,0) -> 0 | L127: =+VLOOKUP(C127,'Anexo_GL '!$B$9:$O$1882,8,0) -> 1.922850619 | N127: =+VLOOKUP(C127,'Anexo_GL '!$B$9:$O$1882,9,0) -> Si Cumple | P127: =+VLOOKUP(C127,'Anexo_GL '!$B$9:$O$1882,11,0) -> 997.86909 | Q127: =+VLOOKUP(C127,'Anexo_GL '!$B$9:$O$1882,12,0) -> 513.16235 | R127: =+VLOOKUP(C127,'Anexo_GL '!$B$9:$O$1882,13,0) -> 484.70674 | S127: =+VLOOKUP(C127,'Anexo_GL '!$B$9:$O$1882,14,0) -> Si Cumple
A128: 020205 : MD DE SUCCHA | B128: 101 | C128: 020205 | D128: ANCASH | E128: MD DE SUCCHA | F128: =+VLOOKUP(C128,'Anexo_GL '!$B$9:$O$1882,4,0) -> 114.17866 | H128: =+VLOOKUP(C128,'Anexo_GL '!$B$9:$O$1882,5,0) -> 1851.885375 | I128: =+VLOOKUP(C128,'Anexo_GL '!$B$9:$O$1882,6,0) -> 2871.64165 | J128: =+VLOOKUP(C128,'Anexo_GL '!$B$9:$O$1882,7,0) -> 0 | L128: =+VLOOKUP(C128,'Anexo_GL '!$B$9:$O$1882,8,0) -> 3.976076193 | N128: =+VLOOKUP(C128,'Anexo_GL '!$B$9:$O$1882,9,0) -> Si Cumple | P128: =+VLOOKUP(C128,'Anexo_GL '!$B$9:$O$1882,11,0) -> 532.30873 | Q128: =+VLOOKUP(C128,'Anexo_GL '!$B$9:$O$1882,12,0) -> 395.84991 | R128: =+VLOOKUP(C128,'Anexo_GL '!$B$9:$O$1882,13,0) -> 136.45882 | S128: =+VLOOKUP(C128,'Anexo_GL '!$B$9:$O$1882,14,0) -> Si Cumple
A129: 020301 : MP DE ANTONIO RAYMONDI - LLAMELLIN | B129: 102 | C129: 020301 | D129: ANCASH | E129: MP DE ANTONIO RAYMONDI - LLAMELLIN | F129: =+VLOOKUP(C129,'Anexo_GL '!$B$9:$O$1882,4,0) -> 333.86867 | H129: =+VLOOKUP(C129,'Anexo_GL '!$B$9:$O$1882,5,0) -> 8480.1906 | I129: =+VLOOKUP(C129,'Anexo_GL '!$B$9:$O$1882,6,0) -> 11014.98717 | J129: =+VLOOKUP(C129,'Anexo_GL '!$B$9:$O$1882,7,0) -> 0 | L129: =+VLOOKUP(C129,'Anexo_GL '!$B$9:$O$1882,8,0) -> 3.031040026 | N129: =+VLOOKUP(C129,'Anexo_GL '!$B$9:$O$1882,9,0) -> Si Cumple | P129: =+VLOOKUP(C129,'Anexo_GL '!$B$9:$O$1882,11,0) -> 1509.66523 | Q129: =+VLOOKUP(C129,'Anexo_GL '!$B$9:$O$1882,12,0) -> 1284.33145 | R129: =+VLOOKUP(C129,'Anexo_GL '!$B$9:$O$1882,13,0) -> 225.33378 | S129: =+VLOOKUP(C129,'Anexo_GL '!$B$9:$O$1882,14,0) -> Si Cumple
A130: 020302 : MD DE ACSO | B130: 103 | C130: 020302 | D130: ANCASH | E130: MD DE ACSO | F130: =+VLOOKUP(C130,'Anexo_GL '!$B$9:$O$1882,4,0) -> 127.84657 | H130: =+VLOOKUP(C130,'Anexo_GL '!$B$9:$O$1882,5,0) -> 2239.407263 | I130: =+VLOOKUP(C130,'Anexo_GL '!$B$9:$O$1882,6,0) -> 3928.43316 | J130: =+VLOOKUP(C130,'Anexo_GL '!$B$9:$O$1882,7,0) -> 0 | L130: =+VLOOKUP(C130,'Anexo_GL '!$B$9:$O$1882,8,0) -> 3.254390868 | N130: =+VLOOKUP(C130,'Anexo_GL '!$B$9:$O$1882,9,0) -> Si Cumple | P130: =+VLOOKUP(C130,'Anexo_GL '!$B$9:$O$1882,11,0) -> 770.00017 | Q130: =+VLOOKUP(C130,'Anexo_GL '!$B$9:$O$1882,12,0) -> 375.25452 | R130: =+VLOOKUP(C130,'Anexo_GL '!$B$9:$O$1882,13,0) -> 394.74565 | S130: =+VLOOKUP(C130,'Anexo_GL '!$B$9:$O$1882,14,0) -> Si Cumple
A131: 020303 : MD DE CHACCHO | B131: 104 | C131: 020303 | D131: ANCASH | E131: MD DE CHACCHO | F131: =+VLOOKUP(C131,'Anexo_GL '!$B$9:$O$1882,4,0) -> 490.53103 | H131: =+VLOOKUP(C131,'Anexo_GL '!$B$9:$O$1882,5,0) -> 2626.82503 | I131: =+VLOOKUP(C131,'Anexo_GL '!$B$9:$O$1882,6,0) -> 5492.42477 | J131: =+VLOOKUP(C131,'Anexo_GL '!$B$9:$O$1882,7,0) -> 0 | L131: =+VLOOKUP(C131,'Anexo_GL '!$B$9:$O$1882,8,0) -> 8.931046861 | N131: =+VLOOKUP(C131,'Anexo_GL '!$B$9:$O$1882,9,0) -> Si Cumple | P131: =+VLOOKUP(C131,'Anexo_GL '!$B$9:$O$1882,11,0) -> 638.75135 | Q131: =+VLOOKUP(C131,'Anexo_GL '!$B$9:$O$1882,12,0) -> 445.54637 | R131: =+VLOOKUP(C131,'Anexo_GL '!$B$9:$O$1882,13,0) -> 193.20498 | S131: =+VLOOKUP(C131,'Anexo_GL '!$B$9:$O$1882,14,0) -> Si Cumple
A132: 020304 : MD DE CHINGAS | B132: 105 | C132: 020304 | D132: ANCASH | E132: MD DE CHINGAS | F132: =+VLOOKUP(C132,'Anexo_GL '!$B$9:$O$1882,4,0) -> 115.72234 | H132: =+VLOOKUP(C132,'Anexo_GL '!$B$9:$O$1882,5,0) -> 2529.831658 | I132: =+VLOOKUP(C132,'Anexo_GL '!$B$9:$O$1882,6,0) -> 5422.96153 | J132: =+VLOOKUP(C132,'Anexo_GL '!$B$9:$O$1882,7,0) -> 0 | L132: =+VLOOKUP(C132,'Anexo_GL '!$B$9:$O$1882,8,0) -> 2.133932527 | N132: =+VLOOKUP(C132,'Anexo_GL '!$B$9:$O$1882,9,0) -> Si Cumple | P132: =+VLOOKUP(C132,'Anexo_GL '!$B$9:$O$1882,11,0) -> 938.58404 | Q132: =+VLOOKUP(C132,'Anexo_GL '!$B$9:$O$1882,12,0) -> 531.2549 | R132: =+VLOOKUP(C132,'Anexo_GL '!$B$9:$O$1882,13,0) -> 407.32914 | S132: =+VLOOKUP(C132,'Anexo_GL '!$B$9:$O$1882,14,0) -> Si Cumple
A133: 020305 : MD DE MIRGAS | B133: 106 | C133: 020305 | D133: ANCASH | E133: MD DE MIRGAS | F133: =+VLOOKUP(C133,'Anexo_GL '!$B$9:$O$1882,4,0) -> 455.43292 | H133: =+VLOOKUP(C133,'Anexo_GL '!$B$9:$O$1882,5,0) -> 6374.925837 | I133: =+VLOOKUP(C133,'Anexo_GL '!$B$9:$O$1882,6,0) -> 15789.76116 | J133: =+VLOOKUP(C133,'Anexo_GL '!$B$9:$O$1882,7,0) -> 0 | L133: =+VLOOKUP(C133,'Anexo_GL '!$B$9:$O$1882,8,0) -> 2.884355978 | N133: =+VLOOKUP(C133,'Anexo_GL '!$B$9:$O$1882,9,0) -> Si Cumple | P133: =+VLOOKUP(C133,'Anexo_GL '!$B$9:$O$1882,11,0) -> 1646.10348 | Q133: =+VLOOKUP(C133,'Anexo_GL '!$B$9:$O$1882,12,0) -> 790.23708 | R133: =+VLOOKUP(C133,'Anexo_GL '!$B$9:$O$1882,13,0) -> 855.8664 | S133: =+VLOOKUP(C133,'Anexo_GL '!$B$9:$O$1882,14,0) -> Si Cumple
A134: 020306 : MD DE SAN JUAN DE RONTOY | B134: 107 | C134: 020306 | D134: ANCASH | E134: MD DE SAN JUAN DE RONTOY | F134: =+VLOOKUP(C134,'Anexo_GL '!$B$9:$O$1882,4,0) -> 167.30757 | H134: =+VLOOKUP(C134,'Anexo_GL '!$B$9:$O$1882,5,0) -> 1673.413262 | I134: =+VLOOKUP(C134,'Anexo_GL '!$B$9:$O$1882,6,0) -> 1935.27156 | J134: =+VLOOKUP(C134,'Anexo_GL '!$B$9:$O$1882,7,0) -> 0 | L134: =+VLOOKUP(C134,'Anexo_GL '!$B$9:$O$1882,8,0) -> 8.645172774 | N134: =+VLOOKUP(C134,'Anexo_GL '!$B$9:$O$1882,9,0) -> Si Cumple | P134: =+VLOOKUP(C134,'Anexo_GL '!$B$9:$O$1882,11,0) -> 508.06971 | Q134: =+VLOOKUP(C134,'Anexo_GL '!$B$9:$O$1882,12,0) -> 374.80898 | R134: =+VLOOKUP(C134,'Anexo_GL '!$B$9:$O$1882,13,0) -> 133.26073 | S134: =+VLOOKUP(C134,'Anexo_GL '!$B$9:$O$1882,14,0) -> Si Cumple
A135: 020401 : MP DE ASUNCION - CHACAS | B135: 108 | C135: 020401 | D135: ANCASH | E135: MP DE ASUNCION - CHACAS | F135: =+VLOOKUP(C135,'Anexo_GL '!$B$9:$O$1882,4,0) -> 399.85771 | H135: =+VLOOKUP(C135,'Anexo_GL '!$B$9:$O$1882,5,0) -> 7842.579233 | I135: =+VLOOKUP(C135,'Anexo_GL '!$B$9:$O$1882,6,0) -> 10303.48051 | J135: =+VLOOKUP(C135,'Anexo_GL '!$B$9:$O$1882,7,0) -> 0 | L135: =+VLOOKUP(C135,'Anexo_GL '!$B$9:$O$1882,8,0) -> 3.880802313 | N135: =+VLOOKUP(C135,'Anexo_GL '!$B$9:$O$1882,9,0) -> Si Cumple | P135: =+VLOOKUP(C135,'Anexo_GL '!$B$9:$O$1882,11,0) -> 1460.76025 | Q135: =+VLOOKUP(C135,'Anexo_GL '!$B$9:$O$1882,12,0) -> 1323.95235 | R135: =+VLOOKUP(C135,'Anexo_GL '!$B$9:$O$1882,13,0) -> 136.8079 | S135: =+VLOOKUP(C135,'Anexo_GL '!$B$9:$O$1882,14,0) -> Si Cumple
A136: 020402 : MD DE ACOCHACA | B136: 109 | C136: 020402 | D136: ANCASH | E136: MD DE ACOCHACA | F136: =+VLOOKUP(C136,'Anexo_GL '!$B$9:$O$1882,4,0) -> 446.99562 | H136: =+VLOOKUP(C136,'Anexo_GL '!$B$9:$O$1882,5,0) -> 2884.75557 | I136: =+VLOOKUP(C136,'Anexo_GL '!$B$9:$O$1882,6,0) -> 5825.10287 | J136: =+VLOOKUP(C136,'Anexo_GL '!$B$9:$O$1882,7,0) -> 0 | L136: =+VLOOKUP(C136,'Anexo_GL '!$B$9:$O$1882,8,0) -> 7.673609033 | N136: =+VLOOKUP(C136,'Anexo_GL '!$B$9:$O$1882,9,0) -> Si Cumple | P136: =+VLOOKUP(C136,'Anexo_GL '!$B$9:$O$1882,11,0) -> 900.4577 | Q136: =+VLOOKUP(C136,'Anexo_GL '!$B$9:$O$1882,12,0) -> 499.00723 | R136: =+VLOOKUP(C136,'Anexo_GL '!$B$9:$O$1882,13,0) -> 401.45047 | S136: =+VLOOKUP(C136,'Anexo_GL '!$B$9:$O$1882,14,0) -> Si Cumple
A137: 020501 : MP DE BOLOGNESI - CHIQUIAN | B137: 110 | C137: 020501 | D137: ANCASH | E137: MP DE BOLOGNESI - CHIQUIAN | F137: =+VLOOKUP(C137,'Anexo_GL '!$B$9:$O$1882,4,0) -> 1869.85107 | H137: =+VLOOKUP(C137,'Anexo_GL '!$B$9:$O$1882,5,0) -> 18255.5618 | I137: =+VLOOKUP(C137,'Anexo_GL '!$B$9:$O$1882,6,0) -> 7195.42444 | J137: =+VLOOKUP(C137,'Anexo_GL '!$B$9:$O$1882,7,0) -> 0 | L137: =+VLOOKUP(C137,'Anexo_GL '!$B$9:$O$1882,8,0) -> 10.24263778 | N137: =+VLOOKUP(C137,'Anexo_GL '!$B$9:$O$1882,9,0) -> Si Cumple | P137: =+VLOOKUP(C137,'Anexo_GL '!$B$9:$O$1882,11,0) -> 2346.07592 | Q137: =+VLOOKUP(C137,'Anexo_GL '!$B$9:$O$1882,12,0) -> 1974.86604 | R137: =+VLOOKUP(C137,'Anexo_GL '!$B$9:$O$1882,13,0) -> 371.20988 | S137: =+VLOOKUP(C137,'Anexo_GL '!$B$9:$O$1882,14,0) -> Si Cumple
A138: 020502 : MD DE ABELARDO PARDO LAZAMETA | B138: 111 | C138: 020502 | D138: ANCASH | E138: MD DE ABELARDO PARDO LAZAMETA | F138: =+VLOOKUP(C138,'Anexo_GL '!$B$9:$O$1882,4,0) -> 196.956 | H138: =+VLOOKUP(C138,'Anexo_GL '!$B$9:$O$1882,5,0) -> 1051.606255 | I138: =+VLOOKUP(C138,'Anexo_GL '!$B$9:$O$1882,6,0) -> 571.07458 | J138: =+VLOOKUP(C138,'Anexo_GL '!$B$9:$O$1882,7,0) -> 0 | L138: =+VLOOKUP(C138,'Anexo_GL '!$B$9:$O$1882,8,0) -> 18.72906319 | N138: =+VLOOKUP(C138,'Anexo_GL '!$B$9:$O$1882,9,0) -> Si Cumple | P138: =+VLOOKUP(C138,'Anexo_GL '!$B$9:$O$1882,11,0) -> 327.26268 | Q138: =+VLOOKUP(C138,'Anexo_GL '!$B$9:$O$1882,12,0) -> 336.12846 | R138: =+VLOOKUP(C138,'Anexo_GL '!$B$9:$O$1882,13,0) -> -8.86578 | S138: =+VLOOKUP(C138,'Anexo_GL '!$B$9:$O$1882,14,0) -> No Cumple
A139: 020503 : MD DE ANTONIO RAYMONDI | B139: 112 | C139: 020503 | D139: ANCASH | E139: MD DE ANTONIO RAYMONDI | F139: =+VLOOKUP(C139,'Anexo_GL '!$B$9:$O$1882,4,0) -> 220.6618 | H139: =+VLOOKUP(C139,'Anexo_GL '!$B$9:$O$1882,5,0) -> 4188.48074 | I139: =+VLOOKUP(C139,'Anexo_GL '!$B$9:$O$1882,6,0) -> 3658.55837 | J139: =+VLOOKUP(C139,'Anexo_GL '!$B$9:$O$1882,7,0) -> 0 | L139: =+VLOOKUP(C139,'Anexo_GL '!$B$9:$O$1882,8,0) -> 5.268301652 | N139: =+VLOOKUP(C139,'Anexo_GL '!$B$9:$O$1882,9,0) -> Si Cumple | P139: =+VLOOKUP(C139,'Anexo_GL '!$B$9:$O$1882,11,0) -> 504.93121 | Q139: =+VLOOKUP(C139,'Anexo_GL '!$B$9:$O$1882,12,0) -> 986.34768 | R139: =+VLOOKUP(C139,'Anexo_GL '!$B$9:$O$1882,13,0) -> -481.41647 | S139: =+VLOOKUP(C139,'Anexo_GL '!$B$9:$O$1882,14,0) -> No Cumple
A140: 020504 : MD DE AQUIA | B140: 113 | C140: 020504 | D140: ANCASH | E140: MD DE AQUIA | F140: =+VLOOKUP(C140,'Anexo_GL '!$B$9:$O$1882,4,0) -> 686.58995 | H140: =+VLOOKUP(C140,'Anexo_GL '!$B$9:$O$1882,5,0) -> 3047.185782 | I140: =+VLOOKUP(C140,'Anexo_GL '!$B$9:$O$1882,6,0) -> 5660.12331 | J140: =+VLOOKUP(C140,'Anexo_GL '!$B$9:$O$1882,7,0) -> 0 | L140: =+VLOOKUP(C140,'Anexo_GL '!$B$9:$O$1882,8,0) -> 12.13030021 | N140: =+VLOOKUP(C140,'Anexo_GL '!$B$9:$O$1882,9,0) -> Si Cumple | P140: =+VLOOKUP(C140,'Anexo_GL '!$B$9:$O$1882,11,0) -> 1156.65587 | Q140: =+VLOOKUP(C140,'Anexo_GL '!$B$9:$O$1882,12,0) -> 442.44327 | R140: =+VLOOKUP(C140,'Anexo_GL '!$B$9:$O$1882,13,0) -> 714.2126 | S140: =+VLOOKUP(C140,'Anexo_GL '!$B$9:$O$1882,14,0) -> Si Cumple
A141: 020505 : MD DE CAJACAY | B141: 114 | C141: 020505 | D141: ANCASH | E141: MD DE CAJACAY | F141: =+VLOOKUP(C141,'Anexo_GL '!$B$9:$O$1882,4,0) -> 2060.25389 | H141: =+VLOOKUP(C141,'Anexo_GL '!$B$9:$O$1882,5,0) -> 2905.51479 | I141: =+VLOOKUP(C141,'Anexo_GL '!$B$9:$O$1882,6,0) -> 6496.86238 | J141: =+VLOOKUP(C141,'Anexo_GL '!$B$9:$O$1882,7,0) -> 0 | L141: =+VLOOKUP(C141,'Anexo_GL '!$B$9:$O$1882,8,0) -> 31.71152119 | N141: =+VLOOKUP(C141,'Anexo_GL '!$B$9:$O$1882,9,0) -> Si Cumple | P141: =+VLOOKUP(C141,'Anexo_GL '!$B$9:$O$1882,11,0) -> 820.93923 | Q141: =+VLOOKUP(C141,'Anexo_GL '!$B$9:$O$1882,12,0) -> 515.38595 | R141: =+VLOOKUP(C141,'Anexo_GL '!$B$9:$O$1882,13,0) -> 305.55328 | S141: =+VLOOKUP(C141,'Anexo_GL '!$B$9:$O$1882,14,0) -> Si Cumple
A142: 020506 : MD DE CANIS | B142: 115 | C142: 020506 | D142: ANCASH | E142: MD DE CANIS | F142: =+VLOOKUP(C142,'Anexo_GL '!$B$9:$O$1882,4,0) -> 94.43896 | H142: =+VLOOKUP(C142,'Anexo_GL '!$B$9:$O$1882,5,0) -> 968.60784 | I142: =+VLOOKUP(C142,'Anexo_GL '!$B$9:$O$1882,6,0) -> 575.63028 | J142: =+VLOOKUP(C142,'Anexo_GL '!$B$9:$O$1882,7,0) -> 0 | L142: =+VLOOKUP(C142,'Anexo_GL '!$B$9:$O$1882,8,0) -> 9.749968573 | N142: =+VLOOKUP(C142,'Anexo_GL '!$B$9:$O$1882,9,0) -> Si Cumple | P142: =+VLOOKUP(C142,'Anexo_GL '!$B$9:$O$1882,11,0) -> 190.65711 | Q142: =+VLOOKUP(C142,'Anexo_GL '!$B$9:$O$1882,12,0) -> 311.81342 | R142: =+VLOOKUP(C142,'Anexo_GL '!$B$9:$O$1882,13,0) -> -121.15631 | S142: =+VLOOKUP(C142,'Anexo_GL '!$B$9:$O$1882,14,0) -> No Cumple
A143: 020507 : MD DE COLQUIOC | B143: 116 | C143: 020507 | D143: ANCASH | E143: MD DE COLQUIOC | F143: =+VLOOKUP(C143,'Anexo_GL '!$B$9:$O$1882,4,0) -> 458.66426 | H143: =+VLOOKUP(C143,'Anexo_GL '!$B$9:$O$1882,5,0) -> 2889.218882 | I143: =+VLOOKUP(C143,'Anexo_GL '!$B$9:$O$1882,6,0) -> 5200.98852 | J143: =+VLOOKUP(C143,'Anexo_GL '!$B$9:$O$1882,7,0) -> 0 | L143: =+VLOOKUP(C143,'Anexo_GL '!$B$9:$O$1882,8,0) -> 8.818790086 | N143: =+VLOOKUP(C143,'Anexo_GL '!$B$9:$O$1882,9,0) -> Si Cumple | P143: =+VLOOKUP(C143,'Anexo_GL '!$B$9:$O$1882,11,0) -> 1008.90811 | Q143: =+VLOOKUP(C143,'Anexo_GL '!$B$9:$O$1882,12,0) -> 489.89057 | R143: =+VLOOKUP(C143,'Anexo_GL '!$B$9:$O$1882,13,0) -> 519.01754 | S143: =+VLOOKUP(C143,'Anexo_GL '!$B$9:$O$1882,14,0) -> Si Cumple
A144: 020508 : MD DE HUALLANCA | B144: 117 | C144: 020508 | D144: ANCASH | E144: MD DE HUALLANCA | F144: =+VLOOKUP(C144,'Anexo_GL '!$B$9:$O$1882,4,0) -> 1605.01409 | H144: =+VLOOKUP(C144,'Anexo_GL '!$B$9:$O$1882,5,0) -> 10009.02681 | I144: =+VLOOKUP(C144,'Anexo_GL '!$B$9:$O$1882,6,0) -> 23388.49422 | J144: =+VLOOKUP(C144,'Anexo_GL '!$B$9:$O$1882,7,0) -> 0 | L144: =+VLOOKUP(C144,'Anexo_GL '!$B$9:$O$1882,8,0) -> 6.862408819 | N144: =+VLOOKUP(C144,'Anexo_GL '!$B$9:$O$1882,9,0) -> Si Cumple | P144: =+VLOOKUP(C144,'Anexo_GL '!$B$9:$O$1882,11,0) -> 849.22076 | Q144: =+VLOOKUP(C144,'Anexo_GL '!$B$9:$O$1882,12,0) -> 2061.58976 | R144: =+VLOOKUP(C144,'Anexo_GL '!$B$9:$O$1882,13,0) -> -1212.369 | S144: =+VLOOKUP(C144,'Anexo_GL '!$B$9:$O$1882,14,0) -> No Cumple
A145: 020509 : MD DE HUASTA | B145: 118 | C145: 020509 | D145: ANCASH | E145: MD DE HUASTA | F145: =+VLOOKUP(C145,'Anexo_GL '!$B$9:$O$1882,4,0) -> 191.59397 | H145: =+VLOOKUP(C145,'Anexo_GL '!$B$9:$O$1882,5,0) -> 2416.370685 | I145: =+VLOOKUP(C145,'Anexo_GL '!$B$9:$O$1882,6,0) -> 3331.46318 | J145: =+VLOOKUP(C145,'Anexo_GL '!$B$9:$O$1882,7,0) -> 0 | L145: =+VLOOKUP(C145,'Anexo_GL '!$B$9:$O$1882,8,0) -> 5.751045701 | N145: =+VLOOKUP(C145,'Anexo_GL '!$B$9:$O$1882,9,0) -> Si Cumple | P145: =+VLOOKUP(C145,'Anexo_GL '!$B$9:$O$1882,11,0) -> 660.09674 | Q145: =+VLOOKUP(C145,'Anexo_GL '!$B$9:$O$1882,12,0) -> 577.78705 | R145: =+VLOOKUP(C145,'Anexo_GL '!$B$9:$O$1882,13,0) -> 82.30969 | S145: =+VLOOKUP(C145,'Anexo_GL '!$B$9:$O$1882,14,0) -> Si Cumple
A146: 020510 : MD DE HUAYLLACAYAN | B146: 119 | C146: 020510 | D146: ANCASH | E146: MD DE HUAYLLACAYAN | F146: =+VLOOKUP(C146,'Anexo_GL '!$B$9:$O$1882,4,0) -> 689.22049 | H146: =+VLOOKUP(C146,'Anexo_GL '!$B$9:$O$1882,5,0) -> 2721.249605 | I146: =+VLOOKUP(C146,'Anexo_GL '!$B$9:$O$1882,6,0) -> 5323.76214 | J146: =+VLOOKUP(C146,'Anexo_GL '!$B$9:$O$1882,7,0) -> 0 | L146: =+VLOOKUP(C146,'Anexo_GL '!$B$9:$O$1882,8,0) -> 12.94611727 | N146: =+VLOOKUP(C146,'Anexo_GL '!$B$9:$O$1882,9,0) -> Si Cumple | P146: =+VLOOKUP(C146,'Anexo_GL '!$B$9:$O$1882,11,0) -> 628.7379 | Q146: =+VLOOKUP(C146,'Anexo_GL '!$B$9:$O$1882,12,0) -> 236.43545 | R146: =+VLOOKUP(C146,'Anexo_GL '!$B$9:$O$1882,13,0) -> 392.30245 | S146: =+VLOOKUP(C146,'Anexo_GL '!$B$9:$O$1882,14,0) -> Si Cumple
A147: 020511 : MD DE LA PRIMAVERA | B147: 120 | C147: 020511 | D147: ANCASH | E147: MD DE LA PRIMAVERA | F147: =+VLOOKUP(C147,'Anexo_GL '!$B$9:$O$1882,4,0) -> 180.79426 | H147: =+VLOOKUP(C147,'Anexo_GL '!$B$9:$O$1882,5,0) -> 3343.384213 | I147: =+VLOOKUP(C147,'Anexo_GL '!$B$9:$O$1882,6,0) -> 2539.32634 | J147: =+VLOOKUP(C147,'Anexo_GL '!$B$9:$O$1882,7,0) -> 0 | L147: =+VLOOKUP(C147,'Anexo_GL '!$B$9:$O$1882,8,0) -> 5.407522693 | N147: =+VLOOKUP(C147,'Anexo_GL '!$B$9:$O$1882,9,0) -> Si Cumple | P147: =+VLOOKUP(C147,'Anexo_GL '!$B$9:$O$1882,11,0) -> 399.45541 | Q147: =+VLOOKUP(C147,'Anexo_GL '!$B$9:$O$1882,12,0) -> 472.70887 | R147: =+VLOOKUP(C147,'Anexo_GL '!$B$9:$O$1882,13,0) -> -73.25346 | S147: =+VLOOKUP(C147,'Anexo_GL '!$B$9:$O$1882,14,0) -> No Cumple
A148: 020512 : MD DE MANGAS | B148: 121 | C148: 020512 | D148: ANCASH | E148: MD DE MANGAS | F148: =+VLOOKUP(C148,'Anexo_GL '!$B$9:$O$1882,4,0) -> 236.06806 | H148: =+VLOOKUP(C148,'Anexo_GL '!$B$9:$O$1882,5,0) -> 1722.235875 | I148: =+VLOOKUP(C148,'Anexo_GL '!$B$9:$O$1882,6,0) -> 2998.90368 | J148: =+VLOOKUP(C148,'Anexo_GL '!$B$9:$O$1882,7,0) -> 0 | L148: =+VLOOKUP(C148,'Anexo_GL '!$B$9:$O$1882,8,0) -> 7.871812008 | N148: =+VLOOKUP(C148,'Anexo_GL '!$B$9:$O$1882,9,0) -> Si Cumple | P148: =+VLOOKUP(C148,'Anexo_GL '!$B$9:$O$1882,11,0) -> 430.67607 | Q148: =+VLOOKUP(C148,'Anexo_GL '!$B$9:$O$1882,12,0) -> 289.05263 | R148: =+VLOOKUP(C148,'Anexo_GL '!$B$9:$O$1882,13,0) -> 141.62344 | S148: =+VLOOKUP(C148,'Anexo_GL '!$B$9:$O$1882,14,0) -> Si Cumple
A149: 020513 : MD DE PACLLON | B149: 122 | C149: 020513 | D149: ANCASH | E149: MD DE PACLLON | F149: =+VLOOKUP(C149,'Anexo_GL '!$B$9:$O$1882,4,0) -> 1061.45803 | H149: =+VLOOKUP(C149,'Anexo_GL '!$B$9:$O$1882,5,0) -> 1783.421107 | I149: =+VLOOKUP(C149,'Anexo_GL '!$B$9:$O$1882,6,0) -> 2958.39238 | J149: =+VLOOKUP(C149,'Anexo_GL '!$B$9:$O$1882,7,0) -> 0 | L149: =+VLOOKUP(C149,'Anexo_GL '!$B$9:$O$1882,8,0) -> 35.8795553 | N149: =+VLOOKUP(C149,'Anexo_GL '!$B$9:$O$1882,9,0) -> Si Cumple | P149: =+VLOOKUP(C149,'Anexo_GL '!$B$9:$O$1882,11,0) -> 688.09602 | Q149: =+VLOOKUP(C149,'Anexo_GL '!$B$9:$O$1882,12,0) -> 322.15196 | R149: =+VLOOKUP(C149,'Anexo_GL '!$B$9:$O$1882,13,0) -> 365.94406 | S149: =+VLOOKUP(C149,'Anexo_GL '!$B$9:$O$1882,14,0) -> Si Cumple
A150: 020514 : MD DE SAN MIGUEL DE CORPANQUI | B150: 123 | C150: 020514 | D150: ANCASH | E150: MD DE SAN MIGUEL DE CORPANQUI | F150: =+VLOOKUP(C150,'Anexo_GL '!$B$9:$O$1882,4,0) -> 80.18378 | H150: =+VLOOKUP(C150,'Anexo_GL '!$B$9:$O$1882,5,0) -> 1674.093145 | I150: =+VLOOKUP(C150,'Anexo_GL '!$B$9:$O$1882,6,0) -> 2664.13796 | J150: =+VLOOKUP(C150,'Anexo_GL '!$B$9:$O$1882,7,0) -> 0 | L150: =+VLOOKUP(C150,'Anexo_GL '!$B$9:$O$1882,8,0) -> 3.009745787 | N150: =+VLOOKUP(C150,'Anexo_GL '!$B$9:$O$1882,9,0) -> Si Cumple | P150: =+VLOOKUP(C150,'Anexo_GL '!$B$9:$O$1882,11,0) -> 576.56281 | Q150: =+VLOOKUP(C150,'Anexo_GL '!$B$9:$O$1882,12,0) -> 388.59078 | R150: =+VLOOKUP(C150,'Anexo_GL '!$B$9:$O$1882,13,0) -> 187.97203 | S150: =+VLOOKUP(C150,'Anexo_GL '!$B$9:$O$1882,14,0) -> Si Cumple
A151: 020515 : MD DE TICLLOS | B151: 124 | C151: 020515 | D151: ANCASH | E151: MD DE TICLLOS | F151: =+VLOOKUP(C151,'Anexo_GL '!$B$9:$O$1882,4,0) -> 1432.87029 | H151: =+VLOOKUP(C151,'Anexo_GL '!$B$9:$O$1882,5,0) -> 1827.276703 | I151: =+VLOOKUP(C151,'Anexo_GL '!$B$9:$O$1882,6,0) -> 2504.16728 | J151: =+VLOOKUP(C151,'Anexo_GL '!$B$9:$O$1882,7,0) -> 0 | L151: =+VLOOKUP(C151,'Anexo_GL '!$B$9:$O$1882,8,0) -> 57.21943184 | N151: =+VLOOKUP(C151,'Anexo_GL '!$B$9:$O$1882,9,0) -> Si Cumple | P151: =+VLOOKUP(C151,'Anexo_GL '!$B$9:$O$1882,11,0) -> 577.71096 | Q151: =+VLOOKUP(C151,'Anexo_GL '!$B$9:$O$1882,12,0) -> 343.38402 | R151: =+VLOOKUP(C151,'Anexo_GL '!$B$9:$O$1882,13,0) -> 234.32694 | S151: =+VLOOKUP(C151,'Anexo_GL '!$B$9:$O$1882,14,0) -> Si Cumple
A152: 020601 : MP DE CARHUAZ | B152: 125 | C152: 020601 | D152: ANCASH | E152: MP DE CARHUAZ | F152: =+VLOOKUP(C152,'Anexo_GL '!$B$9:$O$1882,4,0) -> 1337.19678 | H152: =+VLOOKUP(C152,'Anexo_GL '!$B$9:$O$1882,5,0) -> 25966.99733 | I152: =+VLOOKUP(C152,'Anexo_GL '!$B$9:$O$1882,6,0) -> 42790.63452 | J152: =+VLOOKUP(C152,'Anexo_GL '!$B$9:$O$1882,7,0) -> 0 | L152: =+VLOOKUP(C152,'Anexo_GL '!$B$9:$O$1882,8,0) -> 3.124975348 | N152: =+VLOOKUP(C152,'Anexo_GL '!$B$9:$O$1882,9,0) -> Si Cumple | P152: =+VLOOKUP(C152,'Anexo_GL '!$B$9:$O$1882,11,0) -> 9757.18898 | Q152: =+VLOOKUP(C152,'Anexo_GL '!$B$9:$O$1882,12,0) -> 5686.80461 | R152: =+VLOOKUP(C152,'Anexo_GL '!$B$9:$O$1882,13,0) -> 4070.38437 | S152: =+VLOOKUP(C152,'Anexo_GL '!$B$9:$O$1882,14,0) -> Si Cumple
A153: 020602 : MD DE ACOPAMPA | B153: 126 | C153: 020602 | D153: ANCASH | E153: MD DE ACOPAMPA | F153: =+VLOOKUP(C153,'Anexo_GL '!$B$9:$O$1882,4,0) -> 201.05138 | H153: =+VLOOKUP(C153,'Anexo_GL '!$B$9:$O$1882,5,0) -> 2823.50974 | I153: =+VLOOKUP(C153,'Anexo_GL '!$B$9:$O$1882,6,0) -> 5714.95704 | J153: =+VLOOKUP(C153,'Anexo_GL '!$B$9:$O$1882,7,0) -> 0 | L153: =+VLOOKUP(C153,'Anexo_GL '!$B$9:$O$1882,8,0) -> 3.51798585 | N153: =+VLOOKUP(C153,'Anexo_GL '!$B$9:$O$1882,9,0) -> Si Cumple | P153: =+VLOOKUP(C153,'Anexo_GL '!$B$9:$O$1882,11,0) -> 917.76629 | Q153: =+VLOOKUP(C153,'Anexo_GL '!$B$9:$O$1882,12,0) -> 726.68472 | R153: =+VLOOKUP(C153,'Anexo_GL '!$B$9:$O$1882,13,0) -> 191.08157 | S153: =+VLOOKUP(C153,'Anexo_GL '!$B$9:$O$1882,14,0) -> Si Cumple
A154: 020603 : MD DE AMASHCA | B154: 127 | C154: 020603 | D154: ANCASH | E154: MD DE AMASHCA | F154: =+VLOOKUP(C154,'Anexo_GL '!$B$9:$O$1882,4,0) -> 328.79842 | H154: =+VLOOKUP(C154,'Anexo_GL '!$B$9:$O$1882,5,0) -> 2428.331953 | I154: =+VLOOKUP(C154,'Anexo_GL '!$B$9:$O$1882,6,0) -> 4574.30467 | J154: =+VLOOKUP(C154,'Anexo_GL '!$B$9:$O$1882,7,0) -> 0 | L154: =+VLOOKUP(C154,'Anexo_GL '!$B$9:$O$1882,8,0) -> 7.187943168 | N154: =+VLOOKUP(C154,'Anexo_GL '!$B$9:$O$1882,9,0) -> Si Cumple | P154: =+VLOOKUP(C154,'Anexo_GL '!$B$9:$O$1882,11,0) -> 712.04258 | Q154: =+VLOOKUP(C154,'Anexo_GL '!$B$9:$O$1882,12,0) -> 330.29718 | R154: =+VLOOKUP(C154,'Anexo_GL '!$B$9:$O$1882,13,0) -> 381.7454 | S154: =+VLOOKUP(C154,'Anexo_GL '!$B$9:$O$1882,14,0) -> Si Cumple
A155: 020604 : MD DE ANTA | B155: 128 | C155: 020604 | D155: ANCASH | E155: MD DE ANTA | F155: =+VLOOKUP(C155,'Anexo_GL '!$B$9:$O$1882,4,0) -> 336.03096 | H155: =+VLOOKUP(C155,'Anexo_GL '!$B$9:$O$1882,5,0) -> 3434.890627 | I155: =+VLOOKUP(C155,'Anexo_GL '!$B$9:$O$1882,6,0) -> 6660.83475 | J155: =+VLOOKUP(C155,'Anexo_GL '!$B$9:$O$1882,7,0) -> 0 | L155: =+VLOOKUP(C155,'Anexo_GL '!$B$9:$O$1882,8,0) -> 5.044877596 | N155: =+VLOOKUP(C155,'Anexo_GL '!$B$9:$O$1882,9,0) -> Si Cumple | P155: =+VLOOKUP(C155,'Anexo_GL '!$B$9:$O$1882,11,0) -> 1019.34515 | Q155: =+VLOOKUP(C155,'Anexo_GL '!$B$9:$O$1882,12,0) -> 758.2786 | R155: =+VLOOKUP(C155,'Anexo_GL '!$B$9:$O$1882,13,0) -> 261.06655 | S155: =+VLOOKUP(C155,'Anexo_GL '!$B$9:$O$1882,14,0) -> Si Cumple
A156: 020605 : MD DE ATAQUERO | B156: 129 | C156: 020605 | D156: ANCASH | E156: MD DE ATAQUERO | F156: =+VLOOKUP(C156,'Anexo_GL '!$B$9:$O$1882,4,0) -> 150.43526 | H156: =+VLOOKUP(C156,'Anexo_GL '!$B$9:$O$1882,5,0) -> 1793.96196 | I156: =+VLOOKUP(C156,'Anexo_GL '!$B$9:$O$1882,6,0) -> 2270.81235 | J156: =+VLOOKUP(C156,'Anexo_GL '!$B$9:$O$1882,7,0) -> 0 | L156: =+VLOOKUP(C156,'Anexo_GL '!$B$9:$O$1882,8,0) -> 6.624733215 | N156: =+VLOOKUP(C156,'Anexo_GL '!$B$9:$O$1882,9,0) -> Si Cumple | P156: =+VLOOKUP(C156,'Anexo_GL '!$B$9:$O$1882,11,0) -> 361.86151 | Q156: =+VLOOKUP(C156,'Anexo_GL '!$B$9:$O$1882,12,0) -> 393.30405 | R156: =+VLOOKUP(C156,'Anexo_GL '!$B$9:$O$1882,13,0) -> -31.44254 | S156: =+VLOOKUP(C156,'Anexo_GL '!$B$9:$O$1882,14,0) -> No Cumple
A157: 020606 : MD DE MARCARA | B157: 130 | C157: 020606 | D157: ANCASH | E157: MD DE MARCARA | F157: =+VLOOKUP(C157,'Anexo_GL '!$B$9:$O$1882,4,0) -> 1170.90274 | H157: =+VLOOKUP(C157,'Anexo_GL '!$B$9:$O$1882,5,0) -> 10441.21643 | I157: =+VLOOKUP(C157,'Anexo_GL '!$B$9:$O$1882,6,0) -> 25199.32091 | J157: =+VLOOKUP(C157,'Anexo_GL '!$B$9:$O$1882,7,0) -> 0 | L157: =+VLOOKUP(C157,'Anexo_GL '!$B$9:$O$1882,8,0) -> 4.64656466 | N157: =+VLOOKUP(C157,'Anexo_GL '!$B$9:$O$1882,9,0) -> Si Cumple | P157: =+VLOOKUP(C157,'Anexo_GL '!$B$9:$O$1882,11,0) -> 4450.12272 | Q157: =+VLOOKUP(C157,'Anexo_GL '!$B$9:$O$1882,12,0) -> 2184.13262 | R157: =+VLOOKUP(C157,'Anexo_GL '!$B$9:$O$1882,13,0) -> 2265.9901 | S157: =+VLOOKUP(C157,'Anexo_GL '!$B$9:$O$1882,14,0) -> Si Cumple
A158: 020607 : MD DE PARIAHUANCA | B158: 131 | C158: 020607 | D158: ANCASH | E158: MD DE PARIAHUANCA | F158: =+VLOOKUP(C158,'Anexo_GL '!$B$9:$O$1882,4,0) -> 82.58782 | H158: =+VLOOKUP(C158,'Anexo_GL '!$B$9:$O$1882,5,0) -> 2108.292547 | I158: =+VLOOKUP(C158,'Anexo_GL '!$B$9:$O$1882,6,0) -> 3776.17349 | J158: =+VLOOKUP(C158,'Anexo_GL '!$B$9:$O$1882,7,0) -> 0 | L158: =+VLOOKUP(C158,'Anexo_GL '!$B$9:$O$1882,8,0) -> 2.18707695 | N158: =+VLOOKUP(C158,'Anexo_GL '!$B$9:$O$1882,9,0) -> Si Cumple | P158: =+VLOOKUP(C158,'Anexo_GL '!$B$9:$O$1882,11,0) -> 729.40781 | Q158: =+VLOOKUP(C158,'Anexo_GL '!$B$9:$O$1882,12,0) -> 386.80621 | R158: =+VLOOKUP(C158,'Anexo_GL '!$B$9:$O$1882,13,0) -> 342.6016 | S158: =+VLOOKUP(C158,'Anexo_GL '!$B$9:$O$1882,14,0) -> Si Cumple
A159: 020608 : MD DE SAN MIGUEL DE ACO | B159: 132 | C159: 020608 | D159: ANCASH | E159: MD DE SAN MIGUEL DE ACO | F159: =+VLOOKUP(C159,'Anexo_GL '!$B$9:$O$1882,4,0) -> 275.37857 | H159: =+VLOOKUP(C159,'Anexo_GL '!$B$9:$O$1882,5,0) -> 2649.083425 | I159: =+VLOOKUP(C159,'Anexo_GL '!$B$9:$O$1882,6,0) -> 5126.15903 | J159: =+VLOOKUP(C159,'Anexo_GL '!$B$9:$O$1882,7,0) -> 0 | L159: =+VLOOKUP(C159,'Anexo_GL '!$B$9:$O$1882,8,0) -> 5.372025495 | N159: =+VLOOKUP(C159,'Anexo_GL '!$B$9:$O$1882,9,0) -> Si Cumple | P159: =+VLOOKUP(C159,'Anexo_GL '!$B$9:$O$1882,11,0) -> 998.59596 | Q159: =+VLOOKUP(C159,'Anexo_GL '!$B$9:$O$1882,12,0) -> 541.32245 | R159: =+VLOOKUP(C159,'Anexo_GL '!$B$9:$O$1882,13,0) -> 457.27351 | S159: =+VLOOKUP(C159,'Anexo_GL '!$B$9:$O$1882,14,0) -> Si Cumple
A160: 020609 : MD DE SHILLA | B160: 133 | C160: 020609 | D160: ANCASH | E160: MD DE SHILLA | F160: =+VLOOKUP(C160,'Anexo_GL '!$B$9:$O$1882,4,0) -> 182.12558 | H160: =+VLOOKUP(C160,'Anexo_GL '!$B$9:$O$1882,5,0) -> 2574.328932 | I160: =+VLOOKUP(C160,'Anexo_GL '!$B$9:$O$1882,6,0) -> 4892.26952 | J160: =+VLOOKUP(C160,'Anexo_GL '!$B$9:$O$1882,7,0) -> 0 | L160: =+VLOOKUP(C160,'Anexo_GL '!$B$9:$O$1882,8,0) -> 3.72272172 | N160: =+VLOOKUP(C160,'Anexo_GL '!$B$9:$O$1882,9,0) -> Si Cumple | P160: =+VLOOKUP(C160,'Anexo_GL '!$B$9:$O$1882,11,0) -> 668.20121 | Q160: =+VLOOKUP(C160,'Anexo_GL '!$B$9:$O$1882,12,0) -> 678.99784 | R160: =+VLOOKUP(C160,'Anexo_GL '!$B$9:$O$1882,13,0) -> -10.79663 | S160: =+VLOOKUP(C160,'Anexo_GL '!$B$9:$O$1882,14,0) -> No Cumple
A161: 020610 : MD DE TINCO | B161: 134 | C161: 020610 | D161: ANCASH | E161: MD DE TINCO | F161: =+VLOOKUP(C161,'Anexo_GL '!$B$9:$O$1882,4,0) -> 151.05465 | H161: =+VLOOKUP(C161,'Anexo_GL '!$B$9:$O$1882,5,0) -> 3485.823118 | I161: =+VLOOKUP(C161,'Anexo_GL '!$B$9:$O$1882,6,0) -> 7316.83187 | J161: =+VLOOKUP(C161,'Anexo_GL '!$B$9:$O$1882,7,0) -> 0 | L161: =+VLOOKUP(C161,'Anexo_GL '!$B$9:$O$1882,8,0) -> 2.064481632 | N161: =+VLOOKUP(C161,'Anexo_GL '!$B$9:$O$1882,9,0) -> Si Cumple | P161: =+VLOOKUP(C161,'Anexo_GL '!$B$9:$O$1882,11,0) -> 932.52444 | Q161: =+VLOOKUP(C161,'Anexo_GL '!$B$9:$O$1882,12,0) -> 604.97666 | R161: =+VLOOKUP(C161,'Anexo_GL '!$B$9:$O$1882,13,0) -> 327.54778 | S161: =+VLOOKUP(C161,'Anexo_GL '!$B$9:$O$1882,14,0) -> Si Cumple
A162: 020611 : MD DE YUNGAR | B162: 135 | C162: 020611 | D162: ANCASH | E162: MD DE YUNGAR | F162: =+VLOOKUP(C162,'Anexo_GL '!$B$9:$O$1882,4,0) -> 785.35914 | H162: =+VLOOKUP(C162,'Anexo_GL '!$B$9:$O$1882,5,0) -> 3023.504283 | I162: =+VLOOKUP(C162,'Anexo_GL '!$B$9:$O$1882,6,0) -> 5335.75104 | J162: =+VLOOKUP(C162,'Anexo_GL '!$B$9:$O$1882,7,0) -> 0 | L162: =+VLOOKUP(C162,'Anexo_GL '!$B$9:$O$1882,8,0) -> 14.71881154 | N162: =+VLOOKUP(C162,'Anexo_GL '!$B$9:$O$1882,9,0) -> Si Cumple | P162: =+VLOOKUP(C162,'Anexo_GL '!$B$9:$O$1882,11,0) -> 742.42994 | Q162: =+VLOOKUP(C162,'Anexo_GL '!$B$9:$O$1882,12,0) -> 654.7876 | R162: =+VLOOKUP(C162,'Anexo_GL '!$B$9:$O$1882,13,0) -> 87.64234 | S162: =+VLOOKUP(C162,'Anexo_GL '!$B$9:$O$1882,14,0) -> Si Cumple
A163: 020701 : MP DE CARLOS FERMIN FITZCARRALD | B163: 136 | C163: 020701 | D163: ANCASH | E163: MP DE CARLOS FERMIN FITZCARRALD | F163: =+VLOOKUP(C163,'Anexo_GL '!$B$9:$O$1882,4,0) -> 5700.94618 | H163: =+VLOOKUP(C163,'Anexo_GL '!$B$9:$O$1882,5,0) -> 23408.06852 | I163: =+VLOOKUP(C163,'Anexo_GL '!$B$9:$O$1882,6,0) -> 39435.48228 | J163: =+VLOOKUP(C163,'Anexo_GL '!$B$9:$O$1882,7,0) -> 0 | L163: =+VLOOKUP(C163,'Anexo_GL '!$B$9:$O$1882,8,0) -> 14.45638762 | N163: =+VLOOKUP(C163,'Anexo_GL '!$B$9:$O$1882,9,0) -> Si Cumple | P163: =+VLOOKUP(C163,'Anexo_GL '!$B$9:$O$1882,11,0) -> 8471.03123 | Q163: =+VLOOKUP(C163,'Anexo_GL '!$B$9:$O$1882,12,0) -> 4865.59542 | R163: =+VLOOKUP(C163,'Anexo_GL '!$B$9:$O$1882,13,0) -> 3605.43581 | S163: =+VLOOKUP(C163,'Anexo_GL '!$B$9:$O$1882,14,0) -> Si Cumple
A164: 020702 : MD DE SAN NICOLAS | B164: 137 | C164: 020702 | D164: ANCASH | E164: MD DE SAN NICOLAS | F164: =+VLOOKUP(C164,'Anexo_GL '!$B$9:$O$1882,4,0) -> 210.91438 | H164: =+VLOOKUP(C164,'Anexo_GL '!$B$9:$O$1882,5,0) -> 4956.826555 | I164: =+VLOOKUP(C164,'Anexo_GL '!$B$9:$O$1882,6,0) -> 9807.10598 | J164: =+VLOOKUP(C164,'Anexo_GL '!$B$9:$O$1882,7,0) -> 0 | L164: =+VLOOKUP(C164,'Anexo_GL '!$B$9:$O$1882,8,0) -> 2.150628131 | N164: =+VLOOKUP(C164,'Anexo_GL '!$B$9:$O$1882,9,0) -> Si Cumple | P164: =+VLOOKUP(C164,'Anexo_GL '!$B$9:$O$1882,11,0) -> 1661.66093 | Q164: =+VLOOKUP(C164,'Anexo_GL '!$B$9:$O$1882,12,0) -> 1103.31209 | R164: =+VLOOKUP(C164,'Anexo_GL '!$B$9:$O$1882,13,0) -> 558.34884 | S164: =+VLOOKUP(C164,'Anexo_GL '!$B$9:$O$1882,14,0) -> Si Cumple
A165: 020703 : MD DE YAUYA | B165: 138 | C165: 020703 | D165: ANCASH | E165: MD DE YAUYA | F165: =+VLOOKUP(C165,'Anexo_GL '!$B$9:$O$1882,4,0) -> 778.05273 | H165: =+VLOOKUP(C165,'Anexo_GL '!$B$9:$O$1882,5,0) -> 8725.246395 | I165: =+VLOOKUP(C165,'Anexo_GL '!$B$9:$O$1882,6,0) -> 19681.88194 | J165: =+VLOOKUP(C165,'Anexo_GL '!$B$9:$O$1882,7,0) -> 0 | L165: =+VLOOKUP(C165,'Anexo_GL '!$B$9:$O$1882,8,0) -> 3.953141942 | N165: =+VLOOKUP(C165,'Anexo_GL '!$B$9:$O$1882,9,0) -> Si Cumple | P165: =+VLOOKUP(C165,'Anexo_GL '!$B$9:$O$1882,11,0) -> 3248.67169 | Q165: =+VLOOKUP(C165,'Anexo_GL '!$B$9:$O$1882,12,0) -> 1763.41418 | R165: =+VLOOKUP(C165,'Anexo_GL '!$B$9:$O$1882,13,0) -> 1485.25751 | S165: =+VLOOKUP(C165,'Anexo_GL '!$B$9:$O$1882,14,0) -> Si Cumple
A166: 020801 : MP DE CASMA | B166: 139 | C166: 020801 | D166: ANCASH | E166: MP DE CASMA | F166: =+VLOOKUP(C166,'Anexo_GL '!$B$9:$O$1882,4,0) -> 2209.47064 | H166: =+VLOOKUP(C166,'Anexo_GL '!$B$9:$O$1882,5,0) -> 48845.0929 | I166: =+VLOOKUP(C166,'Anexo_GL '!$B$9:$O$1882,6,0) -> 102331.7766 | J166: =+VLOOKUP(C166,'Anexo_GL '!$B$9:$O$1882,7,0) -> 0 | L166: =+VLOOKUP(C166,'Anexo_GL '!$B$9:$O$1882,8,0) -> 2.159124677 | N166: =+VLOOKUP(C166,'Anexo_GL '!$B$9:$O$1882,9,0) -> Si Cumple | P166: =+VLOOKUP(C166,'Anexo_GL '!$B$9:$O$1882,11,0) -> 21267.05756 | Q166: =+VLOOKUP(C166,'Anexo_GL '!$B$9:$O$1882,12,0) -> 10881.39786 | R166: =+VLOOKUP(C166,'Anexo_GL '!$B$9:$O$1882,13,0) -> 10385.6597 | S166: =+VLOOKUP(C166,'Anexo_GL '!$B$9:$O$1882,14,0) -> Si Cumple
A167: 020802 : MD DE BUENA VISTA ALTA | B167: 140 | C167: 020802 | D167: ANCASH | E167: MD DE BUENA VISTA ALTA | F167: =+VLOOKUP(C167,'Anexo_GL '!$B$9:$O$1882,4,0) -> 765.66405 | H167: =+VLOOKUP(C167,'Anexo_GL '!$B$9:$O$1882,5,0) -> 7334.08876 | I167: =+VLOOKUP(C167,'Anexo_GL '!$B$9:$O$1882,6,0) -> 17795.5368 | J167: =+VLOOKUP(C167,'Anexo_GL '!$B$9:$O$1882,7,0) -> 0 | L167: =+VLOOKUP(C167,'Anexo_GL '!$B$9:$O$1882,8,0) -> 4.302562258 | N167: =+VLOOKUP(C167,'Anexo_GL '!$B$9:$O$1882,9,0) -> Si Cumple | P167: =+VLOOKUP(C167,'Anexo_GL '!$B$9:$O$1882,11,0) -> 2169.76771 | Q167: =+VLOOKUP(C167,'Anexo_GL '!$B$9:$O$1882,12,0) -> 1205.51496 | R167: =+VLOOKUP(C167,'Anexo_GL '!$B$9:$O$1882,13,0) -> 964.25275 | S167: =+VLOOKUP(C167,'Anexo_GL '!$B$9:$O$1882,14,0) -> Si Cumple
A168: 020803 : MD DE COMANDANTE NOEL | B168: 141 | C168: 020803 | D168: ANCASH | E168: MD DE COMANDANTE NOEL | F168: =+VLOOKUP(C168,'Anexo_GL '!$B$9:$O$1882,4,0) -> 603.87224 | H168: =+VLOOKUP(C168,'Anexo_GL '!$B$9:$O$1882,5,0) -> 3828.02931 | I168: =+VLOOKUP(C168,'Anexo_GL '!$B$9:$O$1882,6,0) -> 6542.43405 | J168: =+VLOOKUP(C168,'Anexo_GL '!$B$9:$O$1882,7,0) -> 0 | L168: =+VLOOKUP(C168,'Anexo_GL '!$B$9:$O$1882,8,0) -> 9.230085246 | N168: =+VLOOKUP(C168,'Anexo_GL '!$B$9:$O$1882,9,0) -> Si Cumple | P168: =+VLOOKUP(C168,'Anexo_GL '!$B$9:$O$1882,11,0) -> 1378.3774 | Q168: =+VLOOKUP(C168,'Anexo_GL '!$B$9:$O$1882,12,0) -> 1554.80009 | R168: =+VLOOKUP(C168,'Anexo_GL '!$B$9:$O$1882,13,0) -> -176.42269 | S168: =+VLOOKUP(C168,'Anexo_GL '!$B$9:$O$1882,14,0) -> No Cumple
A169: 020804 : MD DE YAUTAN | B169: 142 | C169: 020804 | D169: ANCASH | E169: MD DE YAUTAN | F169: =+VLOOKUP(C169,'Anexo_GL '!$B$9:$O$1882,4,0) -> 775.28211 | H169: =+VLOOKUP(C169,'Anexo_GL '!$B$9:$O$1882,5,0) -> 10051.30306 | I169: =+VLOOKUP(C169,'Anexo_GL '!$B$9:$O$1882,6,0) -> 22117.30425 | J169: =+VLOOKUP(C169,'Anexo_GL '!$B$9:$O$1882,7,0) -> 0 | L169: =+VLOOKUP(C169,'Anexo_GL '!$B$9:$O$1882,8,0) -> 3.505319189 | N169: =+VLOOKUP(C169,'Anexo_GL '!$B$9:$O$1882,9,0) -> Si Cumple | P169: =+VLOOKUP(C169,'Anexo_GL '!$B$9:$O$1882,11,0) -> 4281.24169 | Q169: =+VLOOKUP(C169,'Anexo_GL '!$B$9:$O$1882,12,0) -> 1899.46641 | R169: =+VLOOKUP(C169,'Anexo_GL '!$B$9:$O$1882,13,0) -> 2381.77528 | S169: =+VLOOKUP(C169,'Anexo_GL '!$B$9:$O$1882,14,0) -> Si Cumple
A170: 020901 : MP DE CORONGO | B170: 143 | C170: 020901 | D170: ANCASH | E170: MP DE CORONGO | F170: =+VLOOKUP(C170,'Anexo_GL '!$B$9:$O$1882,4,0) -> 1082.08566 | H170: =+VLOOKUP(C170,'Anexo_GL '!$B$9:$O$1882,5,0) -> 8660.831422 | I170: =+VLOOKUP(C170,'Anexo_GL '!$B$9:$O$1882,6,0) -> 3331.89844 | J170: =+VLOOKUP(C170,'Anexo_GL '!$B$9:$O$1882,7,0) -> 0 | L170: =+VLOOKUP(C170,'Anexo_GL '!$B$9:$O$1882,8,0) -> 12.49401596 | N170: =+VLOOKUP(C170,'Anexo_GL '!$B$9:$O$1882,9,0) -> Si Cumple | P170: =+VLOOKUP(C170,'Anexo_GL '!$B$9:$O$1882,11,0) -> 836.41127 | Q170: =+VLOOKUP(C170,'Anexo_GL '!$B$9:$O$1882,12,0) -> 942.58289 | R170: =+VLOOKUP(C170,'Anexo_GL '!$B$9:$O$1882,13,0) -> -106.17162 | S170: =+VLOOKUP(C170,'Anexo_GL '!$B$9:$O$1882,14,0) -> No Cumple
A171: 020902 : MD DE ACO | B171: 144 | C171: 020902 | D171: ANCASH | E171: MD DE ACO | F171: =+VLOOKUP(C171,'Anexo_GL '!$B$9:$O$1882,4,0) -> 134.91723 | H171: =+VLOOKUP(C171,'Anexo_GL '!$B$9:$O$1882,5,0) -> 1092.409657 | I171: =+VLOOKUP(C171,'Anexo_GL '!$B$9:$O$1882,6,0) -> 845.18674 | J171: =+VLOOKUP(C171,'Anexo_GL '!$B$9:$O$1882,7,0) -> 0 | L171: =+VLOOKUP(C171,'Anexo_GL '!$B$9:$O$1882,8,0) -> 12.3504245 | N171: =+VLOOKUP(C171,'Anexo_GL '!$B$9:$O$1882,9,0) -> Si Cumple | P171: =+VLOOKUP(C171,'Anexo_GL '!$B$9:$O$1882,11,0) -> 224.70497 | Q171: =+VLOOKUP(C171,'Anexo_GL '!$B$9:$O$1882,12,0) -> 322.88485 | R171: =+VLOOKUP(C171,'Anexo_GL '!$B$9:$O$1882,13,0) -> -98.17988 | S171: =+VLOOKUP(C171,'Anexo_GL '!$B$9:$O$1882,14,0) -> No Cumple
A172: 020903 : MD DE BAMBAS | B172: 145 | C172: 020903 | D172: ANCASH | E172: MD DE BAMBAS | F172: =+VLOOKUP(C172,'Anexo_GL '!$B$9:$O$1882,4,0) -> 38.83548 | H172: =+VLOOKUP(C172,'Anexo_GL '!$B$9:$O$1882,5,0) -> 1469.059617 | I172: =+VLOOKUP(C172,'Anexo_GL '!$B$9:$O$1882,6,0) -> 1705.06241 | J172: =+VLOOKUP(C172,'Anexo_GL '!$B$9:$O$1882,7,0) -> 0 | L172: =+VLOOKUP(C172,'Anexo_GL '!$B$9:$O$1882,8,0) -> 2.277657391 | N172: =+VLOOKUP(C172,'Anexo_GL '!$B$9:$O$1882,9,0) -> Si Cumple | P172: =+VLOOKUP(C172,'Anexo_GL '!$B$9:$O$1882,11,0) -> 501.47058 | Q172: =+VLOOKUP(C172,'Anexo_GL '!$B$9:$O$1882,12,0) -> 405.15199 | R172: =+VLOOKUP(C172,'Anexo_GL '!$B$9:$O$1882,13,0) -> 96.31859 | S172: =+VLOOKUP(C172,'Anexo_GL '!$B$9:$O$1882,14,0) -> Si Cumple
A173: 020904 : MD DE CUSCA | B173: 146 | C173: 020904 | D173: ANCASH | E173: MD DE CUSCA | F173: =+VLOOKUP(C173,'Anexo_GL '!$B$9:$O$1882,4,0) -> 325.06813 | H173: =+VLOOKUP(C173,'Anexo_GL '!$B$9:$O$1882,5,0) -> 4582.349845 | I173: =+VLOOKUP(C173,'Anexo_GL '!$B$9:$O$1882,6,0) -> 9727.52052 | J173: =+VLOOKUP(C173,'Anexo_GL '!$B$9:$O$1882,7,0) -> 0 | L173: =+VLOOKUP(C173,'Anexo_GL '!$B$9:$O$1882,8,0) -> 3.34173677 | N173: =+VLOOKUP(C173,'Anexo_GL '!$B$9:$O$1882,9,0) -> Si Cumple | P173: =+VLOOKUP(C173,'Anexo_GL '!$B$9:$O$1882,11,0) -> 1032.91112 | Q173: =+VLOOKUP(C173,'Anexo_GL '!$B$9:$O$1882,12,0) -> 543.95757 | R173: =+VLOOKUP(C173,'Anexo_GL '!$B$9:$O$1882,13,0) -> 488.95355 | S173: =+VLOOKUP(C173,'Anexo_GL '!$B$9:$O$1882,14,0) -> Si Cumple
A174: 020905 : MD DE LA PAMPA | B174: 147 | C174: 020905 | D174: ANCASH | E174: MD DE LA PAMPA | F174: =+VLOOKUP(C174,'Anexo_GL '!$B$9:$O$1882,4,0) -> 560.13506 | H174: =+VLOOKUP(C174,'Anexo_GL '!$B$9:$O$1882,5,0) -> 1725.819448 | I174: =+VLOOKUP(C174,'Anexo_GL '!$B$9:$O$1882,6,0) -> 2750.50479 | J174: =+VLOOKUP(C174,'Anexo_GL '!$B$9:$O$1882,7,0) -> 0 | L174: =+VLOOKUP(C174,'Anexo_GL '!$B$9:$O$1882,8,0) -> 20.36480947 | N174: =+VLOOKUP(C174,'Anexo_GL '!$B$9:$O$1882,9,0) -> Si Cumple | P174: =+VLOOKUP(C174,'Anexo_GL '!$B$9:$O$1882,11,0) -> 383.40403 | Q174: =+VLOOKUP(C174,'Anexo_GL '!$B$9:$O$1882,12,0) -> 377.58363 | R174: =+VLOOKUP(C174,'Anexo_GL '!$B$9:$O$1882,13,0) -> 5.8204 | S174: =+VLOOKUP(C174,'Anexo_GL '!$B$9:$O$1882,14,0) -> Si Cumple
A175: 020906 : MD DE YANAC | B175: 148 | C175: 020906 | D175: ANCASH | E175: MD DE YANAC | F175: =+VLOOKUP(C175,'Anexo_GL '!$B$9:$O$1882,4,0) -> 43.66882 | H175: =+VLOOKUP(C175,'Anexo_GL '!$B$9:$O$1882,5,0) -> 1288.200185 | I175: =+VLOOKUP(C175,'Anexo_GL '!$B$9:$O$1882,6,0) -> 1753.66652 | J175: =+VLOOKUP(C175,'Anexo_GL '!$B$9:$O$1882,7,0) -> 0 | L175: =+VLOOKUP(C175,'Anexo_GL '!$B$9:$O$1882,8,0) -> 2.490143907 | N175: =+VLOOKUP(C175,'Anexo_GL '!$B$9:$O$1882,9,0) -> Si Cumple | P175: =+VLOOKUP(C175,'Anexo_GL '!$B$9:$O$1882,11,0) -> 393.46926 | Q175: =+VLOOKUP(C175,'Anexo_GL '!$B$9:$O$1882,12,0) -> 314.47874 | R175: =+VLOOKUP(C175,'Anexo_GL '!$B$9:$O$1882,13,0) -> 78.99052 | S175: =+VLOOKUP(C175,'Anexo_GL '!$B$9:$O$1882,14,0) -> Si Cumple
A176: 020907 : MD DE YUPAN | B176: 149 | C176: 020907 | D176: ANCASH | E176: MD DE YUPAN | F176: =+VLOOKUP(C176,'Anexo_GL '!$B$9:$O$1882,4,0) -> 89.3455 | H176: =+VLOOKUP(C176,'Anexo_GL '!$B$9:$O$1882,5,0) -> 1288.358967 | I176: =+VLOOKUP(C176,'Anexo_GL '!$B$9:$O$1882,6,0) -> 1316.55036 | J176: =+VLOOKUP(C176,'Anexo_GL '!$B$9:$O$1882,7,0) -> 0 | L176: =+VLOOKUP(C176,'Anexo_GL '!$B$9:$O$1882,8,0) -> 6.786333642 | N176: =+VLOOKUP(C176,'Anexo_GL '!$B$9:$O$1882,9,0) -> Si Cumple | P176: =+VLOOKUP(C176,'Anexo_GL '!$B$9:$O$1882,11,0) -> 308.64335 | Q176: =+VLOOKUP(C176,'Anexo_GL '!$B$9:$O$1882,12,0) -> 357.36377 | R176: =+VLOOKUP(C176,'Anexo_GL '!$B$9:$O$1882,13,0) -> -48.72042 | S176: =+VLOOKUP(C176,'Anexo_GL '!$B$9:$O$1882,14,0) -> No Cumple
A177: 021001 : MP DE HUARI | B177: 150 | C177: 021001 | D177: ANCASH | E177: MP DE HUARI | F177: =+VLOOKUP(C177,'Anexo_GL '!$B$9:$O$1882,4,0) -> 1588.58909 | H177: =+VLOOKUP(C177,'Anexo_GL '!$B$9:$O$1882,5,0) -> 65533.06666 | I177: =+VLOOKUP(C177,'Anexo_GL '!$B$9:$O$1882,6,0) -> 179070.3831 | J177: =+VLOOKUP(C177,'Anexo_GL '!$B$9:$O$1882,7,0) -> 0 | L177: =+VLOOKUP(C177,'Anexo_GL '!$B$9:$O$1882,8,0) -> 0.8871311169 | N177: =+VLOOKUP(C177,'Anexo_GL '!$B$9:$O$1882,9,0) -> Si Cumple | P177: =+VLOOKUP(C177,'Anexo_GL '!$B$9:$O$1882,11,0) -> 22888.92704 | Q177: =+VLOOKUP(C177,'Anexo_GL '!$B$9:$O$1882,12,0) -> 7505.80872 | R177: =+VLOOKUP(C177,'Anexo_GL '!$B$9:$O$1882,13,0) -> 15383.11832 | S177: =+VLOOKUP(C177,'Anexo_GL '!$B$9:$O$1882,14,0) -> Si Cumple
A178: 021002 : MD DE ANRA | B178: 151 | C178: 021002 | D178: ANCASH | E178: MD DE ANRA | F178: =+VLOOKUP(C178,'Anexo_GL '!$B$9:$O$1882,4,0) -> 185.38322 | H178: =+VLOOKUP(C178,'Anexo_GL '!$B$9:$O$1882,5,0) -> 12023.21878 | I178: =+VLOOKUP(C178,'Anexo_GL '!$B$9:$O$1882,6,0) -> 38583.80678 | J178: =+VLOOKUP(C178,'Anexo_GL '!$B$9:$O$1882,7,0) -> 0 | L178: =+VLOOKUP(C178,'Anexo_GL '!$B$9:$O$1882,8,0) -> 0.4804689725 | N178: =+VLOOKUP(C178,'Anexo_GL '!$B$9:$O$1882,9,0) -> Si Cumple | P178: =+VLOOKUP(C178,'Anexo_GL '!$B$9:$O$1882,11,0) -> 4166.52966 | Q178: =+VLOOKUP(C178,'Anexo_GL '!$B$9:$O$1882,12,0) -> 1665.3969 | R178: =+VLOOKUP(C178,'Anexo_GL '!$B$9:$O$1882,13,0) -> 2501.13276 | S178: =+VLOOKUP(C178,'Anexo_GL '!$B$9:$O$1882,14,0) -> Si Cumple
A179: 021003 : MD DE CAJAY | B179: 152 | C179: 021003 | D179: ANCASH | E179: MD DE CAJAY | F179: =+VLOOKUP(C179,'Anexo_GL '!$B$9:$O$1882,4,0) -> 1533.89391 | H179: =+VLOOKUP(C179,'Anexo_GL '!$B$9:$O$1882,5,0) -> 28788.39877 | I179: =+VLOOKUP(C179,'Anexo_GL '!$B$9:$O$1882,6,0) -> 95898.43942 | J179: =+VLOOKUP(C179,'Anexo_GL '!$B$9:$O$1882,7,0) -> 0 | L179: =+VLOOKUP(C179,'Anexo_GL '!$B$9:$O$1882,8,0) -> 1.599498302 | N179: =+VLOOKUP(C179,'Anexo_GL '!$B$9:$O$1882,9,0) -> Si Cumple | P179: =+VLOOKUP(C179,'Anexo_GL '!$B$9:$O$1882,11,0) -> 8669.54585 | Q179: =+VLOOKUP(C179,'Anexo_GL '!$B$9:$O$1882,12,0) -> 3117.46571 | R179: =+VLOOKUP(C179,'Anexo_GL '!$B$9:$O$1882,13,0) -> 5552.08014 | S179: =+VLOOKUP(C179,'Anexo_GL '!$B$9:$O$1882,14,0) -> Si Cumple
A180: 021004 : MD DE CHAVIN DE HUANTAR | B180: 153 | C180: 021004 | D180: ANCASH | E180: MD DE CHAVIN DE HUANTAR | F180: =+VLOOKUP(C180,'Anexo_GL '!$B$9:$O$1882,4,0) -> 17382.68251 | H180: =+VLOOKUP(C180,'Anexo_GL '!$B$9:$O$1882,5,0) -> 87050.62566 | I180: =+VLOOKUP(C180,'Anexo_GL '!$B$9:$O$1882,6,0) -> 284078.734 | J180: =+VLOOKUP(C180,'Anexo_GL '!$B$9:$O$1882,7,0) -> 0 | L180: =+VLOOKUP(C180,'Anexo_GL '!$B$9:$O$1882,8,0) -> 6.11896648 | N180: =+VLOOKUP(C180,'Anexo_GL '!$B$9:$O$1882,9,0) -> Si Cumple | P180: =+VLOOKUP(C180,'Anexo_GL '!$B$9:$O$1882,11,0) -> 30828.74962 | Q180: =+VLOOKUP(C180,'Anexo_GL '!$B$9:$O$1882,12,0) -> 9540.65425 | R180: =+VLOOKUP(C180,'Anexo_GL '!$B$9:$O$1882,13,0) -> 21288.09537 | S180: =+VLOOKUP(C180,'Anexo_GL '!$B$9:$O$1882,14,0) -> Si Cumple
A181: 021005 : MD DE HUACACHI | B181: 154 | C181: 021005 | D181: ANCASH | E181: MD DE HUACACHI | F181: =+VLOOKUP(C181,'Anexo_GL '!$B$9:$O$1882,4,0) -> 1426.69151 | H181: =+VLOOKUP(C181,'Anexo_GL '!$B$9:$O$1882,5,0) -> 22083.69146 | I181: =+VLOOKUP(C181,'Anexo_GL '!$B$9:$O$1882,6,0) -> 69548.18103 | J181: =+VLOOKUP(C181,'Anexo_GL '!$B$9:$O$1882,7,0) -> 0 | L181: =+VLOOKUP(C181,'Anexo_GL '!$B$9:$O$1882,8,0) -> 2.051371422 | N181: =+VLOOKUP(C181,'Anexo_GL '!$B$9:$O$1882,9,0) -> Si Cumple | P181: =+VLOOKUP(C181,'Anexo_GL '!$B$9:$O$1882,11,0) -> 7644.23802 | Q181: =+VLOOKUP(C181,'Anexo_GL '!$B$9:$O$1882,12,0) -> 2680.76267 | R181: =+VLOOKUP(C181,'Anexo_GL '!$B$9:$O$1882,13,0) -> 4963.47535 | S181: =+VLOOKUP(C181,'Anexo_GL '!$B$9:$O$1882,14,0) -> Si Cumple
A182: 021006 : MD DE HUACCHIS | B182: 155 | C182: 021006 | D182: ANCASH | E182: MD DE HUACCHIS | F182: =+VLOOKUP(C182,'Anexo_GL '!$B$9:$O$1882,4,0) -> 222.04524 | H182: =+VLOOKUP(C182,'Anexo_GL '!$B$9:$O$1882,5,0) -> 7600.596588 | I182: =+VLOOKUP(C182,'Anexo_GL '!$B$9:$O$1882,6,0) -> 23995.68769 | J182: =+VLOOKUP(C182,'Anexo_GL '!$B$9:$O$1882,7,0) -> 0 | L182: =+VLOOKUP(C182,'Anexo_GL '!$B$9:$O$1882,8,0) -> 0.9253547674 | N182: =+VLOOKUP(C182,'Anexo_GL '!$B$9:$O$1882,9,0) -> Si Cumple | P182: =+VLOOKUP(C182,'Anexo_GL '!$B$9:$O$1882,11,0) -> 2171.74389 | Q182: =+VLOOKUP(C182,'Anexo_GL '!$B$9:$O$1882,12,0) -> 597.25034 | R182: =+VLOOKUP(C182,'Anexo_GL '!$B$9:$O$1882,13,0) -> 1574.49355 | S182: =+VLOOKUP(C182,'Anexo_GL '!$B$9:$O$1882,14,0) -> Si Cumple
A183: 021007 : MD DE HUACHIS | B183: 156 | C183: 021007 | D183: ANCASH | E183: MD DE HUACHIS | F183: =+VLOOKUP(C183,'Anexo_GL '!$B$9:$O$1882,4,0) -> 3040.83806 | H183: =+VLOOKUP(C183,'Anexo_GL '!$B$9:$O$1882,5,0) -> 28301.02451 | I183: =+VLOOKUP(C183,'Anexo_GL '!$B$9:$O$1882,6,0) -> 92881.54622 | J183: =+VLOOKUP(C183,'Anexo_GL '!$B$9:$O$1882,7,0) -> 0 | L183: =+VLOOKUP(C183,'Anexo_GL '!$B$9:$O$1882,8,0) -> 3.273888284 | N183: =+VLOOKUP(C183,'Anexo_GL '!$B$9:$O$1882,9,0) -> Si Cumple | P183: =+VLOOKUP(C183,'Anexo_GL '!$B$9:$O$1882,11,0) -> 8414.60741 | Q183: =+VLOOKUP(C183,'Anexo_GL '!$B$9:$O$1882,12,0) -> 3453.60004 | R183: =+VLOOKUP(C183,'Anexo_GL '!$B$9:$O$1882,13,0) -> 4961.00737 | S183: =+VLOOKUP(C183,'Anexo_GL '!$B$9:$O$1882,14,0) -> Si Cumple
A184: 021008 : MD DE HUANTAR | B184: 157 | C184: 021008 | D184: ANCASH | E184: MD DE HUANTAR | F184: =+VLOOKUP(C184,'Anexo_GL '!$B$9:$O$1882,4,0) -> 434.13077 | H184: =+VLOOKUP(C184,'Anexo_GL '!$B$9:$O$1882,5,0) -> 20587.20209 | I184: =+VLOOKUP(C184,'Anexo_GL '!$B$9:$O$1882,6,0) -> 64670.19469 | J184: =+VLOOKUP(C184,'Anexo_GL '!$B$9:$O$1882,7,0) -> 0 | L184: =+VLOOKUP(C184,'Anexo_GL '!$B$9:$O$1882,8,0) -> 0.6712996181 | N184: =+VLOOKUP(C184,'Anexo_GL '!$B$9:$O$1882,9,0) -> Si Cumple | P184: =+VLOOKUP(C184,'Anexo_GL '!$B$9:$O$1882,11,0) -> 5785.34601 | Q184: =+VLOOKUP(C184,'Anexo_GL '!$B$9:$O$1882,12,0) -> 1678.06767 | R184: =+VLOOKUP(C184,'Anexo_GL '!$B$9:$O$1882,13,0) -> 4107.27834 | S184: =+VLOOKUP(C184,'Anexo_GL '!$B$9:$O$1882,14,0) -> Si Cumple
A185: 021009 : MD DE MASIN | B185: 158 | C185: 021009 | D185: ANCASH | E185: MD DE MASIN | F185: =+VLOOKUP(C185,'Anexo_GL '!$B$9:$O$1882,4,0) -> 591.35795 | H185: =+VLOOKUP(C185,'Anexo_GL '!$B$9:$O$1882,5,0) -> 9677.57567 | I185: =+VLOOKUP(C185,'Anexo_GL '!$B$9:$O$1882,6,0) -> 29376.09107 | J185: =+VLOOKUP(C185,'Anexo_GL '!$B$9:$O$1882,7,0) -> 0 | L185: =+VLOOKUP(C185,'Anexo_GL '!$B$9:$O$1882,8,0) -> 2.013058676 | N185: =+VLOOKUP(C185,'Anexo_GL '!$B$9:$O$1882,9,0) -> Si Cumple | P185: =+VLOOKUP(C185,'Anexo_GL '!$B$9:$O$1882,11,0) -> 3394.6848 | Q185: =+VLOOKUP(C185,'Anexo_GL '!$B$9:$O$1882,12,0) -> 1195.64658 | R185: =+VLOOKUP(C185,'Anexo_GL '!$B$9:$O$1882,13,0) -> 2199.03822 | S185: =+VLOOKUP(C185,'Anexo_GL '!$B$9:$O$1882,14,0) -> Si Cumple
A186: 021010 : MD DE PAUCAS | B186: 159 | C186: 021010 | D186: ANCASH | E186: MD DE PAUCAS | F186: =+VLOOKUP(C186,'Anexo_GL '!$B$9:$O$1882,4,0) -> 118.55336 | H186: =+VLOOKUP(C186,'Anexo_GL '!$B$9:$O$1882,5,0) -> 11073.29218 | I186: =+VLOOKUP(C186,'Anexo_GL '!$B$9:$O$1882,6,0) -> 33740.8002 | J186: =+VLOOKUP(C186,'Anexo_GL '!$B$9:$O$1882,7,0) -> 0 | L186: =+VLOOKUP(C186,'Anexo_GL '!$B$9:$O$1882,8,0) -> 0.3513649922 | N186: =+VLOOKUP(C186,'Anexo_GL '!$B$9:$O$1882,9,0) -> Si Cumple | P186: =+VLOOKUP(C186,'Anexo_GL '!$B$9:$O$1882,11,0) -> 3073.83077 | Q186: =+VLOOKUP(C186,'Anexo_GL '!$B$9:$O$1882,12,0) -> 1193.92302 | R186: =+VLOOKUP(C186,'Anexo_GL '!$B$9:$O$1882,13,0) -> 1879.90775 | S186: =+VLOOKUP(C186,'Anexo_GL '!$B$9:$O$1882,14,0) -> Si Cumple
A187: 021011 : MD DE PONTO | B187: 160 | C187: 021011 | D187: ANCASH | E187: MD DE PONTO | F187: =+VLOOKUP(C187,'Anexo_GL '!$B$9:$O$1882,4,0) -> 1554.56825 | H187: =+VLOOKUP(C187,'Anexo_GL '!$B$9:$O$1882,5,0) -> 31857.28219 | I187: =+VLOOKUP(C187,'Anexo_GL '!$B$9:$O$1882,6,0) -> 102011.5986 | J187: =+VLOOKUP(C187,'Anexo_GL '!$B$9:$O$1882,7,0) -> 0 | L187: =+VLOOKUP(C187,'Anexo_GL '!$B$9:$O$1882,8,0) -> 1.523913233 | N187: =+VLOOKUP(C187,'Anexo_GL '!$B$9:$O$1882,9,0) -> Si Cumple | P187: =+VLOOKUP(C187,'Anexo_GL '!$B$9:$O$1882,11,0) -> 11541.58648 | Q187: =+VLOOKUP(C187,'Anexo_GL '!$B$9:$O$1882,12,0) -> 2214.14374 | R187: =+VLOOKUP(C187,'Anexo_GL '!$B$9:$O$1882,13,0) -> 9327.44274 | S187: =+VLOOKUP(C187,'Anexo_GL '!$B$9:$O$1882,14,0) -> Si Cumple
A188: 021012 : MD DE RAHUAPAMPA | B188: 161 | C188: 021012 | D188: ANCASH | E188: MD DE RAHUAPAMPA | F188: =+VLOOKUP(C188,'Anexo_GL '!$B$9:$O$1882,4,0) -> 750.10219 | H188: =+VLOOKUP(C188,'Anexo_GL '!$B$9:$O$1882,5,0) -> 5999.395602 | I188: =+VLOOKUP(C188,'Anexo_GL '!$B$9:$O$1882,6,0) -> 17497.14233 | J188: =+VLOOKUP(C188,'Anexo_GL '!$B$9:$O$1882,7,0) -> 0 | L188: =+VLOOKUP(C188,'Anexo_GL '!$B$9:$O$1882,8,0) -> 4.286998276 | N188: =+VLOOKUP(C188,'Anexo_GL '!$B$9:$O$1882,9,0) -> Si Cumple | P188: =+VLOOKUP(C188,'Anexo_GL '!$B$9:$O$1882,11,0) -> 2016.21594 | Q188: =+VLOOKUP(C188,'Anexo_GL '!$B$9:$O$1882,12,0) -> 892.01038 | R188: =+VLOOKUP(C188,'Anexo_GL '!$B$9:$O$1882,13,0) -> 1124.20556 | S188: =+VLOOKUP(C188,'Anexo_GL '!$B$9:$O$1882,14,0) -> Si Cumple
A189: 021013 : MD DE RAPAYAN | B189: 162 | C189: 021013 | D189: ANCASH | E189: MD DE RAPAYAN | F189: =+VLOOKUP(C189,'Anexo_GL '!$B$9:$O$1882,4,0) -> 788.34732 | H189: =+VLOOKUP(C189,'Anexo_GL '!$B$9:$O$1882,5,0) -> 11293.88134 | I189: =+VLOOKUP(C189,'Anexo_GL '!$B$9:$O$1882,6,0) -> 35926.01168 | J189: =+VLOOKUP(C189,'Anexo_GL '!$B$9:$O$1882,7,0) -> 0 | L189: =+VLOOKUP(C189,'Anexo_GL '!$B$9:$O$1882,8,0) -> 2.194363591 | N189: =+VLOOKUP(C189,'Anexo_GL '!$B$9:$O$1882,9,0) -> Si Cumple | P189: =+VLOOKUP(C189,'Anexo_GL '!$B$9:$O$1882,11,0) -> 3747.62668 | Q189: =+VLOOKUP(C189,'Anexo_GL '!$B$9:$O$1882,12,0) -> 2858.99617 | R189: =+VLOOKUP(C189,'Anexo_GL '!$B$9:$O$1882,13,0) -> 888.63051 | S189: =+VLOOKUP(C189,'Anexo_GL '!$B$9:$O$1882,14,0) -> Si Cumple
A190: 021014 : MD DE SAN MARCOS | B190: 163 | C190: 021014 | D190: ANCASH | E190: MD DE SAN MARCOS | F190: =+VLOOKUP(C190,'Anexo_GL '!$B$9:$O$1882,4,0) -> 29179.01615 | H190: =+VLOOKUP(C190,'Anexo_GL '!$B$9:$O$1882,5,0) -> 395181.0481 | I190: =+VLOOKUP(C190,'Anexo_GL '!$B$9:$O$1882,6,0) -> 1324176.393 | J190: =+VLOOKUP(C190,'Anexo_GL '!$B$9:$O$1882,7,0) -> 0 | L190: =+VLOOKUP(C190,'Anexo_GL '!$B$9:$O$1882,8,0) -> 2.203559609 | N190: =+VLOOKUP(C190,'Anexo_GL '!$B$9:$O$1882,9,0) -> Si Cumple | P190: =+VLOOKUP(C190,'Anexo_GL '!$B$9:$O$1882,11,0) -> 139031.8145 | Q190: =+VLOOKUP(C190,'Anexo_GL '!$B$9:$O$1882,12,0) -> 24470.40585 | R190: =+VLOOKUP(C190,'Anexo_GL '!$B$9:$O$1882,13,0) -> 114561.4087 | S190: =+VLOOKUP(C190,'Anexo_GL '!$B$9:$O$1882,14,0) -> Si Cumple
A191: 021015 : MD DE SAN PEDRO DE CHANA | B191: 164 | C191: 021015 | D191: ANCASH | E191: MD DE SAN PEDRO DE CHANA | F191: =+VLOOKUP(C191,'Anexo_GL '!$B$9:$O$1882,4,0) -> 6638.21492 | H191: =+VLOOKUP(C191,'Anexo_GL '!$B$9:$O$1882,5,0) -> 17591.27767 | I191: =+VLOOKUP(C191,'Anexo_GL '!$B$9:$O$1882,6,0) -> 54656.28513 | J191: =+VLOOKUP(C191,'Anexo_GL '!$B$9:$O$1882,7,0) -> 0 | L191: =+VLOOKUP(C191,'Anexo_GL '!$B$9:$O$1882,8,0) -> 12.14538256 | N191: =+VLOOKUP(C191,'Anexo_GL '!$B$9:$O$1882,9,0) -> Si Cumple | P191: =+VLOOKUP(C191,'Anexo_GL '!$B$9:$O$1882,11,0) -> 5813.12447 | Q191: =+VLOOKUP(C191,'Anexo_GL '!$B$9:$O$1882,12,0) -> 2085.17069 | R191: =+VLOOKUP(C191,'Anexo_GL '!$B$9:$O$1882,13,0) -> 3727.95378 | S191: =+VLOOKUP(C191,'Anexo_GL '!$B$9:$O$1882,14,0) -> Si Cumple
A192: 021016 : MD DE UCO | B192: 165 | C192: 021016 | D192: ANCASH | E192: MD DE UCO | F192: =+VLOOKUP(C192,'Anexo_GL '!$B$9:$O$1882,4,0) -> 162.31836 | H192: =+VLOOKUP(C192,'Anexo_GL '!$B$9:$O$1882,5,0) -> 8948.675877 | I192: =+VLOOKUP(C192,'Anexo_GL '!$B$9:$O$1882,6,0) -> 27310.19441 | J192: =+VLOOKUP(C192,'Anexo_GL '!$B$9:$O$1882,7,0) -> 0 | L192: =+VLOOKUP(C192,'Anexo_GL '!$B$9:$O$1882,8,0) -> 0.5943508038 | N192: =+VLOOKUP(C192,'Anexo_GL '!$B$9:$O$1882,9,0) -> Si Cumple | P192: =+VLOOKUP(C192,'Anexo_GL '!$B$9:$O$1882,11,0) -> 2566.41822 | Q192: =+VLOOKUP(C192,'Anexo_GL '!$B$9:$O$1882,12,0) -> 910.46207 | R192: =+VLOOKUP(C192,'Anexo_GL '!$B$9:$O$1882,13,0) -> 1655.95615 | S192: =+VLOOKUP(C192,'Anexo_GL '!$B$9:$O$1882,14,0) -> Si Cumple
A193: 021101 : MP DE HUARMEY | B193: 166 | C193: 021101 | D193: ANCASH | E193: MP DE HUARMEY | F193: =+VLOOKUP(C193,'Anexo_GL '!$B$9:$O$1882,4,0) -> 5670.99189 | H193: =+VLOOKUP(C193,'Anexo_GL '!$B$9:$O$1882,5,0) -> 44856.91353 | I193: =+VLOOKUP(C193,'Anexo_GL '!$B$9:$O$1882,6,0) -> 77004.85841 | J193: =+VLOOKUP(C193,'Anexo_GL '!$B$9:$O$1882,7,0) -> 0 | L193: =+VLOOKUP(C193,'Anexo_GL '!$B$9:$O$1882,8,0) -> 7.364459863 | N193: =+VLOOKUP(C193,'Anexo_GL '!$B$9:$O$1882,9,0) -> Si Cumple | P193: =+VLOOKUP(C193,'Anexo_GL '!$B$9:$O$1882,11,0) -> 16484.55159 | Q193: =+VLOOKUP(C193,'Anexo_GL '!$B$9:$O$1882,12,0) -> 9412.24102 | R193: =+VLOOKUP(C193,'Anexo_GL '!$B$9:$O$1882,13,0) -> 7072.31057 | S193: =+VLOOKUP(C193,'Anexo_GL '!$B$9:$O$1882,14,0) -> Si Cumple
A194: 021102 : MD DE COCHAPETI | B194: 167 | C194: 021102 | D194: ANCASH | E194: MD DE COCHAPETI | F194: =+VLOOKUP(C194,'Anexo_GL '!$B$9:$O$1882,4,0) -> 172.26676 | H194: =+VLOOKUP(C194,'Anexo_GL '!$B$9:$O$1882,5,0) -> 2018.243172 | I194: =+VLOOKUP(C194,'Anexo_GL '!$B$9:$O$1882,6,0) -> 3984.84667 | J194: =+VLOOKUP(C194,'Anexo_GL '!$B$9:$O$1882,7,0) -> 0 | L194: =+VLOOKUP(C194,'Anexo_GL '!$B$9:$O$1882,8,0) -> 4.323046136 | N194: =+VLOOKUP(C194,'Anexo_GL '!$B$9:$O$1882,9,0) -> Si Cumple | P194: =+VLOOKUP(C194,'Anexo_GL '!$B$9:$O$1882,11,0) -> 491.57749 | Q194: =+VLOOKUP(C194,'Anexo_GL '!$B$9:$O$1882,12,0) -> 392.5727 | R194: =+VLOOKUP(C194,'Anexo_GL '!$B$9:$O$1882,13,0) -> 99.00479 | S194: =+VLOOKUP(C194,'Anexo_GL '!$B$9:$O$1882,14,0) -> Si Cumple
A195: 021103 : MD DE CULEBRAS | B195: 168 | C195: 021103 | D195: ANCASH | E195: MD DE CULEBRAS | F195: =+VLOOKUP(C195,'Anexo_GL '!$B$9:$O$1882,4,0) -> 2329.58558 | H195: =+VLOOKUP(C195,'Anexo_GL '!$B$9:$O$1882,5,0) -> 4443.93649 | I195: =+VLOOKUP(C195,'Anexo_GL '!$B$9:$O$1882,6,0) -> 9281.56052 | J195: =+VLOOKUP(C195,'Anexo_GL '!$B$9:$O$1882,7,0) -> 0 | L195: =+VLOOKUP(C195,'Anexo_GL '!$B$9:$O$1882,8,0) -> 25.09907224 | N195: =+VLOOKUP(C195,'Anexo_GL '!$B$9:$O$1882,9,0) -> Si Cumple | P195: =+VLOOKUP(C195,'Anexo_GL '!$B$9:$O$1882,11,0) -> 1722.99835 | Q195: =+VLOOKUP(C195,'Anexo_GL '!$B$9:$O$1882,12,0) -> 1131.26144 | R195: =+VLOOKUP(C195,'Anexo_GL '!$B$9:$O$1882,13,0) -> 591.73691 | S195: =+VLOOKUP(C195,'Anexo_GL '!$B$9:$O$1882,14,0) -> Si Cumple
A196: 021104 : MD DE HUAYAN | B196: 169 | C196: 021104 | D196: ANCASH | E196: MD DE HUAYAN | F196: =+VLOOKUP(C196,'Anexo_GL '!$B$9:$O$1882,4,0) -> 94.85329 | H196: =+VLOOKUP(C196,'Anexo_GL '!$B$9:$O$1882,5,0) -> 1440.99461 | I196: =+VLOOKUP(C196,'Anexo_GL '!$B$9:$O$1882,6,0) -> 1993.98318 | J196: =+VLOOKUP(C196,'Anexo_GL '!$B$9:$O$1882,7,0) -> 0 | L196: =+VLOOKUP(C196,'Anexo_GL '!$B$9:$O$1882,8,0) -> 4.756975432 | N196: =+VLOOKUP(C196,'Anexo_GL '!$B$9:$O$1882,9,0) -> Si Cumple | P196: =+VLOOKUP(C196,'Anexo_GL '!$B$9:$O$1882,11,0) -> 301.51276 | Q196: =+VLOOKUP(C196,'Anexo_GL '!$B$9:$O$1882,12,0) -> 360.02016 | R196: =+VLOOKUP(C196,'Anexo_GL '!$B$9:$O$1882,13,0) -> -58.5074 | S196: =+VLOOKUP(C196,'Anexo_GL '!$B$9:$O$1882,14,0) -> No Cumple
A197: 021105 : MD DE MALVAS | B197: 170 | C197: 021105 | D197: ANCASH | E197: MD DE MALVAS | F197: =+VLOOKUP(C197,'Anexo_GL '!$B$9:$O$1882,4,0) -> 91.7453 | H197: =+VLOOKUP(C197,'Anexo_GL '!$B$9:$O$1882,5,0) -> 1672.843025 | I197: =+VLOOKUP(C197,'Anexo_GL '!$B$9:$O$1882,6,0) -> 2522.35797 | J197: =+VLOOKUP(C197,'Anexo_GL '!$B$9:$O$1882,7,0) -> 0 | L197: =+VLOOKUP(C197,'Anexo_GL '!$B$9:$O$1882,8,0) -> 3.637283093 | N197: =+VLOOKUP(C197,'Anexo_GL '!$B$9:$O$1882,9,0) -> Si Cumple | P197: =+VLOOKUP(C197,'Anexo_GL '!$B$9:$O$1882,11,0) -> 370.64084 | Q197: =+VLOOKUP(C197,'Anexo_GL '!$B$9:$O$1882,12,0) -> 323.3295 | R197: =+VLOOKUP(C197,'Anexo_GL '!$B$9:$O$1882,13,0) -> 47.31134 | S197: =+VLOOKUP(C197,'Anexo_GL '!$B$9:$O$1882,14,0) -> Si Cumple
A198: 021201 : MP DE HUAYLAS - CARAZ | B198: 171 | C198: 021201 | D198: ANCASH | E198: MP DE HUAYLAS - CARAZ | F198: =+VLOOKUP(C198,'Anexo_GL '!$B$9:$O$1882,4,0) -> 4393.17818 | H198: =+VLOOKUP(C198,'Anexo_GL '!$B$9:$O$1882,5,0) -> 35067.4224 | I198: =+VLOOKUP(C198,'Anexo_GL '!$B$9:$O$1882,6,0) -> 47883.85111 | J198: =+VLOOKUP(C198,'Anexo_GL '!$B$9:$O$1882,7,0) -> 0 | L198: =+VLOOKUP(C198,'Anexo_GL '!$B$9:$O$1882,8,0) -> 9.174655083 | N198: =+VLOOKUP(C198,'Anexo_GL '!$B$9:$O$1882,9,0) -> Si Cumple | P198: =+VLOOKUP(C198,'Anexo_GL '!$B$9:$O$1882,11,0) -> 13862.49071 | Q198: =+VLOOKUP(C198,'Anexo_GL '!$B$9:$O$1882,12,0) -> 7999.74997 | R198: =+VLOOKUP(C198,'Anexo_GL '!$B$9:$O$1882,13,0) -> 5862.74074 | S198: =+VLOOKUP(C198,'Anexo_GL '!$B$9:$O$1882,14,0) -> Si Cumple
A199: 021202 : MD DE HUALLANCA | B199: 172 | C199: 021202 | D199: ANCASH | E199: MD DE HUALLANCA | F199: =+VLOOKUP(C199,'Anexo_GL '!$B$9:$O$1882,4,0) -> 283.29709 | H199: =+VLOOKUP(C199,'Anexo_GL '!$B$9:$O$1882,5,0) -> 3476.248285 | I199: =+VLOOKUP(C199,'Anexo_GL '!$B$9:$O$1882,6,0) -> 1772.20506 | J199: =+VLOOKUP(C199,'Anexo_GL '!$B$9:$O$1882,7,0) -> 0 | L199: =+VLOOKUP(C199,'Anexo_GL '!$B$9:$O$1882,8,0) -> 8.149506789 | N199: =+VLOOKUP(C199,'Anexo_GL '!$B$9:$O$1882,9,0) -> Si Cumple | P199: =+VLOOKUP(C199,'Anexo_GL '!$B$9:$O$1882,11,0) -> 1436.03888 | Q199: =+VLOOKUP(C199,'Anexo_GL '!$B$9:$O$1882,12,0) -> 867.63493 | R199: =+VLOOKUP(C199,'Anexo_GL '!$B$9:$O$1882,13,0) -> 568.40395 | S199: =+VLOOKUP(C199,'Anexo_GL '!$B$9:$O$1882,14,0) -> Si Cumple
A200: 021203 : MD DE HUATA | B200: 173 | C200: 021203 | D200: ANCASH | E200: MD DE HUATA | F200: =+VLOOKUP(C200,'Anexo_GL '!$B$9:$O$1882,4,0) -> 281.25267 | H200: =+VLOOKUP(C200,'Anexo_GL '!$B$9:$O$1882,5,0) -> 2239.918443 | I200: =+VLOOKUP(C200,'Anexo_GL '!$B$9:$O$1882,6,0) -> 3881.40549 | J200: =+VLOOKUP(C200,'Anexo_GL '!$B$9:$O$1882,7,0) -> 0 | L200: =+VLOOKUP(C200,'Anexo_GL '!$B$9:$O$1882,8,0) -> 7.24615531 | N200: =+VLOOKUP(C200,'Anexo_GL '!$B$9:$O$1882,9,0) -> Si Cumple | P200: =+VLOOKUP(C200,'Anexo_GL '!$B$9:$O$1882,11,0) -> 695.242 | Q200: =+VLOOKUP(C200,'Anexo_GL '!$B$9:$O$1882,12,0) -> 480.67099 | R200: =+VLOOKUP(C200,'Anexo_GL '!$B$9:$O$1882,13,0) -> 214.57101 | S200: =+VLOOKUP(C200,'Anexo_GL '!$B$9:$O$1882,14,0) -> Si Cumple
... 1718 more rows

Sheet Anexo_GR
B1: Seguimiento al Cumplimiento de las Reglas Fiscales Subnacionales 2T2024
B2: Gobiernos Regionales
B4: N° | C4: UBIGEO | D4: Gobierno Regional | E4: R1: Regla Fiscal del Saldo de Deuda Total | L4: R2: Regla Fiscal de Ahorro en Cuenta Corriente
E5: 2T2024 | L5: 2T2024
E6: S/ Miles | I6: SDT/ICT Prom. % | J6: Cumple R1 | L6: S/ Miles | O6: Cumple R2
E7: Saldo de Deuda Total 1/ | F7: ICT Prom 2/ | G7: Límite Ley N° 29230 3/ | L7: Ingreso Corriente Total | M7: Gasto Corriente Total | N7: Ahorro en Cuenta Corriente
B8: 1 | C8: 010000 | D8: GOBIERNO REGIONAL AMAZONAS | E8: 365946.1019 | F8: 1070915.578 | G8: 402032.8905 | I8: 34.17133053 | J8: Si Cumple | L8: 626647.9485 | M8: 510760.8928 | N8: 115887.0556 | O8: Si Cumple
B9: 2 | C9: 020000 | D9: GOBIERNO REGIONAL ANCASH | E9: 566771.8642 | F9: 2326021.379 | G9: 1419896.594 | I9: 24.36658018 | J9: Si Cumple | L9: 1230757.857 | M9: 1014936.869 | N9: 215820.9873 | O9: Si Cumple
B10: 3 | C10: 040000 | D10: GOBIERNO REGIONAL AREQUIPA | E10: 857463.0649 | F10: 2226499.223 | G10: 1140237.441 | I10: 38.51171633 | J10: Si Cumple | L10: 1254436.63 | M10: 982101.361 | N10: 272335.2687 | O10: Si Cumple
B11: 4 | C11: 050000 | D11: GOBIERNO REGIONAL AYACUCHO | E11: 666689.5062 | F11: 1658586.418 | G11: 631730.79 | I11: 40.19624778 | J11: Si Cumple | L11: 955331.013 | M11: 784071.098 | N11: 171259.915 | O11: Si Cumple
B12: 5 | C12: 060000 | D12: GOBIERNO REGIONAL CAJAMARCA | E12: 1614101.483 | F12: 2910929.345 | G12: 1082851.498 | I12: 55.44969635 | J12: Si Cumple | L12: 1857202.627 | M12: 1370918.432 | N12: 486284.1947 | O12: Si Cumple
B13: 6 | C13: 080000 | D13: GOBIERNO REGIONAL CUSCO | E13: 635768.8769 | F13: 2791025.312 | G13: 2231097.891 | I13: 22.77904375 | J13: Si Cumple | L13: 1519126.423 | M13: 1076822.462 | N13: 442303.9616 | O13: Si Cumple
B14: 7 | C14: 110000 | D14: GOBIERNO REGIONAL ICA | E14: 108866.2565 | F14: 1235794.607 | G14: 969153.7379 | I14: 8.80941346 | J14: Si Cumple | L14: 627990.0125 | M14: 543266.4725 | N14: 84723.54001 | O14: Si Cumple
B15: 8 | C15: 090000 | D15: GOBIERNO REGIONAL HUANCAVELICA | E15: 255755.6398 | F15: 1422027.39 | G15: 378365.4705 | I15: 17.98528226 | J15: Si Cumple | L15: 940111.5245 | M15: 755437.0684 | N15: 184674.4561 | O15: Si Cumple
B16: 9 | C16: 100000 | D16: GOBIERNO REGIONAL HUANUCO | E16: 118579.3424 | F16: 1574094.002 | G16: 575335.0951 | I16: 7.533180502 | J16: Si Cumple | L16: 867198.1523 | M16: 833249.8089 | N16: 33948.34341 | O16: Si Cumple
B17: 10 | C17: 120000 | D17: GOBIERNO REGIONAL JUNIN | E17: 378682.8089 | F17: 2428731.374 | G17: 978262.7844 | I17: 15.59179467 | J17: Si Cumple | L17: 1423575.725 | M17: 1118652.923 | N17: 304922.8022 | O17: Si Cumple
B18: 11 | C18: 130000 | D18: GOBIERNO REGIONAL LA LIBERTAD | E18: 1147752.4 | F18: 2767639.511 | G18: 1216634.623 | I18: 41.47044425 | J18: Si Cumple | L18: 1697049.278 | M18: 1251684.104 | N18: 445365.1742 | O18: Si Cumple
B19: 12 | C19: 140000 | D19: GOBIERNO REGIONAL LAMBAYEQUE | E19: 678369.7558 | F19: 1634603.24 | G19: 699332.626 | I19: 41.50057575 | J19: Si Cumple | L19: 991607.1931 | M19: 744436.8572 | N19: 247170.3359 | O19: Si Cumple
B20: 13 | C20: 160000 | D20: GOBIERNO REGIONAL LORETO | E20: 769981.0997 | F20: 2679683.235 | G20: 790953.0209 | I20: 28.73403429 | J20: Si Cumple | L20: 1668112.008 | M20: 1250487.61 | N20: 417624.3979 | O20: Si Cumple
B21: 14 | C21: 170000 | D21: GOBIERNO REGIONAL MADRE DE DIOS | E21: 40384.95609 | F21: 417618.0981 | G21: 209134.5429 | I21: 9.670307937 | J21: Si Cumple | L21: 248837.7095 | M21: 172757.6703 | N21: 76080.03926 | O21: Si Cumple
B22: 15 | C22: 180000 | D22: GOBIERNO REGIONAL MOQUEGUA | E22: 297299.3763 | F22: 568538.8933 | G22: 347312.1174 | I22: 52.29182731 | J22: Si Cumple | L22: 289182.7982 | M22: 248940.0535 | N22: 40242.74472 | O22: Si Cumple
B23: 16 | C23: 190000 | D23: GOBIERNO REGIONAL PASCO | E23: 247550.9706 | F23: 668205.1546 | G23: 281069.7487 | I23: 37.0471507 | J23: Si Cumple | L23: 362269.4147 | M23: 305125.6992 | N23: 57143.71553 | O23: Si Cumple
B24: 17 | C24: 200000 | D24: GOBIERNO REGIONAL PIURA | E24: 1972156.242 | F24: 2902433.303 | G24: 1607943.356 | I24: 67.94837423 | J24: Si Cumple | L24: 1773173.496 | M24: 1365022.063 | N24: 408151.433 | O24: Si Cumple
B25: 18 | C25: 210000 | D25: GOBIERNO REGIONAL PUNO | E25: 1197277.233 | F25: 2481994.358 | G25: 1098644.284 | I25: 48.23851549 | J25: Si Cumple | L25: 1462787.979 | M25: 1080855.462 | N25: 381932.5175 | O25: Si Cumple
B26: 19 | C26: 220000 | D26: GOBIERNO REGIONAL SAN MARTIN | E26: 317504.8803 | F26: 1856907.351 | G26: 596978.9014 | I26: 17.09858492 | J26: Si Cumple | L26: 1106268.302 | M26: 844398.6698 | N26: 261869.6318 | O26: Si Cumple
B27: 20 | C27: 230000 | D27: GOBIERNO REGIONAL TACNA | E27: 90350.46643 | F27: 801227.4776 | G27: 593297.2414 | I27: 11.27650623 | J27: Si Cumple | L27: 410510.5151 | M27: 334923.6637 | N27: 75586.85137 | O27: Si Cumple
B28: 21 | C28: 240000 | D28: GOBIERNO REGIONAL TUMBES | E28: 239943.447 | F28: 562253.1039 | G28: 206500.6454 | I28: 42.67534414 | J28: Si Cumple | L28: 338819.2502 | M28: 268191.3863 | N28: 70627.86394 | O28: Si Cumple
B29: 22 | C29: 250000 | D29: GOBIERNO REGIONAL UCAYALI | E29: 385078.4278 | F29: 1215545.122 | G29: 631410.8753 | I29: 31.67948446 | J29: Si Cumple | L29: 750691.4264 | M29: 556992.845 | N29: 193698.5815 | O29: Si Cumple
B30: 23 | C30: 030000 | D30: GOBIERNO REGIONAL APURIMAC | E30: 649231.3697 | F30: 1189380.559 | G30: 473132.6838 | I30: 54.58567191 | J30: Si Cumple | L30: 647782.4149 | M30: 546780.294 | N30: 101002.1209 | O30: Si Cumple
B31: 24 | C31: 150000 | D31: GOBIERNO REGIONAL LIMA | E31: 202621.4557 | F31: 1702796.783 | G31: 701633.8368 | I31: 11.89933277 | J31: Si Cumple | L31: 1001521.563 | M31: 785047.8609 | N31: 216473.7017 | O31: Si Cumple
B32: 25 | C32: 070000 | D32: GOBIERNO REGIONAL CALLAO | E32: 521473.2131 | F32: 1343880.695 | G32: 1047023.001 | I32: 38.8035348 | J32: Si Cumple | L32: 759132.2074 | M32: 621106.6058 | N32: 138025.6016 | O32: Si Cumple
B33: 26 | C33: 260000 | D33: REGION LIMA METROPOLITANA | E33: 1498.21252 | F33: 26024.73816 | G33: 18245.51832 | I33: 5.756878363 | J33: Si Cumple | L33: 13072.34778 | M33: 11017.62602 | N33: 2054.72176 | O33: Si Cumple
B35: TOTAL | E35: =+SUM(E8:E33) -> 14327098.45 | F35: =+SUM(F8:F33) -> 42463356.25 | G35: =+SUM(G8:G33) -> 20328211.22 | L35: =+SUM(L8:L33) -> 24823195.82 | M35: =+SUM(M8:M33) -> 19377985.86 | N35: =+SUM(N8:N33) -> 5445209.957
B37: 1/ El Saldo de Deuda Total está compuesto por el Saldo de Pasivos, la Deuda Exigible con entidades del Estado y la Deuda Real con las Administradoras Privadas de Fondos de Pensiones (AFP). La información disponible del Saldo de Pasivos es a marzo de 2024, la Deuda Exigible con entidades del Estado es a junio de 2024 y la Deuda Real con las AFP es a abril de 2024. El Decreto de Urgencia N° 031-2019, en su artículo 2 dispone la modificación de la definición "Saldo de Pasivos" establecida en el literal a) del numeral 1 del artículo 3 del Decreto Legislativo N° 1275, la cual queda redactada de la siguiente manera: "Comprende todos los pasivos reconocidos y formalizados en los Estados de Situación Financiera de los Gobiernos Regionales o Gobiernos Locales, excluyendo los ingresos diferidos, obligaciones previsionales, beneficios sociales, provisiones y pasivos derivados de la ejecución de cartas fianza, multas no consentidas y similares. El Saldo de Pasivos comprende también los que proceden de operaciones diversas garantizadas con flujos de ingresos futuros, con y sin aval del Gobierno Nacional, como los Fideicomisos, Titulización de activos y similares. Se excluyen también los pasivos derivados de la ejecución de las sentencias judiciales en materia laboral correspondientes a la subespecialidad personal del Magisterio y personal de la Salud."
B38: 2/ Promedio anual del Ingreso Corriente Total calculado a partir de los últimos 16 trimestres entre el 3T2020 y el 2T2024.
B39: 3/ Corresponde a la actualización de la suma de los flujos transferidos por concepto de Recursos Determinados provenientes de Canon, Sobrecanon, FONCON, Regalías, Renta de Aduanas y Participaciones de los años 2021 y 2022, más el tope presupuestal por el mismo concepto incluido en el Presupuesto Institucional de Apertura 2023, infornado a través del Memorando N° 137-2024-EF/50.03 por la Dirección General de Presupuesto Público del Ministerio de Economía y Finanzas.
B40: Fuente: SICON-MEF, SIAF-MEF, SUNAT, SBS y AFP.

Sheet Anexo_GL
A1: Seguimiento al Cumplimiento de las Reglas Fiscales Subnacionales 2T2024
A2: Gobiernos Locales
A5: N° | B5: Ubigeo | C5: Departamento | D5: Municipalidad 5/ | E5: R1: Regla Fiscal del Saldo de Deuda Total | L5: R2: Regla Fiscal de Ahorro en Cuenta Corriente
E6: 2T2024 | L6: 2T2024
E7: S/ Miles | I7: SDT/ICT Prom ó SDT/ Lím Ley N° 29230 ó SDT/ ICT 4/ % | J7: Cumple R1 | L7: S/ Miles | O7: Cumple R2
E8: Saldo de Deuda Total 1/ | F8: ICT Prom2/ | G8: Límite Ley N° 29230 3/ | L8: Ingreso Corriente Total | M8: Gasto Corriente Total | N8: Ahorro en Cuenta Corriente
A9: 1 | B9: 010101 | C9: AMAZONAS | D9: MUNICIPALIDAD PROVINCIAL DE CHACHAPOYAS | E9: 7920.793 | F9: 28825.5833 | G9: 0.92715 | I9: 27.47834421 | J9: Si Cumple | L9: 9818.66441 | M9: 7995.34238 | N9: 1823.32203 | O9: Si Cumple
A10: 2 | B10: 010102 | C10: AMAZONAS | D10: MUNICIPALIDAD DISTRITAL DE ASUNCION | E10: 50.32118 | F10: 801.81462 | G10: 0.00029 | I10: 6.275912006 | J10: Si Cumple | L10: 145.72774 | M10: 280.83414 | N10: -135.1064 | O10: No Cumple
A11: 3 | B11: 010103 | C11: AMAZONAS | D11: MUNICIPALIDAD DISTRITAL DE BALSAS | E11: 12.43451 | F11: 1055.787482 | G11: 0.00107 | I11: 1.177747436 | J11: Si Cumple | L11: 300.56168 | M11: 298.7498 | N11: 1.81188 | O11: Si Cumple
A12: 4 | B12: 010104 | C12: AMAZONAS | D12: MUNICIPALIDAD DISTRITAL DE CHETO | E12: 41.09498 | F12: 948.4212 | G12: 0 | I12: 4.332988339 | J12: Si Cumple | L12: 295.22112 | M12: 202.32676 | N12: 92.89436 | O12: Si Cumple
A13: 5 | B13: 010105 | C13: AMAZONAS | D13: MUNICIPALIDAD DISTRITAL DE CHILIQUIN | E13: 236.01278 | F13: 943.313385 | G13: 0.00029 | I13: 25.01955169 | J13: Si Cumple | L13: 193.8349 | M13: 305.74772 | N13: -111.91282 | O13: No Cumple
A14: 6 | B14: 010106 | C14: AMAZONAS | D14: MUNICIPALIDAD DISTRITAL DE CHUQUIBAMBA | E14: 61.88297 | F14: 1638.682673 | G14: 0.00137 | I14: 3.776385205 | J14: Si Cumple | L14: 246.25178 | M14: 283.22328 | N14: -36.9715 | O14: No Cumple
A15: 7 | B15: 010107 | C15: AMAZONAS | D15: MUNICIPALIDAD DISTRITAL DE GRANADA | E15: 164.73239 | F15: 929.86063 | G15: 0 | I15: 17.71581511 | J15: Si Cumple | L15: 232.91855 | M15: 217.03516 | N15: 15.88339 | O15: Si Cumple
A16: 8 | B16: 010108 | C16: AMAZONAS | D16: MUNICIPALIDAD DISTRITAL DE HUANCAS | E16: 102.93396 | F16: 1074.489937 | G16: 0.00029 | I16: 9.579797484 | J16: Si Cumple | L16: 303.44382 | M16: 379.10098 | N16: -75.65716 | O16: No Cumple
A17: 9 | B17: 010109 | C17: AMAZONAS | D17: MUNICIPALIDAD DISTRITAL DE JALCA GRANDE | E17: 224.55917 | F17: 2096.11709 | G17: 0.97474 | I17: 10.71310239 | J17: Si Cumple | L17: 408.7623 | M17: 834.55306 | N17: -425.79076 | O17: No Cumple
A18: 10 | B18: 010110 | C18: AMAZONAS | D18: MUNICIPALIDAD DISTRITAL DE LEIMEBAMBA | E18: 36.21269 | F18: 2594.417398 | G18: 0.00166 | I18: 1.395792752 | J18: Si Cumple | L18: 429.05337 | M18: 333.41384 | N18: 95.63953 | O18: Si Cumple
A19: 11 | B19: 010111 | C19: AMAZONAS | D19: MUNICIPALIDAD DISTRITAL DE LEVANTO | E19: 32.46496 | F19: 984.5132375 | G19: 0.00029 | I19: 3.2975646 | J19: Si Cumple | L19: 163.15657 | M19: 213.5339 | N19: -50.37733 | O19: No Cumple
A20: 12 | B20: 010112 | C20: AMAZONAS | D20: MUNICIPALIDAD DISTRITAL DE MAGDALENA | E20: 39.16175 | F20: 913.7837275 | G20: 0 | I20: 4.285669445 | J20: Si Cumple | L20: 157.49089 | M20: 225.69672 | N20: -68.20583 | O20: No Cumple
A21: 13 | B21: 010113 | C21: AMAZONAS | D21: MUNICIPALIDAD DISTRITAL DE MARISCAL CASTILLA | E21: 944.83642 | F21: 924.9075425 | G21: 0.00107 | I21: 102.1546886 | J21: No Cumple | L21: 280.42149 | M21: 133.64526 | N21: 146.77623 | O21: Si Cumple
A22: 14 | B22: 010114 | C22: AMAZONAS | D22: MUNICIPALIDAD DISTRITAL DE MOLINOPAMPA | E22: 381.95721 | F22: 1057.783965 | G22: 0.00283 | I22: 36.10918889 | J22: Si Cumple | L22: 215.17063 | M22: 348.4507 | N22: -133.28007 | O22: No Cumple
A23: 15 | B23: 010115 | C23: AMAZONAS | D23: MUNICIPALIDAD DISTRITAL DE MONTEVIDEO | E23: 180.82289 | F23: 844.4286475 | G23: 0 | I23: 21.41363756 | J23: Si Cumple | L23: 155.64939 | M23: 216.38857 | N23: -60.73918 | O23: No Cumple
A24: 16 | B24: 010116 | C24: AMAZONAS | D24: MUNICIPALIDAD DISTRITAL DE OLLEROS | E24: 83.10466 | F24: 773.8579275 | G24: 0.00029 | I24: 10.73900739 | J24: Si Cumple | L24: 150.80043 | M24: 232.81073 | N24: -82.0103 | O24: No Cumple
A25: 17 | B25: 010117 | C25: AMAZONAS | D25: MUNICIPALIDAD DISTRITAL DE QUINJALCA | E25: 8.78815 | F25: 762.0807975 | G25: 0.00137 | I25: 1.153178249 | J25: Si Cumple | L25: 219.79083 | M25: 232.54053 | N25: -12.7497 | O25: No Cumple
A26: 18 | B26: 010118 | C26: AMAZONAS | D26: MUNICIPALIDAD DISTRITAL DE SAN FRANCISCO DE DAGUAS | E26: 60.14046 | F26: 742.7253875 | G26: 0.00029 | I26: 8.097267309 | J26: Si Cumple | L26: 242.17778 | M26: 185.99891 | N26: 56.17887 | O26: Si Cumple
A27: 19 | B27: 010119 | C27: AMAZONAS | D27: MUNICIPALIDAD DISTRITAL DE SAN ISIDRO DE MAYNO | E27: 105.1625 | F27: 848.124465 | G27: 0 | I27: 12.39941829 | J27: Si Cumple | L27: 380.04842 | M27: 281.7015 | N27: 98.34692 | O27: Si Cumple
A28: 20 | B28: 010120 | C28: AMAZONAS | D28: MUNICIPALIDAD DISTRITAL DE SOLOCO | E28: 953.85045 | F28: 938.27131 | G28: 0.00107 | I28: 101.6604089 | J28: No Cumple | L28: 502.07852 | M28: 264.36331 | N28: 237.71521 | O28: Si Cumple
A29: 21 | B29: 010121 | C29: AMAZONAS | D29: MUNICIPALIDAD DISTRITAL DE SONCHE | E29: 20.11923 | F29: 944.0858925 | G29: 0.00147 | I29: 2.131080462 | J29: Si Cumple | L29: 290.65929 | M29: 225.47471 | N29: 65.18458 | O29: Si Cumple
A30: 22 | B30: 010201 | C30: AMAZONAS | D30: MUNICIPALIDAD PROVINCIAL DE BAGUA - LA PECA | E30: 1451.08741 | F30: 28852.74977 | G30: 0.80523 | I30: 5.029286364 | J30: Si Cumple | L30: 10512.45622 | M30: 8276.67406 | N30: 2235.78216 | O30: Si Cumple
A31: 23 | B31: 010202 | C31: AMAZONAS | D31: MUNICIPALIDAD DISTRITAL DE ARAMANGO | E31: 1941.88383 | F31: 5946.310652 | G31: 1.11037 | I31: 32.65695224 | J31: Si Cumple | L31: 1578.4772 | M31: 2071.04166 | N31: -492.56446 | O31: No Cumple
A32: 24 | B32: 010203 | C32: AMAZONAS | D32: MUNICIPALIDAD DISTRITAL DE COPALLIN | E32: 684.26368 | F32: 2688.330805 | G32: 0.00186 | I32: 25.45310565 | J32: Si Cumple | L32: 1175.88765 | M32: 1334.00112 | N32: -158.11347 | O32: No Cumple
A33: 25 | B33: 010204 | C33: AMAZONAS | D33: MUNICIPALIDAD DISTRITAL DE EL PARCO | E33: 181.34501 | F33: 4362.884035 | G33: 0.00078 | I33: 4.156539769 | J33: Si Cumple | L33: 385.5359 | M33: 503.19351 | N33: -117.65761 | O33: No Cumple
A34: 26 | B34: 010205 | C34: AMAZONAS | D34: MUNICIPALIDAD DISTRITAL DE IMAZA | E34: 8711.65981 | F34: 13230.47839 | G34: 2.21948 | I34: 65.84538784 | J34: Si Cumple | L34: 4869.40752 | M34: 4670.92985 | N34: 198.47767 | O34: Si Cumple
A35: 27 | B35: 010206 | C35: AMAZONAS | D35: MUNICIPALIDAD DISTRITAL DE LA PECA | E35: 284.98675 | F35: 3734.94891 | G35: 0.00264 | I35: 7.630271708 | J35: Si Cumple | L35: 1564.05167 | M35: 1169.79279 | N35: 394.25888 | O35: Si Cumple
A36: 28 | B36: 010301 | C36: AMAZONAS | D36: MUNICIPALIDAD PROVINCIAL DE BONGARA - JUMBILLA | E36: 1977.10487 | F36: 7069.750443 | G36: 0.00107 | I36: 27.96569534 | J36: Si Cumple | L36: 1776.22376 | M36: 1405.01976 | N36: 371.204 | O36: Si Cumple
A37: 29 | B37: 010302 | C37: AMAZONAS | D37: MUNICIPALIDAD DISTRITAL DE CHISQUILLA | E37: 21.643 | F37: 862.161295 | G37: 0.00107 | I37: 2.510319139 | J37: Si Cumple | L37: 143.47634 | M37: 210.00086 | N37: -66.52452 | O37: No Cumple
A38: 30 | B38: 010303 | C38: AMAZONAS | D38: MUNICIPALIDAD DISTRITAL DE CHURUJA | E38: 37.01171 | F38: 793.180445 | G38: 0 | I38: 4.666240858 | J38: Si Cumple | L38: 207.91131 | M38: 263.21374 | N38: -55.30243 | O38: No Cumple
A39: 31 | B39: 010304 | C39: AMAZONAS | D39: MUNICIPALIDAD DISTRITAL DE COROSHA | E39: 37.04752 | F39: 1125.469755 | G39: 0.00216 | I39: 3.291738391 | J39: Si Cumple | L39: 315.93989 | M39: 220.86189 | N39: 95.078 | O39: Si Cumple
A40: 32 | B40: 010305 | C40: AMAZONAS | D40: MUNICIPALIDAD DISTRITAL DE CUISPES | E40: 47.16992 | F40: 825.2903525 | G40: 0.00107 | I40: 5.715554514 | J40: Si Cumple | L40: 295.37453 | M40: 234.89175 | N40: 60.48278 | O40: Si Cumple
A41: 33 | B41: 010306 | C41: AMAZONAS | D41: MUNICIPALIDAD DISTRITAL DE FLORIDA | E41: 1655.36948 | F41: 3489.14528 | G41: 0.01538 | I41: 47.44340941 | J41: Si Cumple | L41: 918.07825 | M41: 999.0549 | N41: -80.97665 | O41: No Cumple
A42: 34 | B42: 010307 | C42: AMAZONAS | D42: MUNICIPALIDAD DISTRITAL DE JAZAN | E42: 1902.39647 | F42: 3623.648427 | G42: 0.00647 | I42: 52.49947692 | J42: Si Cumple | L42: 1426.65601 | M42: 1525.47723 | N42: -98.82122 | O42: No Cumple
A43: 35 | B43: 010308 | C43: AMAZONAS | D43: MUNICIPALIDAD DISTRITAL DE RECTA | E43: 25.39805 | F43: 929.2638275 | G43: 0 | I43: 2.733136624 | J43: Si Cumple | L43: 143.88131 | M43: 182.44264 | N43: -38.56133 | O43: No Cumple
A44: 36 | B44: 010309 | C44: AMAZONAS | D44: MUNICIPALIDAD DISTRITAL DE SAN CARLOS | E44: 71.0012 | F44: 791.31077 | G44: 0.00107 | I44: 8.9726063 | J44: Si Cumple | L44: 257.59372 | M44: 252.08487 | N44: 5.50885 | O44: Si Cumple
A45: 37 | B45: 010310 | C45: AMAZONAS | D45: MUNICIPALIDAD DISTRITAL DE SHIPASBAMBA | E45: 29.29367 | F45: 1254.84014 | G45: 0.00294 | I45: 2.334454331 | J45: Si Cumple | L45: 450.09543 | M45: 278.30622 | N45: 171.78921 | O45: Si Cumple
A46: 38 | B46: 010311 | C46: AMAZONAS | D46: MUNICIPALIDAD DISTRITAL DE VALERA | E46: 42.90919 | F46: 890.1636325 | G46: 0.00107 | I46: 4.820371046 | J46: Si Cumple | L46: 199.44297 | M46: 267.76748 | N46: -68.32451 | O46: No Cumple
A47: 39 | B47: 010312 | C47: AMAZONAS | D47: MUNICIPALIDAD DISTRITAL DE YAMBRASBAMBA | E47: 917.37757 | F47: 3589.839675 | G47: 0.01724 | I47: 25.55483401 | J47: Si Cumple | L47: 985.36834 | M47: 1057.29653 | N47: -71.92819 | O47: No Cumple
A48: 40 | B48: 010401 | C48: AMAZONAS | D48: MUNICIPALIDAD PROVINCIAL DE CONDORCANQUI - NIEVA | E48: 862.69359 | F48: 27615.45654 | G48: 2.39904 | I48: 3.123951939 | J48: Si Cumple | L48: 14170.85956 | M48: 8402.78325 | N48: 5768.07631 | O48: Si Cumple
A49: 41 | B49: 010402 | C49: AMAZONAS | D49: MUNICIPALIDAD DISTRITAL DE EL CENEPA | E49: 1949.35986 | F49: 8571.200085 | G49: 0.61545 | I49: 22.74313796 | J49: Si Cumple | L49: 4162.72786 | M49: 3547.73358 | N49: 614.99428 | O49: Si Cumple
A50: 42 | B50: 010403 | C50: AMAZONAS | D50: MUNICIPALIDAD DISTRITAL DE RIO SANTIAGO | E50: 2564.72015 | F50: 12179.20599 | G50: 1.05004 | I50: 21.05818846 | J50: Si Cumple | L50: 4583.42448 | M50: 5165.43869 | N50: -582.01421 | O50: No Cumple
A51: 43 | B51: 010501 | C51: AMAZONAS | D51: MUNICIPALIDAD PROVINCIAL DE LUYA - LAMUD | E51: 1436.22895 | F51: 22678.51248 | G51: 0 | I51: 6.332994509 | J51: Si Cumple | L51: 2320.71053 | M51: 1976.19657 | N51: 344.51396 | O51: Si Cumple
A52: 44 | B52: 010502 | C52: AMAZONAS | D52: MUNICIPALIDAD DISTRITAL DE CAMPORREDONDO | E52: 28.37584 | F52: 4616.995995 | G52: 0.00186 | I52: 0.6145952916 | J52: Si Cumple | L52: 728.57368 | M52: 831.80311 | N52: -103.22943 | O52: No Cumple
A53: 45 | B53: 010503 | C53: AMAZONAS | D53: MUNICIPALIDAD DISTRITAL DE COCABAMBA | E53: 1652.41303 | F53: 1217.257427 | G53: 0.00078 | I53: 135.7488558 | J53: No Cumple | L53: 255.04425 | M53: 284.3295 | N53: -29.28525 | O53: No Cumple
A54: 46 | B54: 010504 | C54: AMAZONAS | D54: MUNICIPALIDAD DISTRITAL DE COLCAMAR | E54: 11.08381 | F54: 1113.232545 | G54: 0 | I54: 0.9956419303 | J54: Si Cumple | L54: 279.46215 | M54: 237.65788 | N54: 41.80427 | O54: Si Cumple
A55: 47 | B55: 010505 | C55: AMAZONAS | D55: MUNICIPALIDAD DISTRITAL DE CONILA | E55: 380.37066 | F55: 882.0454025 | G55: 0 | I55: 43.1237053 | J55: Si Cumple | L55: 312.0053 | M55: 361.18165 | N55: -49.17635 | O55: No Cumple
A56: 48 | B56: 010506 | C56: AMAZONAS | D56: MUNICIPALIDAD DISTRITAL DE INGUILPATA | E56: 18.75962 | F56: 969.2085125 | G56: 0 | I56: 1.935560796 | J56: Si Cumple | L56: 229.87543 | M56: 232.8475 | N56: -2.97207 | O56: No Cumple
A57: 49 | B57: 010507 | C57: AMAZONAS | D57: MUNICIPALIDAD DISTRITAL DE LONGUITA | E57: 9.19566 | F57: 1974.66217 | G57: 0 | I57: 0.4656826945 | J57: Si Cumple | L57: 287.79128 | M57: 212.30954 | N57: 75.48174 | O57: Si Cumple
A58: 50 | B58: 010508 | C58: AMAZONAS | D58: MUNICIPALIDAD DISTRITAL DE LONYA CHICO | E58: 21.37507 | F58: 1183.054645 | G58: 0 | I58: 1.806769458 | J58: Si Cumple | L58: 361.11881 | M58: 411.9767 | N58: -50.85789 | O58: No Cumple
A59: 51 | B59: 010509 | C59: AMAZONAS | D59: MUNICIPALIDAD DISTRITAL DE LUYA | E59: 30.29392 | F59: 2348.847263 | G59: 0.00078 | I59: 1.289735628 | J59: Si Cumple | L59: 615.77147 | M59: 508.10199 | N59: 107.66948 | O59: Si Cumple
A60: 52 | B60: 010510 | C60: AMAZONAS | D60: MUNICIPALIDAD DISTRITAL DE LUYA VIEJO | E60: 71.65236 | F60: 947.4572775 | G60: 0 | I60: 7.562595349 | J60: Si Cumple | L60: 184.26346 | M60: 252.35724 | N60: -68.09378 | O60: No Cumple
A61: 53 | B61: 010511 | C61: AMAZONAS | D61: MUNICIPALIDAD DISTRITAL DE MARIA | E61: 49.85981 | F61: 1074.55081 | G61: 0 | I61: 4.640060715 | J61: Si Cumple | L61: 184.3139 | M61: 224.57467 | N61: -40.26077 | O61: No Cumple
A62: 54 | B62: 010512 | C62: AMAZONAS | D62: MUNICIPALIDAD DISTRITAL DE OCALLI | E62: 36.11917 | F62: 1793.52022 | G62: 0.00078 | I62: 2.013870242 | J62: Si Cumple | L62: 337.38369 | M62: 605.39066 | N62: -268.00697 | O62: No Cumple
A63: 55 | B63: 010513 | C63: AMAZONAS | D63: MUNICIPALIDAD DISTRITAL DE OCUMAL | E63: 28.011 | F63: 2064.45936 | G63: 0.00078 | I63: 1.356820122 | J63: Si Cumple | L63: 763.20457 | M63: 381.49605 | N63: 381.70852 | O63: Si Cumple
A64: 56 | B64: 010514 | C64: AMAZONAS | D64: MUNICIPALIDAD DISTRITAL DE PIZUQUIA | E64: 248.91669 | F64: 3300.42492 | G64: 0.00107 | I64: 7.54195887 | J64: Si Cumple | L64: 962.43571 | M64: 947.81291 | N64: 14.6228 | O64: Si Cumple
A65: 57 | B65: 010515 | C65: AMAZONAS | D65: MUNICIPALIDAD DISTRITAL DE PROVIDENCIA | E65: 78.67396 | F65: 1034.813517 | G65: 0 | I65: 7.602718622 | J65: Si Cumple | L65: 228.14373 | M65: 269.83615 | N65: -41.69242 | O65: No Cumple
A66: 58 | B66: 010516 | C66: AMAZONAS | D66: MUNICIPALIDAD DISTRITAL DE SAN CRISTOBAL DE OLTO | E66: 64.86952 | F66: 1055.224602 | G66: 0 | I66: 6.147460915 | J66: Si Cumple | L66: 444.43823 | M66: 219.53811 | N66: 224.90012 | O66: Si Cumple
A67: 59 | B67: 010517 | C67: AMAZONAS | D67: MUNICIPALIDAD DISTRITAL DE SAN FRANCISCO DE YESO | E67: 32.35915 | F67: 797.803035 | G67: 0 | I67: 4.056032452 | J67: Si Cumple | L67: 312.90338 | M67: 201.10803 | N67: 111.79535 | O67: Si Cumple
A68: 60 | B68: 010518 | C68: AMAZONAS | D68: MUNICIPALIDAD DISTRITAL DE SAN JERONIMO DE PACLAS | E68: 23.63066 | F68: 1005.22247 | G68: 0 | I68: 2.350789075 | J68: Si Cumple | L68: 185.76884 | M68: 273.97281 | N68: -88.20397 | O68: No Cumple
A69: 61 | B69: 010519 | C69: AMAZONAS | D69: MUNICIPALIDAD DISTRITAL DE SAN JUAN DE LOPECANCHA | E69: 83.36362 | F69: 949.62618 | G69: 0 | I69: 8.778572217 | J69: Si Cumple | L69: 314.23862 | M69: 241.24173 | N69: 72.99689 | O69: Si Cumple
A70: 62 | B70: 010520 | C70: AMAZONAS | D70: MUNICIPALIDAD DISTRITAL DE SANTA CATALINA | E70: 60.76808 | F70: 1214.444523 | G70: 0.00078 | I70: 5.003775708 | J70: Si Cumple | L70: 220.13521 | M70: 291.21292 | N70: -71.07771 | O70: No Cumple
A71: 63 | B71: 010521 | C71: AMAZONAS | D71: MUNICIPALIDAD DISTRITAL DE SANTO TOMAS | E71: 99.43389 | F71: 1402.073502 | G71: 0.00186 | I71: 7.091917066 | J71: Si Cumple | L71: 300.81229 | M71: 407.13126 | N71: -106.31897 | O71: No Cumple
A72: 64 | B72: 010522 | C72: AMAZONAS | D72: MUNICIPALIDAD DISTRITAL DE TINGO | E72: 11.21855 | F72: 860.6241675 | G72: 0 | I72: 1.303536482 | J72: Si Cumple | L72: 314.81592 | M72: 283.26436 | N72: 31.55156 | O72: Si Cumple
A73: 65 | B73: 010523 | C73: AMAZONAS | D73: MUNICIPALIDAD DISTRITAL DE TRITA | E73: 2.20165 | F73: 1081.752228 | G73: 0 | I73: 0.2035262738 | J73: Si Cumple | L73: 334.83882 | M73: 310.40329 | N73: 24.43553 | O73: Si Cumple
A74: 66 | B74: 010601 | C74: AMAZONAS | D74: MUNICIPALIDAD PROVINCIAL DE RODRIGUEZ DE MENDOZA - SAN NICOLAS | E74: 4528.26339 | F74: 10481.74205 | G74: 0.00735 | I74: 43.20143892 | J74: Si Cumple | L74: 2921.80967 | M74: 2579.27792 | N74: 342.53175 | O74: Si Cumple
A75: 67 | B75: 010602 | C75: AMAZONAS | D75: MUNICIPALIDAD DISTRITAL DE CHIRIMOTO | E75: 56.25321 | F75: 1204.616352 | G75: 0.01284 | I75: 4.669802953 | J75: Si Cumple | L75: 271.998 | M75: 386.08855 | N75: -114.09055 | O75: No Cumple
A76: 68 | B76: 010603 | C76: AMAZONAS | D76: MUNICIPALIDAD DISTRITAL DE COCHAMAL | E76: 160.3182 | F76: 813.50789 | G76: 0.00157 | I76: 19.7070246 | J76: Si Cumple | L76: 237.15944 | M76: 273.8495 | N76: -36.69006 | O76: No Cumple
A77: 69 | B77: 010604 | C77: AMAZONAS | D77: MUNICIPALIDAD DISTRITAL DE HUAMBO | E77: 120.89919 | F77: 2039.063907 | G77: 0.00813 | I77: 5.929151585 | J77: Si Cumple | L77: 266.95451 | M77: 488.67707 | N77: -221.72256 | O77: No Cumple
A78: 70 | B78: 010605 | C78: AMAZONAS | D78: MUNICIPALIDAD DISTRITAL DE LIMABAMBA | E78: 2215.67641 | F78: 1384.876882 | G78: 0.00813 | I78: 159.9908582 | J78: No Cumple | L78: 659.51747 | M78: 419.29001 | N78: 240.22746 | O78: Si Cumple
A79: 71 | B79: 010606 | C79: AMAZONAS | D79: MUNICIPALIDAD DISTRITAL DE LONGAR | E79: 98.86282 | F79: 817.7551025 | G79: 0.00421 | I79: 12.08953875 | J79: Si Cumple | L79: 218.246 | M79: 256.39407 | N79: -38.14807 | O79: No Cumple
A80: 72 | B80: 010607 | C80: AMAZONAS | D80: MUNICIPALIDAD DISTRITAL DE MARISCAL BENAVIDES | E80: 298.90181 | F80: 918.4067425 | G80: 0.00235 | I80: 32.54568985 | J80: Si Cumple | L80: 344.07604 | M80: 283.55138 | N80: 60.52466 | O80: Si Cumple
A81: 73 | B81: 010608 | C81: AMAZONAS | D81: MUNICIPALIDAD DISTRITAL DE MILPUC | E81: 97.60468 | F81: 766.0441075 | G81: 0.03844 | I81: 12.74139166 | J81: Si Cumple | L81: 267.02193 | M81: 253.52727 | N81: 13.49466 | O81: Si Cumple
A82: 74 | B82: 010609 | C82: AMAZONAS | D82: MUNICIPALIDAD DISTRITAL DE OMIA | E82: 204.49922 | F82: 3993.102027 | G82: 0.04353 | I82: 5.121312168 | J82: Si Cumple | L82: 1768.72505 | M82: 1469.21256 | N82: 299.51249 | O82: Si Cumple
A83: 75 | B83: 010610 | C83: AMAZONAS | D83: MUNICIPALIDAD DISTRITAL DE SANTA ROSA | E83: 104.34405 | F83: 1029.217328 | G83: 0.00157 | I83: 10.13819406 | J83: Si Cumple | L83: 274.46673 | M83: 290.79544 | N83: -16.32871 | O83: No Cumple
A84: 76 | B84: 010611 | C84: AMAZONAS | D84: MUNICIPALIDAD DISTRITAL DE TOTORA | E84: 11.39707 | F84: 712.444965 | G84: 0.00078 | I84: 1.599712337 | J84: Si Cumple | L84: 204.59534 | M84: 274.14593 | N84: -69.55059 | O84: No Cumple
A85: 77 | B85: 010612 | C85: AMAZONAS | D85: MUNICIPALIDAD DISTRITAL DE VISTA ALEGRE | E85: 111.846 | F85: 2050.260835 | G85: 0.02412 | I85: 5.455208337 | J85: Si Cumple | L85: 935.10002 | M85: 435.51457 | N85: 499.58545 | O85: Si Cumple
A86: 78 | B86: 010701 | C86: AMAZONAS | D86: MUNICIPALIDAD PROVINCIA DE UTCUBAMBA - BAGUA GRANDE | E86: 4263.91505 | F86: 48157.316 | G86: 0.9989 | I86: 8.854137655 | J86: Si Cumple | L86: 15985.26082 | M86: 12523.75121 | N86: 3461.50961 | O86: Si Cumple
A87: 79 | B87: 010702 | C87: AMAZONAS | D87: MUNICIPALIDAD DISTRITAL DE CAJARURO | E87: 826.03118 | F87: 13531.98402 | G87: 0.80667 | I87: 6.104287284 | J87: Si Cumple | L87: 5171.71081 | M87: 3742.71306 | N87: 1428.99775 | O87: Si Cumple
A88: 80 | B88: 010703 | C88: AMAZONAS | D88: MUNICIPALIDAD DISTRITAL DE CUMBA | E88: 276.36456 | F88: 4688.655008 | G88: 0.0053 | I88: 5.894324909 | J88: Si Cumple | L88: 1076.74736 | M88: 1694.63869 | N88: -617.89133 | O88: No Cumple
A89: 81 | B89: 010704 | C89: AMAZONAS | D89: MUNICIPALIDAD DISTRITAL DE EL MILAGRO | E89: 2916.35028 | F89: 3730.22353 | G89: 0.00264 | I89: 78.18164934 | J89: Si Cumple | L89: 1270.26908 | M89: 1198.50075 | N89: 71.76833 | O89: Si Cumple
A90: 82 | B90: 010705 | C90: AMAZONAS | D90: MUNICIPALIDAD DISTRITAL DE JAMALCA | E90: 172.28223 | F90: 4626.823958 | G90: 0.00373 | I90: 3.723552735 | J90: Si Cumple | L90: 2086.62473 | M90: 1873.96226 | N90: 212.66247 | O90: Si Cumple
A91: 83 | B91: 010706 | C91: AMAZONAS | D91: MUNICIPALIDAD DISTRITAL DE LONYA GRANDE | E91: 2596.21491 | F91: 5201.964727 | G91: 0.00373 | I91: 49.90835282 | J91: Si Cumple | L91: 2630.27441 | M91: 1886.08033 | N91: 744.19408 | O91: Si Cumple
A92: 84 | B92: 010707 | C92: AMAZONAS | D92: MUNICIPALIDAD DISTRITAL DE YAMON | E92: 496.72448 | F92: 2352.44864 | G92: 0.00186 | I92: 21.1152104 | J92: Si Cumple | L92: 781.04761 | M92: 821.95705 | N92: -40.90944 | O92: No Cumple
A93: 85 | B93: 020101 | C93: ANCASH | D93: MUNICIPALIDAD PROVINCIAL DE HUARAZ | E93: 17253.71844 | F93: 77863.05442 | G93: 104141.4976 | I93: 16.5675728 | J93: Si Cumple | L93: 31826.23914 | M93: 18092.79736 | N93: 13733.44178 | O93: Si Cumple
A94: 86 | B94: 020102 | C94: ANCASH | D94: MUNICIPALIDAD DISTRITAL DE COCHABAMBA | E94: 197.94384 | F94: 3133.806177 | G94: 6837.53614 | I94: 2.894958592 | J94: Si Cumple | L94: 749.79165 | M94: 423.07351 | N94: 326.71814 | O94: Si Cumple
A95: 87 | B95: 020103 | C95: ANCASH | D95: MUNICIPALIDAD DISTRITAL DE COLCABAMBA | E95: 98.05638 | F95: 1826.140863 | G95: 423.22551 | I95: 5.369595633 | J95: Si Cumple | L95: 224.91642 | M95: 243.51781 | N95: -18.60139 | O95: No Cumple
A96: 88 | B96: 020104 | C96: ANCASH | D96: MUNICIPALIDAD DISTRITAL DE HUANCHAY | E96: 101.98899 | F96: 2810.029697 | G96: 5918.47777 | I96: 1.723230093 | J96: Si Cumple | L96: 987.55248 | M96: 555.66438 | N96: 431.8881 | O96: Si Cumple
A97: 89 | B97: 020105 | C97: ANCASH | D97: MUNICIPALIDAD DISTRITAL DE INDEPENDENCIA | E97: 6179.45835 | F97: 62622.81645 | G97: 136855.051 | I97: 4.515330859 | J97: Si Cumple | L97: 29536.50811 | M97: 12228.23783 | N97: 17308.27028 | O97: Si Cumple
A98: 90 | B98: 020106 | C98: ANCASH | D98: MUNICIPALIDAD DISTRITAL DE JANGAS | E98: 140.49092 | F98: 5390.619117 | G98: 14412.7683 | I98: 0.9747670751 | J98: Si Cumple | L98: 2177.0506 | M98: 929.49506 | N98: 1247.55554 | O98: Si Cumple
A99: 91 | B99: 020107 | C99: ANCASH | D99: MUNICIPALIDAD DISTRITAL DE LA LIBERTAD | E99: 127.30654 | F99: 2691.399255 | G99: 4477.09797 | I99: 2.84350579 | J99: Si Cumple | L99: 622.54339 | M99: 497.14108 | N99: 125.40231 | O99: Si Cumple
A100: 92 | B100: 020108 | C100: ANCASH | D100: MUNICIPALIDAD DISTRITAL DE OLLEROS | E100: 1234.90473 | F100: 3165.85657 | G100: 7240.61196 | I100: 17.05525357 | J100: Si Cumple | L100: 1078.14821 | M100: 577.18659 | N100: 500.96162 | O100: Si Cumple
A101: 93 | B101: 020109 | C101: ANCASH | D101: MUNICIPALIDAD DISTRITAL DE PAMPAS | E101: 1062.75023 | F101: 1862.4408 | G101: 2673.37535 | I101: 39.75312445 | J101: Si Cumple | L101: 566.04546 | M101: 436.63947 | N101: 129.40599 | O101: Si Cumple
A102: 94 | B102: 020110 | C102: ANCASH | D102: MUNICIPALIDAD DISTRITAL DE PARIACOTO | E102: 218.88287 | F102: 4869.802203 | G102: 10124.00828 | I102: 2.162017888 | J102: Si Cumple | L102: 1316.82984 | M102: 996.79575 | N102: 320.03409 | O102: Si Cumple
A103: 95 | B103: 020111 | C103: ANCASH | D103: MUNICIPALIDAD DISTRITAL DE PIRA | E103: 839.17938 | F103: 4553.48176 | G103: 10099.99644 | I103: 8.308709661 | J103: Si Cumple | L103: 1459.09169 | M103: 940.1746 | N103: 518.91709 | O103: Si Cumple
A104: 96 | B104: 020112 | C104: ANCASH | D104: MUNICIPALIDAD DISTRITAL DE TARICA | E104: 876.27957 | F104: 7784.416888 | G104: 20417.01128 | I104: 4.291909124 | J104: Si Cumple | L104: 2505.72472 | M104: 1572.40589 | N104: 933.31883 | O104: Si Cumple
A105: 97 | B105: 020201 | C105: ANCASH | D105: MUNICIPALIDAD PROVINCIAL DE AIJA | E105: 675.46683 | F105: 11307.2101 | G105: 7447.51276 | I105: 5.973770929 | J105: Si Cumple | L105: 1867.33186 | M105: 1099.64041 | N105: 767.69145 | O105: Si Cumple
A106: 98 | B106: 020202 | C106: ANCASH | D106: MUNICIPALIDAD DISTRITAL DE CORIS | E106: 99.97921 | F106: 4542.350917 | G106: 10577.94002 | I106: 0.9451671101 | J106: Si Cumple | L106: 1626.09095 | M106: 560.17848 | N106: 1065.91247 | O106: Si Cumple
A107: 99 | B107: 020203 | C107: ANCASH | D107: MUNICIPALIDAD DISTRITAL DE HUACLLAN | E107: 67.19588 | F107: 1294.539535 | G107: 1456.24297 | I107: 4.614331632 | J107: Si Cumple | L107: 320.73541 | M107: 233.57158 | N107: 87.16383 | O107: Si Cumple
A108: 100 | B108: 020204 | C108: ANCASH | D108: MUNICIPALIDAD DISTRITAL DE LA MERCED | E108: 112.12603 | F108: 3249.051802 | G108: 5831.23977 | I108: 1.922850619 | J108: Si Cumple | L108: 997.86909 | M108: 513.16235 | N108: 484.70674 | O108: Si Cumple
A109: 101 | B109: 020205 | C109: ANCASH | D109: MUNICIPALIDAD DISTRITAL DE SUCCHA | E109: 114.17866 | F109: 1851.885375 | G109: 2871.64165 | I109: 3.976076193 | J109: Si Cumple | L109: 532.30873 | M109: 395.84991 | N109: 136.45882 | O109: Si Cumple
A110: 102 | B110: 020301 | C110: ANCASH | D110: MUNICIPALIDAD PROVINCIAL DE ANTONIO RAYMONDI - LLAMELLIN | E110: 333.86867 | F110: 8480.1906 | G110: 11014.98717 | I110: 3.031040026 | J110: Si Cumple | L110: 1509.66523 | M110: 1284.33145 | N110: 225.33378 | O110: Si Cumple
A111: 103 | B111: 020302 | C111: ANCASH | D111: MUNICIPALIDAD DISTRITAL DE ACSO | E111: 127.84657 | F111: 2239.407263 | G111: 3928.43316 | I111: 3.254390868 | J111: Si Cumple | L111: 770.00017 | M111: 375.25452 | N111: 394.74565 | O111: Si Cumple
A112: 104 | B112: 020303 | C112: ANCASH | D112: MUNICIPALIDAD DISTRITAL DE CHACCHO | E112: 490.53103 | F112: 2626.82503 | G112: 5492.42477 | I112: 8.931046861 | J112: Si Cumple | L112: 638.75135 | M112: 445.54637 | N112: 193.20498 | O112: Si Cumple
A113: 105 | B113: 020304 | C113: ANCASH | D113: MUNICIPALIDAD DISTRITAL DE CHINGAS | E113: 115.72234 | F113: 2529.831658 | G113: 5422.96153 | I113: 2.133932527 | J113: Si Cumple | L113: 938.58404 | M113: 531.2549 | N113: 407.32914 | O113: Si Cumple
A114: 106 | B114: 020305 | C114: ANCASH | D114: MUNICIPALIDAD DISTRITAL DE MIRGAS | E114: 455.43292 | F114: 6374.925837 | G114: 15789.76116 | I114: 2.884355978 | J114: Si Cumple | L114: 1646.10348 | M114: 790.23708 | N114: 855.8664 | O114: Si Cumple
A115: 107 | B115: 020306 | C115: ANCASH | D115: MUNICIPALIDAD DISTRITAL DE SAN JUAN DE RONTOY | E115: 167.30757 | F115: 1673.413262 | G115: 1935.27156 | I115: 8.645172774 | J115: Si Cumple | L115: 508.06971 | M115: 374.80898 | N115: 133.26073 | O115: Si Cumple
A116: 108 | B116: 020401 | C116: ANCASH | D116: MUNICIPALIDAD PROVINCIAL DE ASUNCION - CHACAS | E116: 399.85771 | F116: 7842.579233 | G116: 10303.48051 | I116: 3.880802313 | J116: Si Cumple | L116: 1460.76025 | M116: 1323.95235 | N116: 136.8079 | O116: Si Cumple
A117: 109 | B117: 020402 | C117: ANCASH | D117: MUNICIPALIDAD DISTRITAL DE ACOCHACA | E117: 446.99562 | F117: 2884.75557 | G117: 5825.10287 | I117: 7.673609033 | J117: Si Cumple | L117: 900.4577 | M117: 499.00723 | N117: 401.45047 | O117: Si Cumple
A118: 110 | B118: 020501 | C118: ANCASH | D118: MUNICIPALIDAD PROVINCIAL DE BOLOGNESI - CHIQUIAN | E118: 1869.85107 | F118: 18255.5618 | G118: 7195.42444 | I118: 10.24263778 | J118: Si Cumple | L118: 2346.07592 | M118: 1974.86604 | N118: 371.20988 | O118: Si Cumple
A119: 111 | B119: 020502 | C119: ANCASH | D119: MUNICIPALIDAD DISTRITAL DE ABELARDO PARDO LAZAMETA | E119: 196.956 | F119: 1051.606255 | G119: 571.07458 | I119: 18.72906319 | J119: Si Cumple | L119: 327.26268 | M119: 336.12846 | N119: -8.86578 | O119: No Cumple
A120: 112 | B120: 020503 | C120: ANCASH | D120: MUNICIPALIDAD DISTRITAL DE ANTONIO RAYMONDI | E120: 220.6618 | F120: 4188.48074 | G120: 3658.55837 | I120: 5.268301652 | J120: Si Cumple | L120: 504.93121 | M120: 986.34768 | N120: -481.41647 | O120: No Cumple
A121: 113 | B121: 020504 | C121: ANCASH | D121: MUNICIPALIDAD DISTRITAL DE AQUIA | E121: 686.58995 | F121: 3047.185782 | G121: 5660.12331 | I121: 12.13030021 | J121: Si Cumple | L121: 1156.65587 | M121: 442.44327 | N121: 714.2126 | O121: Si Cumple
A122: 114 | B122: 020505 | C122: ANCASH | D122: MUNICIPALIDAD DISTRITAL DE CAJACAY | E122: 2060.25389 | F122: 2905.51479 | G122: 6496.86238 | I122: 31.71152119 | J122: Si Cumple | L122: 820.93923 | M122: 515.38595 | N122: 305.55328 | O122: Si Cumple
A123: 115 | B123: 020506 | C123: ANCASH | D123: MUNICIPALIDAD DISTRITAL DE CANIS | E123: 94.43896 | F123: 968.60784 | G123: 575.63028 | I123: 9.749968573 | J123: Si Cumple | L123: 190.65711 | M123: 311.81342 | N123: -121.15631 | O123: No Cumple
A124: 116 | B124: 020507 | C124: ANCASH | D124: MUNICIPALIDAD DISTRITAL DE COLQUIOC | E124: 458.66426 | F124: 2889.218882 | G124: 5200.98852 | I124: 8.818790086 | J124: Si Cumple | L124: 1008.90811 | M124: 489.89057 | N124: 519.01754 | O124: Si Cumple
A125: 117 | B125: 020508 | C125: ANCASH | D125: MUNICIPALIDAD DISTRITAL DE HUALLANCA | E125: 1605.01409 | F125: 10009.02681 | G125: 23388.49422 | I125: 6.862408819 | J125: Si Cumple | L125: 849.22076 | M125: 2061.58976 | N125: -1212.369 | O125: No Cumple
A126: 118 | B126: 020509 | C126: ANCASH | D126: MUNICIPALIDAD DISTRITAL DE HUASTA | E126: 191.59397 | F126: 2416.370685 | G126: 3331.46318 | I126: 5.751045701 | J126: Si Cumple | L126: 660.09674 | M126: 577.78705 | N126: 82.30969 | O126: Si Cumple
A127: 119 | B127: 020510 | C127: ANCASH | D127: MUNICIPALIDAD DISTRITAL DE HUAYLLACAYAN | E127: 689.22049 | F127: 2721.249605 | G127: 5323.76214 | I127: 12.94611727 | J127: Si Cumple | L127: 628.7379 | M127: 236.43545 | N127: 392.30245 | O127: Si Cumple
A128: 120 | B128: 020511 | C128: ANCASH | D128: MUNICIPALIDAD DISTRITAL DE LA PRIMAVERA | E128: 180.79426 | F128: 3343.384213 | G128: 2539.32634 | I128: 5.407522693 | J128: Si Cumple | L128: 399.45541 | M128: 472.70887 | N128: -73.25346 | O128: No Cumple
A129: 121 | B129: 020512 | C129: ANCASH | D129: MUNICIPALIDAD DISTRITAL DE MANGAS | E129: 236.06806 | F129: 1722.235875 | G129: 2998.90368 | I129: 7.871812008 | J129: Si Cumple | L129: 430.67607 | M129: 289.05263 | N129: 141.62344 | O129: Si Cumple
A130: 122 | B130: 020513 | C130: ANCASH | D130: MUNICIPALIDAD DISTRITAL DE PACLLON | E130: 1061.45803 | F130: 1783.421107 | G130: 2958.39238 | I130: 35.8795553 | J130: Si Cumple | L130: 688.09602 | M130: 322.15196 | N130: 365.94406 | O130: Si Cumple
A131: 123 | B131: 020514 | C131: ANCASH | D131: MUNICIPALIDAD DISTRITAL DE SAN MIGUEL DE CORPANQUI | E131: 80.18378 | F131: 1674.093145 | G131: 2664.13796 | I131: 3.009745787 | J131: Si Cumple | L131: 576.56281 | M131: 388.59078 | N131: 187.97203 | O131: Si Cumple
A132: 124 | B132: 020515 | C132: ANCASH | D132: MUNICIPALIDAD DISTRITAL DE TICLLOS | E132: 1432.87029 | F132: 1827.276703 | G132: 2504.16728 | I132: 57.21943184 | J132: Si Cumple | L132: 577.71096 | M132: 343.38402 | N132: 234.32694 | O132: Si Cumple
A133: 125 | B133: 020601 | C133: ANCASH | D133: MUNICIPALIDAD PROVINCIAL DE CARHUAZ | E133: 1337.19678 | F133: 25966.99733 | G133: 42790.63452 | I133: 3.124975348 | J133: Si Cumple | L133: 9757.18898 | M133: 5686.80461 | N133: 4070.38437 | O133: Si Cumple
A134: 126 | B134: 020602 | C134: ANCASH | D134: MUNICIPALIDAD DISTRITAL DE ACOPAMPA | E134: 201.05138 | F134: 2823.50974 | G134: 5714.95704 | I134: 3.51798585 | J134: Si Cumple | L134: 917.76629 | M134: 726.68472 | N134: 191.08157 | O134: Si Cumple
A135: 127 | B135: 020603 | C135: ANCASH | D135: MUNICIPALIDAD DISTRITAL DE AMASHCA | E135: 328.79842 | F135: 2428.331953 | G135: 4574.30467 | I135: 7.187943168 | J135: Si Cumple | L135: 712.04258 | M135: 330.29718 | N135: 381.7454 | O135: Si Cumple
A136: 128 | B136: 020604 | C136: ANCASH | D136: MUNICIPALIDAD DISTRITAL DE ANTA | E136: 336.03096 | F136: 3434.890627 | G136: 6660.83475 | I136: 5.044877596 | J136: Si Cumple | L136: 1019.34515 | M136: 758.2786 | N136: 261.06655 | O136: Si Cumple
A137: 129 | B137: 020605 | C137: ANCASH | D137: MUNICIPALIDAD DISTRITAL DE ATAQUERO | E137: 150.43526 | F137: 1793.96196 | G137: 2270.81235 | I137: 6.624733215 | J137: Si Cumple | L137: 361.86151 | M137: 393.30405 | N137: -31.44254 | O137: No Cumple
A138: 130 | B138: 020606 | C138: ANCASH | D138: MUNICIPALIDAD DISTRITAL DE MARCARA | E138: 1170.90274 | F138: 10441.21643 | G138: 25199.32091 | I138: 4.64656466 | J138: Si Cumple | L138: 4450.12272 | M138: 2184.13262 | N138: 2265.9901 | O138: Si Cumple
A139: 131 | B139: 020607 | C139: ANCASH | D139: MUNICIPALIDAD DISTRITAL DE PARIAHUANCA | E139: 82.58782 | F139: 2108.292547 | G139: 3776.17349 | I139: 2.18707695 | J139: Si Cumple | L139: 729.40781 | M139: 386.80621 | N139: 342.6016 | O139: Si Cumple
A140: 132 | B140: 020608 | C140: ANCASH | D140: MUNICIPALIDAD DISTRITAL DE SAN MIGUEL DE ACO | E140: 275.37857 | F140: 2649.083425 | G140: 5126.15903 | I140: 5.372025495 | J140: Si Cumple | L140: 998.59596 | M140: 541.32245 | N140: 457.27351 | O140: Si Cumple
A141: 133 | B141: 020609 | C141: ANCASH | D141: MUNICIPALIDAD DISTRITAL DE SHILLA | E141: 182.12558 | F141: 2574.328932 | G141: 4892.26952 | I141: 3.72272172 | J141: Si Cumple | L141: 668.20121 | M141: 678.99784 | N141: -10.79663 | O141: No Cumple
A142: 134 | B142: 020610 | C142: ANCASH | D142: MUNICIPALIDAD DISTRITAL DE TINCO | E142: 151.05465 | F142: 3485.823118 | G142: 7316.83187 | I142: 2.064481632 | J142: Si Cumple | L142: 932.52444 | M142: 604.97666 | N142: 327.54778 | O142: Si Cumple
A143: 135 | B143: 020611 | C143: ANCASH | D143: MUNICIPALIDAD DISTRITAL DE YUNGAR | E143: 785.35914 | F143: 3023.504283 | G143: 5335.75104 | I143: 14.71881154 | J143: Si Cumple | L143: 742.42994 | M143: 654.7876 | N143: 87.64234 | O143: Si Cumple
A144: 136 | B144: 020701 | C144: ANCASH | D144: MUNICIPALIDAD PROVINCIAL DE CARLOS FERMIN FITZCARRALD | E144: 5700.94618 | F144: 23408.06852 | G144: 39435.48228 | I144: 14.45638762 | J144: Si Cumple | L144: 8471.03123 | M144: 4865.59542 | N144: 3605.43581 | O144: Si Cumple
A145: 137 | B145: 020702 | C145: ANCASH | D145: MUNICIPALIDAD DISTRITAL DE SAN NICOLAS | E145: 210.91438 | F145: 4956.826555 | G145: 9807.10598 | I145: 2.150628131 | J145: Si Cumple | L145: 1661.66093 | M145: 1103.31209 | N145: 558.34884 | O145: Si Cumple
A146: 138 | B146: 020703 | C146: ANCASH | D146: MUNICIPALIDAD DISTRITAL DE YAUYA | E146: 778.05273 | F146: 8725.246395 | G146: 19681.88194 | I146: 3.953141942 | J146: Si Cumple | L146: 3248.67169 | M146: 1763.41418 | N146: 1485.25751 | O146: Si Cumple
A147: 139 | B147: 020801 | C147: ANCASH | D147: MUNICIPALIDAD PROVINCIAL DE CASMA | E147: 2209.47064 | F147: 48845.0929 | G147: 102331.7766 | I147: 2.159124677 | J147: Si Cumple | L147: 21267.05756 | M147: 10881.39786 | N147: 10385.6597 | O147: Si Cumple
A148: 140 | B148: 020802 | C148: ANCASH | D148: MUNICIPALIDAD DISTRITAL DE BUENA VISTA ALTA | E148: 765.66405 | F148: 7334.08876 | G148: 17795.5368 | I148: 4.302562258 | J148: Si Cumple | L148: 2169.76771 | M148: 1205.51496 | N148: 964.25275 | O148: Si Cumple
A149: 141 | B149: 020803 | C149: ANCASH | D149: MUNICIPALIDAD DISTRITAL DE COMANDANTE NOEL | E149: 603.87224 | F149: 3828.02931 | G149: 6542.43405 | I149: 9.230085246 | J149: Si Cumple | L149: 1378.3774 | M149: 1554.80009 | N149: -176.42269 | O149: No Cumple
A150: 142 | B150: 020804 | C150: ANCASH | D150: MUNICIPALIDAD DISTRITAL DE YAUTAN | E150: 775.28211 | F150: 10051.30306 | G150: 22117.30425 | I150: 3.505319189 | J150: Si Cumple | L150: 4281.24169 | M150: 1899.46641 | N150: 2381.77528 | O150: Si Cumple
A151: 143 | B151: 020901 | C151: ANCASH | D151: MUNICIPALIDAD PROVINCIAL DE CORONGO | E151: 1082.08566 | F151: 8660.831422 | G151: 3331.89844 | I151: 12.49401596 | J151: Si Cumple | L151: 836.41127 | M151: 942.58289 | N151: -106.17162 | O151: No Cumple
A152: 144 | B152: 020902 | C152: ANCASH | D152: MUNICIPALIDAD DISTRITAL DE ACO | E152: 134.91723 | F152: 1092.409657 | G152: 845.18674 | I152: 12.3504245 | J152: Si Cumple | L152: 224.70497 | M152: 322.88485 | N152: -98.17988 | O152: No Cumple
A153: 145 | B153: 020903 | C153: ANCASH | D153: MUNICIPALIDAD DISTRITAL DE BAMBAS | E153: 38.83548 | F153: 1469.059617 | G153: 1705.06241 | I153: 2.277657391 | J153: Si Cumple | L153: 501.47058 | M153: 405.15199 | N153: 96.31859 | O153: Si Cumple
A154: 146 | B154: 020904 | C154: ANCASH | D154: MUNICIPALIDAD DISTRITAL DE CUSCA | E154: 325.06813 | F154: 4582.349845 | G154: 9727.52052 | I154: 3.34173677 | J154: Si Cumple | L154: 1032.91112 | M154: 543.95757 | N154: 488.95355 | O154: Si Cumple
A155: 147 | B155: 020905 | C155: ANCASH | D155: MUNICIPALIDAD DISTRITAL DE LA PAMPA | E155: 560.13506 | F155: 1725.819448 | G155: 2750.50479 | I155: 20.36480947 | J155: Si Cumple | L155: 383.40403 | M155: 377.58363 | N155: 5.8204 | O155: Si Cumple
A156: 148 | B156: 020906 | C156: ANCASH | D156: MUNICIPALIDAD DISTRITAL DE YANAC | E156: 43.66882 | F156: 1288.200185 | G156: 1753.66652 | I156: 2.490143907 | J156: Si Cumple | L156: 393.46926 | M156: 314.47874 | N156: 78.99052 | O156: Si Cumple
A157: 149 | B157: 020907 | C157: ANCASH | D157: MUNICIPALIDAD DISTRITAL DE YUPAN | E157: 89.3455 | F157: 1288.358967 | G157: 1316.55036 | I157: 6.786333642 | J157: Si Cumple | L157: 308.64335 | M157: 357.36377 | N157: -48.72042 | O157: No Cumple
A158: 150 | B158: 021001 | C158: ANCASH | D158: MUNICIPALIDAD PROVINCIAL DE HUARI | E158: 1588.58909 | F158: 65533.06666 | G158: 179070.3831 | I158: 0.8871311169 | J158: Si Cumple | L158: 22888.92704 | M158: 7505.80872 | N158: 15383.11832 | O158: Si Cumple
A159: 151 | B159: 021002 | C159: ANCASH | D159: MUNICIPALIDAD DISTRITAL DE ANRA | E159: 185.38322 | F159: 12023.21878 | G159: 38583.80678 | I159: 0.4804689725 | J159: Si Cumple | L159: 4166.52966 | M159: 1665.3969 | N159: 2501.13276 | O159: Si Cumple
A160: 152 | B160: 021003 | C160: ANCASH | D160: MUNICIPALIDAD DISTRITAL DE CAJAY | E160: 1533.89391 | F160: 28788.39877 | G160: 95898.43942 | I160: 1.599498302 | J160: Si Cumple | L160: 8669.54585 | M160: 3117.46571 | N160: 5552.08014 | O160: Si Cumple
A161: 153 | B161: 021004 | C161: ANCASH | D161: MUNICIPALIDAD DISTRITAL DE CHAVIN DE HUANTAR | E161: 17382.68251 | F161: 87050.62566 | G161: 284078.734 | I161: 6.11896648 | J161: Si Cumple | L161: 30828.74962 | M161: 9540.65425 | N161: 21288.09537 | O161: Si Cumple
A162: 154 | B162: 021005 | C162: ANCASH | D162: MUNICIPALIDAD DISTRITAL DE HUACACHI | E162: 1426.69151 | F162: 22083.69146 | G162: 69548.18103 | I162: 2.051371422 | J162: Si Cumple | L162: 7644.23802 | M162: 2680.76267 | N162: 4963.47535 | O162: Si Cumple
A163: 155 | B163: 021006 | C163: ANCASH | D163: MUNICIPALIDAD DISTRITAL DE HUACCHIS | E163: 222.04524 | F163: 7600.596588 | G163: 23995.68769 | I163: 0.9253547674 | J163: Si Cumple | L163: 2171.74389 | M163: 597.25034 | N163: 1574.49355 | O163: Si Cumple
A164: 156 | B164: 021007 | C164: ANCASH | D164: MUNICIPALIDAD DISTRITAL DE HUACHIS | E164: 3040.83806 | F164: 28301.02451 | G164: 92881.54622 | I164: 3.273888284 | J164: Si Cumple | L164: 8414.60741 | M164: 3453.60004 | N164: 4961.00737 | O164: Si Cumple
A165: 157 | B165: 021008 | C165: ANCASH | D165: MUNICIPALIDAD DISTRITAL DE HUANTAR | E165: 434.13077 | F165: 20587.20209 | G165: 64670.19469 | I165: 0.6712996181 | J165: Si Cumple | L165: 5785.34601 | M165: 1678.06767 | N165: 4107.27834 | O165: Si Cumple
A166: 158 | B166: 021009 | C166: ANCASH | D166: MUNICIPALIDAD DISTRITAL DE MASIN | E166: 591.35795 | F166: 9677.57567 | G166: 29376.09107 | I166: 2.013058676 | J166: Si Cumple | L166: 3394.6848 | M166: 1195.64658 | N166: 2199.03822 | O166: Si Cumple
A167: 159 | B167: 021010 | C167: ANCASH | D167: MUNICIPALIDAD DISTRITAL DE PAUCAS | E167: 118.55336 | F167: 11073.29218 | G167: 33740.8002 | I167: 0.3513649922 | J167: Si Cumple | L167: 3073.83077 | M167: 1193.92302 | N167: 1879.90775 | O167: Si Cumple
A168: 160 | B168: 021011 | C168: ANCASH | D168: MUNICIPALIDAD DISTRITAL DE PONTO | E168: 1554.56825 | F168: 31857.28219 | G168: 102011.5986 | I168: 1.523913233 | J168: Si Cumple | L168: 11541.58648 | M168: 2214.14374 | N168: 9327.44274 | O168: Si Cumple
A169: 161 | B169: 021012 | C169: ANCASH | D169: MUNICIPALIDAD DISTRITAL DE RAHUAPAMPA | E169: 750.10219 | F169: 5999.395602 | G169: 17497.14233 | I169: 4.286998276 | J169: Si Cumple | L169: 2016.21594 | M169: 892.01038 | N169: 1124.20556 | O169: Si Cumple
A170: 162 | B170: 021013 | C170: ANCASH | D170: MUNICIPALIDAD DISTRITAL DE RAPAYAN | E170: 788.34732 | F170: 11293.88134 | G170: 35926.01168 | I170: 2.194363591 | J170: Si Cumple | L170: 3747.62668 | M170: 2858.99617 | N170: 888.63051 | O170: Si Cumple
A171: 163 | B171: 021014 | C171: ANCASH | D171: MUNICIPALIDAD DISTRITAL DE SAN MARCOS | E171: 29179.01615 | F171: 395181.0481 | G171: 1324176.393 | I171: 2.203559609 | J171: Si Cumple | L171: 139031.8145 | M171: 24470.40585 | N171: 114561.4087 | O171: Si Cumple
A172: 164 | B172: 021015 | C172: ANCASH | D172: MUNICIPALIDAD DISTRITAL DE SAN PEDRO DE CHANA | E172: 6638.21492 | F172: 17591.27767 | G172: 54656.28513 | I172: 12.14538256 | J172: Si Cumple | L172: 5813.12447 | M172: 2085.17069 | N172: 3727.95378 | O172: Si Cumple
A173: 165 | B173: 021016 | C173: ANCASH | D173: MUNICIPALIDAD DISTRITAL DE UCO | E173: 162.31836 | F173: 8948.675877 | G173: 27310.19441 | I173: 0.5943508038 | J173: Si Cumple | L173: 2566.41822 | M173: 910.46207 | N173: 1655.95615 | O173: Si Cumple
A174: 166 | B174: 021101 | C174: ANCASH | D174: MUNICIPALIDAD PROVINCIAL DE HUARMEY | E174: 5670.99189 | F174: 44856.91353 | G174: 77004.85841 | I174: 7.364459863 | J174: Si Cumple | L174: 16484.55159 | M174: 9412.24102 | N174: 7072.31057 | O174: Si Cumple
A175: 167 | B175: 021102 | C175: ANCASH | D175: MUNICIPALIDAD DISTRITAL DE COCHAPETI | E175: 172.26676 | F175: 2018.243172 | G175: 3984.84667 | I175: 4.323046136 | J175: Si Cumple | L175: 491.57749 | M175: 392.5727 | N175: 99.00479 | O175: Si Cumple
A176: 168 | B176: 021103 | C176: ANCASH | D176: MUNICIPALIDAD DISTRITAL DE CULEBRAS | E176: 2329.58558 | F176: 4443.93649 | G176: 9281.56052 | I176: 25.09907224 | J176: Si Cumple | L176: 1722.99835 | M176: 1131.26144 | N176: 591.73691 | O176: Si Cumple
A177: 169 | B177: 021104 | C177: ANCASH | D177: MUNICIPALIDAD DISTRITAL DE HUAYAN | E177: 94.85329 | F177: 1440.99461 | G177: 1993.98318 | I177: 4.756975432 | J177: Si Cumple | L177: 301.51276 | M177: 360.02016 | N177: -58.5074 | O177: No Cumple
A178: 170 | B178: 021105 | C178: ANCASH | D178: MUNICIPALIDAD DISTRITAL DE MALVAS | E178: 91.7453 | F178: 1672.843025 | G178: 2522.35797 | I178: 3.637283093 | J178: Si Cumple | L178: 370.64084 | M178: 323.3295 | N178: 47.31134 | O178: Si Cumple
A179: 171 | B179: 021201 | C179: ANCASH | D179: MUNICIPALIDAD PROVINCIAL DE HUAYLAS - CARAZ | E179: 4393.17818 | F179: 35067.4224 | G179: 47883.85111 | I179: 9.174655083 | J179: Si Cumple | L179: 13862.49071 | M179: 7999.74997 | N179: 5862.74074 | O179: Si Cumple
A180: 172 | B180: 021202 | C180: ANCASH | D180: MUNICIPALIDAD DISTRITAL DE HUALLANCA | E180: 283.29709 | F180: 3476.248285 | G180: 1772.20506 | I180: 8.149506789 | J180: Si Cumple | L180: 1436.03888 | M180: 867.63493 | N180: 568.40395 | O180: Si Cumple
A181: 173 | B181: 021203 | C181: ANCASH | D181: MUNICIPALIDAD DISTRITAL DE HUATA | E181: 281.25267 | F181: 2239.918443 | G181: 3881.40549 | I181: 7.24615531 | J181: Si Cumple | L181: 695.242 | M181: 480.67099 | N181: 214.57101 | O181: Si Cumple
A182: 174 | B182: 021204 | C182: ANCASH | D182: MUNICIPALIDAD DISTRITAL DE HUAYLAS | E182: 461.39104 | F182: 1839.808268 | G182: 2767.37847 | I182: 16.67249511 | J182: Si Cumple | L182: 688.95843 | M182: 473.63462 | N182: 215.32381 | O182: Si Cumple
A183: 175 | B183: 021205 | C183: ANCASH | D183: MUNICIPALIDAD DISTRITAL DE MATO | E183: 381.95967 | F183: 2519.096853 | G183: 3207.98369 | I183: 11.90653404 | J183: Si Cumple | L183: 508.49824 | M183: 562.9541 | N183: -54.45586 | O183: No Cumple
A184: 176 | B184: 021206 | C184: ANCASH | D184: MUNICIPALIDAD DISTRITAL DE PAMPAROMAS | E184: 113.74175 | F184: 9874.445868 | G184: 19707.7176 | I184: 0.5771431898 | J184: Si Cumple | L184: 3245.50321 | M184: 1986.54644 | N184: 1258.95677 | O184: Si Cumple
A185: 177 | B185: 021207 | C185: ANCASH | D185: MUNICIPALIDAD DISTRITAL DE PUEBLO LIBRE | E185: 1454.08196 | F185: 9790.930508 | G185: 23083.01218 | I185: 6.29935967 | J185: Si Cumple | L185: 3118.16479 | M185: 1821.89864 | N185: 1296.26615 | O185: Si Cumple
A186: 178 | B186: 021208 | C186: ANCASH | D186: MUNICIPALIDAD DISTRITAL DE SANTA CRUZ | E186: 1711.96206 | F186: 6581.973273 | G186: 12241.20072 | I186: 13.98524621 | J186: Si Cumple | L186: 1882.13186 | M186: 1470.0707 | N186: 412.06116 | O186: Si Cumple
A187: 179 | B187: 021209 | C187: ANCASH | D187: MUNICIPALIDAD DISTRITAL DE SANTO TORIBIO | E187: 268.71996 | F187: 2407.209528 | G187: 2297.53153 | I187: 11.16313129 | J187: Si Cumple | L187: 512.8101 | M187: 324.45735 | N187: 188.35275 | O187: Si Cumple
A188: 180 | B188: 021210 | C188: ANCASH | D188: MUNICIPALIDAD DISTRITAL DE YURACMARCA | E188: 310.55972 | F188: 7036.627818 | G188: 5641.6946 | I188: 4.413473727 | J188: Si Cumple | L188: 1039.4443 | M188: 1062.7494 | N188: -23.3051 | O188: No Cumple
A189: 181 | B189: 021301 | C189: ANCASH | D189: MUNICIPALIDAD PROVINCIAL DE MARISCAL LUZURIAGA - PISCOBAMBA | E189: 3291.30782 | F189: 15655.11131 | G189: 10770.21246 | I189: 21.02385448 | J189: Si Cumple | L189: 2420.50339 | M189: 1879.80533 | N189: 540.69806 | O189: Si Cumple
A190: 182 | B190: 021302 | C190: ANCASH | D190: MUNICIPALIDAD DISTRITAL DE CASCA | E190: 173.03826 | F190: 10023.88979 | G190: 25440.06317 | I190: 0.6801801507 | J190: Si Cumple | L190: 3884.72824 | M190: 1004.6222 | N190: 2880.10604 | O190: Si Cumple
A191: 183 | B191: 021303 | C191: ANCASH | D191: MUNICIPALIDAD DISTRITAL DE ELEAZAR GUZMAN BARRON | E191: 164.35811 | F191: 2468.54354 | G191: 5261.43503 | I191: 3.123826657 | J191: Si Cumple | L191: 666.684 | M191: 712.60123 | N191: -45.91723 | O191: No Cumple
A192: 184 | B192: 021304 | C192: ANCASH | D192: MUNICIPALIDAD DISTRITAL DE FIDEL OLIVAS ESCUDERO | E192: 140.03643 | F192: 3812.753383 | G192: 7696.0469 | I192: 1.819589093 | J192: Si Cumple | L192: 1008.41103 | M192: 924.54926 | N192: 83.86177 | O192: Si Cumple
A193: 185 | B193: 021305 | C193: ANCASH | D193: MUNICIPALIDAD DISTRITAL DE LLAMA | E193: 286.65032 | F193: 2450.082148 | G193: 5468.87849 | I193: 5.241482701 | J193: Si Cumple | L193: 630.92688 | M193: 436.43149 | N193: 194.49539 | O193: Si Cumple
A194: 186 | B194: 021306 | C194: ANCASH | D194: MUNICIPALIDAD DISTRITAL DE LLUMPA | E194: 1172.35727 | F194: 9675.720458 | G194: 21346.7163 | I194: 5.491979439 | J194: Si Cumple | L194: 4135.45916 | M194: 2235.1765 | N194: 1900.28266 | O194: Si Cumple
A195: 187 | B195: 021307 | C195: ANCASH | D195: MUNICIPALIDAD DISTRITAL DE LUCMA | E195: 241.13934 | F195: 4490.235317 | G195: 8205.64469 | I195: 2.938700725 | J195: Si Cumple | L195: 1697.39983 | M195: 1223.27245 | N195: 474.12738 | O195: Si Cumple
A196: 188 | B196: 021308 | C196: ANCASH | D196: MUNICIPALIDAD DISTRITAL DE MUSGA | E196: 85.82113 | F196: 2573.311552 | G196: 5427.56557 | I196: 1.581208534 | J196: Si Cumple | L196: 777.81298 | M196: 409.51189 | N196: 368.30109 | O196: Si Cumple
A197: 189 | B197: 021401 | C197: ANCASH | D197: MUNICIPALIDAD PROVINCIAL DE OCROS | E197: 326.8365 | F197: 9944.453925 | G197: 3473.63616 | I197: 3.286620889 | J197: Si Cumple | L197: 1222.12934 | M197: 1202.26307 | N197: 19.86627 | O197: Si Cumple
A198: 190 | B198: 021402 | C198: ANCASH | D198: MUNICIPALIDAD DISTRITAL DE ACAS | E198: 99.32227 | F198: 1690.56608 | G198: 3231.50196 | I198: 3.073563663 | J198: Si Cumple | L198: 428.29045 | M198: 364.75457 | N198: 63.53588 | O198: Si Cumple
A199: 191 | B199: 021403 | C199: ANCASH | D199: MUNICIPALIDAD DISTRITAL DE CAJAMARQUILLA | E199: 105.27716 | F199: 1208.8684 | G199: 1074.8916 | I199: 8.708736203 | J199: Si Cumple | L199: 381.66269 | M199: 260.29389 | N199: 121.3688 | O199: Si Cumple
A200: 192 | B200: 021404 | C200: ANCASH | D200: MUNICIPALIDAD DISTRITAL DE CARHUAPAMPA | E200: 93.01535 | F200: 1350.394207 | G200: 904.17489 | I200: 6.888014587 | J200: Si Cumple | L200: 384.05482 | M200: 315.40051 | N200: 68.65431 | O200: Si Cumple
A201: 193 | B201: 021405 | C201: ANCASH | D201: MUNICIPALIDAD DISTRITAL DE COCHAS | E201: 380.48307 | F201: 3090.184218 | G201: 6267.68148 | I201: 6.070555296 | J201: Si Cumple | L201: 842.91201 | M201: 646.59646 | N201: 196.31555 | O201: Si Cumple
A202: 194 | B202: 021406 | C202: ANCASH | D202: MUNICIPALIDAD DISTRITAL DE CONGAS | E202: 69.45686 | F202: 2671.645423 | G202: 6256.23785 | I202: 1.110201717 | J202: Si Cumple | L202: 825.28307 | M202: 409.01504 | N202: 416.26803 | O202: Si Cumple
... 1704 more rows

Sheet DPTO (hidden)
A1: -------------------- | B1: CODI_DEP | C1: DESC_DEP
A2: 01:AMAZONAS | B2: 01 | C2: AMAZONAS
A3: 02:ANCASH | B3: 02 | C3: ANCASH
A4: 03:APURIMAC | B4: 03 | C4: APURIMAC
A5: 04:AREQUIPA | B5: 04 | C5: AREQUIPA
A6: 05:AYACUCHO | B6: 05 | C6: AYACUCHO
A7: 06:CAJAMARCA | B7: 06 | C7: CAJAMARCA
A8: 07:PROV CONSTIT DEL CALLAO | B8: 07 | C8: PROV CONSTIT DEL CALLAO
A9: 08:CUSCO | B9: 08 | C9: CUSCO
A10: 09:HUANCAVELICA | B10: 09 | C10: HUANCAVELICA
A11: 10:HUANUCO | B11: 10 | C11: HUANUCO
A12: 11:ICA | B12: 11 | C12: ICA
A13: 12:JUNIN | B13: 12 | C13: JUNIN
A14: 13:LA LIBERTAD | B14: 13 | C14: LA LIBERTAD
A15: 14:LAMBAYEQUE | B15: 14 | C15: LAMBAYEQUE
A16: 15:LIMA | B16: 15 | C16: LIMA
A17: 16:LORETO | B17: 16 | C17: LORETO
A18: 17:MADRE DE DIOS | B18: 17 | C18: MADRE DE DIOS
A19: 18:MOQUEGUA | B19: 18 | C19: MOQUEGUA
A20: 19:PASCO | B20: 19 | C20: PASCO
A21: 20:PIURA | B21: 20 | C21: PIURA
A22: 21:PUNO | B22: 21 | C22: PUNO
A23: 22:SAN MARTIN | B23: 22 | C23: SAN MARTIN
A24: 23:TACNA | B24: 23 | C24: TACNA
A25: 24:TUMBES | B25: 24 | C25: TUMBES
A26: 25:UCAYALI | B26: 25 | C26: UCAYALI

Sheet PROV (hidden)
A1: PROV | B1: CODI_DEP | C1: CODI_PRO | D1: DESC_PRO
A2: 0101:CHACHAPOYAS | B2: 01 | C2: 01 | D2: CHACHAPOYAS
A3: 0102:BAGUA | B3: 01 | C3: 02 | D3: BAGUA
A4: 0103:BONGARA | B4: 01 | C4: 03 | D4: BONGARA
A5: 0104:CONDORCANQUI | B5: 01 | C5: 04 | D5: CONDORCANQUI
A6: 0105:LUYA | B6: 01 | C6: 05 | D6: LUYA
A7: 0106:RODRIGUEZ DE MENDOZA | B7: 01 | C7: 06 | D7: RODRIGUEZ DE MENDOZA
A8: 0107:UCTUBAMBA | B8: 01 | C8: 07 | D8: UCTUBAMBA
A9: 0201:HUARAZ | B9: 02 | C9: 01 | D9: HUARAZ
A10: 0202:AIJA | B10: 02 | C10: 02 | D10: AIJA
A11: 0203:ANTONIO RAIMONDI | B11: 02 | C11: 03 | D11: ANTONIO RAIMONDI
A12: 0204:ASUNCION | B12: 02 | C12: 04 | D12: ASUNCION
A13: 0205:BOLOGNESI | B13: 02 | C13: 05 | D13: BOLOGNESI
A14: 0206:CARHUAZ | B14: 02 | C14: 06 | D14: CARHUAZ
A15: 0207:CARLOS FERMIN FITZCARRALD | B15: 02 | C15: 07 | D15: CARLOS FERMIN FITZCARRALD
A16: 0208:CASMA | B16: 02 | C16: 08 | D16: CASMA
A17: 0209:CORONGO | B17: 02 | C17: 09 | D17: CORONGO
A18: 0210:HUARI | B18: 02 | C18: 10 | D18: HUARI
A19: 0211:HUARMEY | B19: 02 | C19: 11 | D19: HUARMEY
A20: 0212:HUAYLAS | B20: 02 | C20: 12 | D20: HUAYLAS
A21: 0213:MARISCAL LUZURIAGA | B21: 02 | C21: 13 | D21: MARISCAL LUZURIAGA
A22: 0214:OCROS | B22: 02 | C22: 14 | D22: OCROS
A23: 0215:PALLASCA | B23: 02 | C23: 15 | D23: PALLASCA
A24: 0216:POMABAMBA | B24: 02 | C24: 16 | D24: POMABAMBA
A25: 0217:RECUAY | B25: 02 | C25: 17 | D25: RECUAY
A26: 0218:SANTA | B26: 02 | C26: 18 | D26: SANTA
A27: 0219:SIHUAS | B27: 02 | C27: 19 | D27: SIHUAS
A28: 0220:YUNGAY | B28: 02 | C28: 20 | D28: YUNGAY
A29: 0301:ABANCAY | B29: 03 | C29: 01 | D29: ABANCAY
A30: 0302:ANDAHUAYLAS | B30: 03 | C30: 02 | D30: ANDAHUAYLAS
A31: 0303:ANTABAMBA | B31: 03 | C31: 03 | D31: ANTABAMBA
A32: 0304:AYMARAES | B32: 03 | C32: 04 | D32: AYMARAES
A33: 0305:COTABAMBA | B33: 03 | C33: 05 | D33: COTABAMBA
A34: 0306:CHINCHEROS | B34: 03 | C34: 06 | D34: CHINCHEROS
A35: 0307:GRAU | B35: 03 | C35: 07 | D35: GRAU
A36: 0401:AREQUIPA | B36: 04 | C36: 01 | D36: AREQUIPA
A37: 0402:CAMANA | B37: 04 | C37: 02 | D37: CAMANA
A38: 0403:CARAVELI | B38: 04 | C38: 03 | D38: CARAVELI
A39: 0404:CASTILLA | B39: 04 | C39: 04 | D39: CASTILLA
A40: 0405:CAYLLOMA | B40: 04 | C40: 05 | D40: CAYLLOMA
A41: 0406:CONDESUYOS | B41: 04 | C41: 06 | D41: CONDESUYOS
A42: 0407:ISLAY | B42: 04 | C42: 07 | D42: ISLAY
A43: 0408:LA UNION | B43: 04 | C43: 08 | D43: LA UNION
A44: 0501:HUAMANGA | B44: 05 | C44: 01 | D44: HUAMANGA
A45: 0502:CANGALLO | B45: 05 | C45: 02 | D45: CANGALLO
A46: 0503:HUANCA SANCOS | B46: 05 | C46: 03 | D46: HUANCA SANCOS
A47: 0504:HUANTA | B47: 05 | C47: 04 | D47: HUANTA
A48: 0505:LA MAR | B48: 05 | C48: 05 | D48: LA MAR
A49: 0506:LUCANAS | B49: 05 | C49: 06 | D49: LUCANAS
A50: 0507:PARINACOCHAS | B50: 05 | C50: 07 | D50: PARINACOCHAS
A51: 0508:PAUCAR DEL SARA SARA | B51: 05 | C51: 08 | D51: PAUCAR DEL SARA SARA
A52: 0509:SUCRE | B52: 05 | C52: 09 | D52: SUCRE
A53: 0510:VICTOR FAJARDO | B53: 05 | C53: 10 | D53: VICTOR FAJARDO
A54: 0511:VILCASHUAMAN | B54: 05 | C54: 11 | D54: VILCASHUAMAN
A55: 0601:CAJAMARCA | B55: 06 | C55: 01 | D55: CAJAMARCA
A56: 0602:CAJABAMBA | B56: 06 | C56: 02 | D56: CAJABAMBA
A57: 0603:CELENDIN | B57: 06 | C57: 03 | D57: CELENDIN
A58: 0604:CHOTA | B58: 06 | C58: 04 | D58: CHOTA
A59: 0605:CONTUMAZA | B59: 06 | C59: 05 | D59: CONTUMAZA
A60: 0606:CUTERVO | B60: 06 | C60: 06 | D60: CUTERVO
A61: 0607:HUALGAYOC | B61: 06 | C61: 07 | D61: HUALGAYOC
A62: 0608:JAEN | B62: 06 | C62: 08 | D62: JAEN
A63: 0609:SAN IGNACIO | B63: 06 | C63: 09 | D63: SAN IGNACIO
A64: 0610:SAN MARCOS | B64: 06 | C64: 10 | D64: SAN MARCOS
A65: 0611:SAN MIGUEL | B65: 06 | C65: 11 | D65: SAN MIGUEL
A66: 0612:SAN PABLO | B66: 06 | C66: 12 | D66: SAN PABLO
A67: 0613:SANTA CRUZ | B67: 06 | C67: 13 | D67: SANTA CRUZ
A68: 0701:PROV. CALLAO | B68: 07 | C68: 01 | D68: PROV. CALLAO
A69: 0801:CUSCO | B69: 08 | C69: 01 | D69: CUSCO
A70: 0802:ACOMAYO | B70: 08 | C70: 02 | D70: ACOMAYO
A71: 0803:ANTA | B71: 08 | C71: 03 | D71: ANTA
A72: 0804:CALCA | B72: 08 | C72: 04 | D72: CALCA
A73: 0805:CANAS | B73: 08 | C73: 05 | D73: CANAS
A74: 0806:CANCHIS | B74: 08 | C74: 06 | D74: CANCHIS
A75: 0807:CHUMBIVILCAS | B75: 08 | C75: 07 | D75: CHUMBIVILCAS
A76: 0808:ESPINAR | B76: 08 | C76: 08 | D76: ESPINAR
A77: 0809:LA CONVENCION | B77: 08 | C77: 09 | D77: LA CONVENCION
A78: 0810:PARURO | B78: 08 | C78: 10 | D78: PARURO
A79: 0811:PAUCARTAMBO | B79: 08 | C79: 11 | D79: PAUCARTAMBO
A80: 0812:QUISPICANCHIS | B80: 08 | C80: 12 | D80: QUISPICANCHIS
A81: 0813:URUBAMBA | B81: 08 | C81: 13 | D81: URUBAMBA
A82: 0901:HUANCAVELICA | B82: 09 | C82: 01 | D82: HUANCAVELICA
A83: 0902:ACOBAMBA | B83: 09 | C83: 02 | D83: ACOBAMBA
A84: 0903:ANGARAES | B84: 09 | C84: 03 | D84: ANGARAES
A85: 0904:CASTROVIRREYNA | B85: 09 | C85: 04 | D85: CASTROVIRREYNA
A86: 0905:CHURCAMPA | B86: 09 | C86: 05 | D86: CHURCAMPA
A87: 0906:HUAYTARA | B87: 09 | C87: 06 | D87: HUAYTARA
A88: 0907:TAYACAJA | B88: 09 | C88: 07 | D88: TAYACAJA
A89: 1001:HUANUCO | B89: 10 | C89: 01 | D89: HUANUCO
A90: 1002:AMBO | B90: 10 | C90: 02 | D90: AMBO
A91: 1003:DOS DE MAYO | B91: 10 | C91: 03 | D91: DOS DE MAYO
A92: 1004:HUACAYBAMBA | B92: 10 | C92: 04 | D92: HUACAYBAMBA
A93: 1005:HUAMALIES | B93: 10 | C93: 05 | D93: HUAMALIES
A94: 1006:LEONCIO PRADO | B94: 10 | C94: 06 | D94: LEONCIO PRADO
A95: 1007:MARANON | B95: 10 | C95: 07 | D95: MARANON
A96: 1008:PACHITEA | B96: 10 | C96: 08 | D96: PACHITEA
A97: 1009:PUERTO INCA | B97: 10 | C97: 09 | D97: PUERTO INCA
A98: 1010:LAURICOCHA | B98: 10 | C98: 10 | D98: LAURICOCHA
A99: 1011:YAROWILCA | B99: 10 | C99: 11 | D99: YAROWILCA
A100: 1101:ICA | B100: 11 | C100: 01 | D100: ICA
A101: 1102:CHINCHA | B101: 11 | C101: 02 | D101: CHINCHA
A102: 1103:NAZCA | B102: 11 | C102: 03 | D102: NAZCA
A103: 1104:PALPA | B103: 11 | C103: 04 | D103: PALPA
A104: 1105:PISCO | B104: 11 | C104: 05 | D104: PISCO
A105: 1201:HUANCAYO | B105: 12 | C105: 01 | D105: HUANCAYO
A106: 1202:CONCEPCION | B106: 12 | C106: 02 | D106: CONCEPCION
A107: 1203:CHANCHAMAYO | B107: 12 | C107: 03 | D107: CHANCHAMAYO
A108: 1204:JAUJA | B108: 12 | C108: 04 | D108: JAUJA
A109: 1205:JUNIN | B109: 12 | C109: 05 | D109: JUNIN
A110: 1206:SATIPO | B110: 12 | C110: 06 | D110: SATIPO
A111: 1207:TARMA | B111: 12 | C111: 07 | D111: TARMA
A112: 1208:YAULI | B112: 12 | C112: 08 | D112: YAULI
A113: 1209:CHUPACA | B113: 12 | C113: 09 | D113: CHUPACA
A114: 1301:TRUJILLO | B114: 13 | C114: 01 | D114: TRUJILLO
A115: 1302:ASCOPE | B115: 13 | C115: 02 | D115: ASCOPE
A116: 1303:BOLIVAR | B116: 13 | C116: 03 | D116: BOLIVAR
A117: 1304:CHEPEN | B117: 13 | C117: 04 | D117: CHEPEN
A118: 1305:JULCAN | B118: 13 | C118: 05 | D118: JULCAN
A119: 1306:OTUZCO | B119: 13 | C119: 06 | D119: OTUZCO
A120: 1307:PACASMAYO | B120: 13 | C120: 07 | D120: PACASMAYO
A121: 1308:PATAZ | B121: 13 | C121: 08 | D121: PATAZ
A122: 1309:SANCHEZ CARRION | B122: 13 | C122: 09 | D122: SANCHEZ CARRION
A123: 1310:SANTIAGO DE CHUCO | B123: 13 | C123: 10 | D123: SANTIAGO DE CHUCO
A124: 1311:GRAN CHIMU | B124: 13 | C124: 11 | D124: GRAN CHIMU
A125: 1312:VIRU | B125: 13 | C125: 12 | D125: VIRU
A126: 1401:CHICLAYO | B126: 14 | C126: 01 | D126: CHICLAYO
A127: 1402:FERRENAFE | B127: 14 | C127: 02 | D127: FERRENAFE
A128: 1403:LAMBAYEQUE | B128: 14 | C128: 03 | D128: LAMBAYEQUE
A129: 1501:LIMA | B129: 15 | C129: 01 | D129: LIMA
A130: 1502:BARRANCA | B130: 15 | C130: 02 | D130: BARRANCA
A131: 1503:CAJATAMBO | B131: 15 | C131: 03 | D131: CAJATAMBO
A132: 1504:CANTA | B132: 15 | C132: 04 | D132: CANTA
A133: 1505:CAÑETE | B133: 15 | C133: 05 | D133: CAÑETE
A134: 1506:HUARAL | B134: 15 | C134: 06 | D134: HUARAL
A135: 1507:HUAROCHIRI | B135: 15 | C135: 07 | D135: HUAROCHIRI
A136: 1508:HUAURA | B136: 15 | C136: 08 | D136: HUAURA
A137: 1509:OYON | B137: 15 | C137: 09 | D137: OYON
A138: 1510:YAUYOS | B138: 15 | C138: 10 | D138: YAUYOS
A139: 1601:MAYNAS | B139: 16 | C139: 01 | D139: MAYNAS
A140: 1602:ALTO AMAZONAS | B140: 16 | C140: 02 | D140: ALTO AMAZONAS
A141: 1603:LORETO | B141: 16 | C141: 03 | D141: LORETO
A142: 1604:RAMON CASTILLA | B142: 16 | C142: 04 | D142: RAMON CASTILLA
A143: 1605:REQUENA | B143: 16 | C143: 05 | D143: REQUENA
A144: 1606:UCAYALI | B144: 16 | C144: 06 | D144: UCAYALI
A145: 1607:DATEM DEL MARAÑON | B145: 16 | C145: 07 | D145: DATEM DEL MARAÑON
A146: 1608:PUTUMAYO | B146: 16 | C146: 08 | D146: PUTUMAYO
A147: 1701:TAMBOPATA | B147: 17 | C147: 01 | D147: TAMBOPATA
A148: 1702:MANU | B148: 17 | C148: 02 | D148: MANU
A149: 1703:TAHUAMANU | B149: 17 | C149: 03 | D149: TAHUAMANU
A150: 1801:MARISCAL NIETO | B150: 18 | C150: 01 | D150: MARISCAL NIETO
A151: 1802:GENERAL SANCHEZ CERRO | B151: 18 | C151: 02 | D151: GENERAL SANCHEZ CERRO
A152: 1803:ILO | B152: 18 | C152: 03 | D152: ILO
A153: 1901:PASCO | B153: 19 | C153: 01 | D153: PASCO
A154: 1902:DANIEL A. CARRION | B154: 19 | C154: 02 | D154: DANIEL A. CARRION
A155: 1903:OXAPAMPA | B155: 19 | C155: 03 | D155: OXAPAMPA
A156: 2001:PIURA | B156: 20 | C156: 01 | D156: PIURA
A157: 2002:AYABACA | B157: 20 | C157: 02 | D157: AYABACA
A158: 2003:HUANCABAMBA | B158: 20 | C158: 03 | D158: HUANCABAMBA
A159: 2004:MORROPON | B159: 20 | C159: 04 | D159: MORROPON
A160: 2005:PAITA | B160: 20 | C160: 05 | D160: PAITA
A161: 2006:SULLANA | B161: 20 | C161: 06 | D161: SULLANA
A162: 2007:TALARA | B162: 20 | C162: 07 | D162: TALARA
A163: 2008:SECHURA | B163: 20 | C163: 08 | D163: SECHURA
A164: 2101:PUNO | B164: 21 | C164: 01 | D164: PUNO
A165: 2102:AZANGARO | B165: 21 | C165: 02 | D165: AZANGARO
A166: 2103:CARABAYA | B166: 21 | C166: 03 | D166: CARABAYA
A167: 2104:CHUCUITO | B167: 21 | C167: 04 | D167: CHUCUITO
A168: 2105:EL COLLAO | B168: 21 | C168: 05 | D168: EL COLLAO
A169: 2106:HUANCANE | B169: 21 | C169: 06 | D169: HUANCANE
A170: 2107:LAMPA | B170: 21 | C170: 07 | D170: LAMPA
A171: 2108:MELGAR | B171: 21 | C171: 08 | D171: MELGAR
A172: 2109:MOHO | B172: 21 | C172: 09 | D172: MOHO
A173: 2110:SAN ANTONIO DE PUTINA | B173: 21 | C173: 10 | D173: SAN ANTONIO DE PUTINA
A174: 2111:SAN ROMAN | B174: 21 | C174: 11 | D174: SAN ROMAN
A175: 2112:SANDIA | B175: 21 | C175: 12 | D175: SANDIA
A176: 2113:YUNGUYO | B176: 21 | C176: 13 | D176: YUNGUYO
A177: 2201:MOYOBAMBA | B177: 22 | C177: 01 | D177: MOYOBAMBA
A178: 2202:BELLAVISTA | B178: 22 | C178: 02 | D178: BELLAVISTA
A179: 2203:EL DORADO | B179: 22 | C179: 03 | D179: EL DORADO
A180: 2204:HUALLAGA | B180: 22 | C180: 04 | D180: HUALLAGA
A181: 2205:LAMAS | B181: 22 | C181: 05 | D181: LAMAS
A182: 2206:MARISCAL CACERES | B182: 22 | C182: 06 | D182: MARISCAL CACERES
A183: 2207:PICOTA | B183: 22 | C183: 07 | D183: PICOTA
A184: 2208:RIOJA | B184: 22 | C184: 08 | D184: RIOJA
A185: 2209:SAN MARTIN | B185: 22 | C185: 09 | D185: SAN MARTIN
A186: 2210:TOCACHE | B186: 22 | C186: 10 | D186: TOCACHE
A187: 2301:TACNA | B187: 23 | C187: 01 | D187: TACNA
A188: 2302:CANDARAVE | B188: 23 | C188: 02 | D188: CANDARAVE
A189: 2303:JORGE BASADRE | B189: 23 | C189: 03 | D189: JORGE BASADRE
A190: 2304:TARATA | B190: 23 | C190: 04 | D190: TARATA
A191: 2401:TUMBES | B191: 24 | C191: 01 | D191: TUMBES
A192: 2402:CONTRALMIRANTE VILLAR | B192: 24 | C192: 02 | D192: CONTRALMIRANTE VILLAR
A193: 2403:ZARUMILLA | B193: 24 | C193: 03 | D193: ZARUMILLA
A194: 2501:CORONEL PORTILLO | B194: 25 | C194: 01 | D194: CORONEL PORTILLO
A195: 2502:ATALAYA | B195: 25 | C195: 02 | D195: ATALAYA
A196: 2503:PADRE ABAD | B196: 25 | C196: 03 | D196: PADRE ABAD
A197: 2504:PURUS | B197: 25 | C197: 04 | D197: PURUS

Sheet ENTIDAD (hidden)
A1: ENTIDADES
A2: 010000 : GOBIERNO REGIONAL DE AMAZONAS
A3: 020000 : GOBIERNO REGIONAL DE ANCASH
A4: 030000 : GOBIERNO REGIONAL DE APURIMAC
A5: 040000 : GOBIERNO REGIONAL DE AREQUIPA
A6: 050000 : GOBIERNO REGIONAL DE AYACUCHO
A7: 060000 : GOBIERNO REGIONAL DE CAJAMARCA
A8: 070000 : GOBIERNO REGIONAL DEL CALLAO
A9: 080000 : GOBIERNO REGIONAL DE CUSCO
A10: 090000 : GOBIERNO REGIONAL DE HUANCAVELICA
A11: 100000 : GOBIERNO REGIONAL DE HUANUCO
A12: 110000 : GOBIERNO REGIONAL DE ICA
A13: 120000 : GOBIERNO REGIONAL DE JUNIN
A14: 130000 : GOBIERNO REGIONAL DE LA LIBERTAD
A15: 140000 : GOBIERNO REGIONAL DE LAMBAYEQUE
A16: 150000 : GOBIERNO REGIONAL DE LIMA
A17: 160000 : GOBIERNO REGIONAL DE LORETO
A18: 170000 : GOBIERNO REGIONAL DE MADRE DE DIOS
A19: 180000 : GOBIERNO REGIONAL DE MOQUEGUA
A20: 190000 : GOBIERNO REGIONAL DE PASCO
A21: 200000 : GOBIERNO REGIONAL DE PIURA
A22: 210000 : GOBIERNO REGIONAL DE PUNO
A23: 220000 : GOBIERNO REGIONAL DE SAN MARTIN
A24: 230000 : GOBIERNO REGIONAL DE TACNA
A25: 240000 : GOBIERNO REGIONAL DE TUMBES
A26: 250000 : GOBIERNO REGIONAL DE UCAYALI
A27: 260000 : REGION LIMA METROPOLITANA
A28: 010101 : MP DE CHACHAPOYAS
A29: 010102 : MD DE ASUNCION
A30: 010103 : MD DE BALSAS
A31: 010104 : MD DE CHETO
A32: 010105 : MD DE CHILIQUIN
A33: 010106 : MD DE CHUQUIBAMBA
A34: 010107 : MD DE GRANADA
A35: 010108 : MD DE HUANCAS
A36: 010109 : MD DE JALCA GRANDE
A37: 010110 : MD DE LEIMEBAMBA
A38: 010111 : MD DE LEVANTO
A39: 010112 : MD DE MAGDALENA
A40: 010113 : MD DE MARISCAL CASTILLA
A41: 010114 : MD DE MOLINOPAMPA
A42: 010115 : MD DE MONTEVIDEO
A43: 010116 : MD DE OLLEROS
A44: 010117 : MD DE QUINJALCA
A45: 010118 : MD DE SAN FRANCISCO DE DAGUAS
A46: 010119 : MD DE SAN ISIDRO DE MAYNO
A47: 010120 : MD DE SOLOCO
A48: 010121 : MD DE SONCHE
A49: 010201 : MP DE BAGUA - LA PECA
A50: 010202 : MD DE ARAMANGO
A51: 010203 : MD DE COPALLIN
A52: 010204 : MD DE EL PARCO
A53: 010205 : MD DE IMAZA
A54: 010206 : MD DE LA PECA
A55: 010301 : MP DE BONGARA - JUMBILLA
A56: 010302 : MD DE CHISQUILLA
A57: 010303 : MD DE CHURUJA
A58: 010304 : MD DE COROSHA
A59: 010305 : MD DE CUISPES
A60: 010306 : MD DE FLORIDA
A61: 010307 : MD DE JAZAN
A62: 010308 : MD DE RECTA
A63: 010309 : MD DE SAN CARLOS
A64: 010310 : MD DE SHIPASBAMBA
A65: 010311 : MD DE VALERA
A66: 010312 : MD DE YAMBRASBAMBA
A67: 010401 : MP DE CONDORCANQUI - NIEVA
A68: 010402 : MD DE EL CENEPA
A69: 010403 : MD DE RIO SANTIAGO
A70: 010501 : MP DE LUYA - LAMUD
A71: 010502 : MD DE CAMPORREDONDO
A72: 010503 : MD DE COCABAMBA
A73: 010504 : MD DE COLCAMAR
A74: 010505 : MD DE CONILA
A75: 010506 : MD DE INGUILPATA
A76: 010507 : MD DE LONGUITA
A77: 010508 : MD DE LONYA CHICO
A78: 010509 : MD DE LUYA
A79: 010510 : MD DE LUYA VIEJO
A80: 010511 : MD DE MARIA
A81: 010512 : MD DE OCALLI
A82: 010513 : MD DE OCUMAL
A83: 010514 : MD DE PIZUQUIA
A84: 010515 : MD DE PROVIDENCIA
A85: 010516 : MD DE SAN CRISTOBAL DE OLTO
A86: 010517 : MD DE SAN FRANCISCO DE YESO
A87: 010518 : MD DE SAN JERONIMO DE PACLAS
A88: 010519 : MD DE SAN JUAN DE LOPECANCHA
A89: 010520 : MD DE SANTA CATALINA
A90: 010521 : MD DE SANTO TOMAS
A91: 010522 : MD DE TINGO
A92: 010523 : MD DE TRITA
A93: 010601 : MP DE RODRIGUEZ DE MENDOZA - SAN NICOLAS
A94: 010602 : MD DE CHIRIMOTO
A95: 010603 : MD DE COCHAMAL
A96: 010604 : MD DE HUAMBO
A97: 010605 : MD DE LIMABAMBA
A98: 010606 : MD DE LONGAR
A99: 010607 : MD DE MARISCAL BENAVIDES
A100: 010608 : MD DE MILPUC
A101: 010609 : MD DE OMIA
A102: 010610 : MD DE SANTA ROSA
A103: 010611 : MD DE TOTORA
A104: 010612 : MD DE VISTA ALEGRE
A105: 010701 : MP DE UTCUBAMBA - BAGUA GRANDE
A106: 010702 : MD DE CAJARURO
A107: 010703 : MD DE CUMBA
A108: 010704 : MD DE EL MILAGRO
A109: 010705 : MD DE JAMALCA
A110: 010706 : MD DE LONYA GRANDE
A111: 010707 : MD DE YAMON
A112: 020101 : MP DE HUARAZ
A113: 020102 : MD DE COCHABAMBA
A114: 020103 : MD DE COLCABAMBA
A115: 020104 : MD DE HUANCHAY
A116: 020105 : MD DE INDEPENDENCIA
A117: 020106 : MD DE JANGAS
A118: 020107 : MD DE LA LIBERTAD
A119: 020108 : MD DE OLLEROS
A120: 020109 : MD DE PAMPAS
A121: 020110 : MD DE PARIACOTO
A122: 020111 : MD DE PIRA
A123: 020112 : MD DE TARICA
A124: 020201 : MP DE AIJA
A125: 020202 : MD DE CORIS
A126: 020203 : MD DE HUACLLAN
A127: 020204 : MD DE LA MERCED
A128: 020205 : MD DE SUCCHA
A129: 020301 : MP DE ANTONIO RAYMONDI - LLAMELLIN
A130: 020302 : MD DE ACSO
A131: 020303 : MD DE CHACCHO
A132: 020304 : MD DE CHINGAS
A133: 020305 : MD DE MIRGAS
A134: 020306 : MD DE SAN JUAN DE RONTOY
A135: 020401 : MP DE ASUNCION - CHACAS
A136: 020402 : MD DE ACOCHACA
A137: 020501 : MP DE BOLOGNESI - CHIQUIAN
A138: 020502 : MD DE ABELARDO PARDO LAZAMETA
A139: 020503 : MD DE ANTONIO RAYMONDI
A140: 020504 : MD DE AQUIA
A141: 020505 : MD DE CAJACAY
A142: 020506 : MD DE CANIS
A143: 020507 : MD DE COLQUIOC
A144: 020508 : MD DE HUALLANCA
A145: 020509 : MD DE HUASTA
A146: 020510 : MD DE HUAYLLACAYAN
A147: 020511 : MD DE LA PRIMAVERA
A148: 020512 : MD DE MANGAS
A149: 020513 : MD DE PACLLON
A150: 020514 : MD DE SAN MIGUEL DE CORPANQUI
A151: 020515 : MD DE TICLLOS
A152: 020601 : MP DE CARHUAZ
A153: 020602 : MD DE ACOPAMPA
A154: 020603 : MD DE AMASHCA
A155: 020604 : MD DE ANTA
A156: 020605 : MD DE ATAQUERO
A157: 020606 : MD DE MARCARA
A158: 020607 : MD DE PARIAHUANCA
A159: 020608 : MD DE SAN MIGUEL DE ACO
A160: 020609 : MD DE SHILLA
A161: 020610 : MD DE TINCO
A162: 020611 : MD DE YUNGAR
A163: 020701 : MP DE CARLOS FERMIN FITZCARRALD
A164: 020702 : MD DE SAN NICOLAS
A165: 020703 : MD DE YAUYA
A166: 020801 : MP DE CASMA
A167: 020802 : MD DE BUENA VISTA ALTA
A168: 020803 : MD DE COMANDANTE NOEL
A169: 020804 : MD DE YAUTAN
A170: 020901 : MP DE CORONGO
A171: 020902 : MD DE ACO
A172: 020903 : MD DE BAMBAS
A173: 020904 : MD DE CUSCA
A174: 020905 : MD DE LA PAMPA
A175: 020906 : MD DE YANAC
A176: 020907 : MD DE YUPAN
A177: 021001 : MP DE HUARI
A178: 021002 : MD DE ANRA
A179: 021003 : MD DE CAJAY
A180: 021004 : MD DE CHAVIN DE HUANTAR
A181: 021005 : MD DE HUACACHI
A182: 021006 : MD DE HUACCHIS
A183: 021007 : MD DE HUACHIS
A184: 021008 : MD DE HUANTAR
A185: 021009 : MD DE MASIN
A186: 021010 : MD DE PAUCAS
A187: 021011 : MD DE PONTO
A188: 021012 : MD DE RAHUAPAMPA
A189: 021013 : MD DE RAPAYAN
A190: 021014 : MD DE SAN MARCOS
A191: 021015 : MD DE SAN PEDRO DE CHANA
A192: 021016 : MD DE UCO
A193: 021101 : MP DE HUARMEY
A194: 021102 : MD DE COCHAPETI
A195: 021103 : MD DE CULEBRAS
A196: 021104 : MD DE HUAYAN
A197: 021105 : MD DE MALVAS
A198: 021201 : MP DE HUAYLAS - CARAZ
A199: 021202 : MD DE HUALLANCA
A200: 021203 : MD DE HUATA
... 1718 more rows

Sheet GRS (hidden)
A1: -----------------------------------------------
A2: 010000 : GOBIERNO REGIONAL DE AMAZONAS
A3: 020000 : GOBIERNO REGIONAL DE ANCASH
A4: 030000 : GOBIERNO REGIONAL DE APURIMAC
A5: 040000 : GOBIERNO REGIONAL DE AREQUIPA
A6: 050000 : GOBIERNO REGIONAL DE AYACUCHO
A7: 060000 : GOBIERNO REGIONAL DE CAJAMARCA
A8: 070000 : GOBIERNO REGIONAL DEL CALLAO
A9: 080000 : GOBIERNO REGIONAL DE CUSCO
A10: 090000 : GOBIERNO REGIONAL DE HUANCAVELICA
A11: 100000 : GOBIERNO REGIONAL DE HUANUCO
A12: 110000 : GOBIERNO REGIONAL DE ICA
A13: 120000 : GOBIERNO REGIONAL DE JUNIN
A14: 130000 : GOBIERNO REGIONAL DE LA LIBERTAD
A15: 140000 : GOBIERNO REGIONAL DE LAMBAYEQUE
A16: 150000 : GOBIERNO REGIONAL DE LIMA
A17: 160000 : GOBIERNO REGIONAL DE LORETO
A18: 170000 : GOBIERNO REGIONAL DE MADRE DE DIOS
A19: 180000 : GOBIERNO REGIONAL DE MOQUEGUA
A20: 190000 : GOBIERNO REGIONAL DE PASCO
A21: 200000 : GOBIERNO REGIONAL DE PIURA
A22: 210000 : GOBIERNO REGIONAL DE PUNO
A23: 220000 : GOBIERNO REGIONAL DE SAN MARTIN
A24: 230000 : GOBIERNO REGIONAL DE TACNA
A25: 240000 : GOBIERNO REGIONAL DE TUMBES
A26: 250000 : GOBIERNO REGIONAL DE UCAYALI
A27: 260000 : REGION LIMA METROPOLITANA

Sheet TIPOGOB (hidden)
A1: TIPOGOB
A2: Gobiernos Locales
A3: Gobiernos Regionales
A6: No Cumple
A7: Si Cumple
